{"text_format":"1","workbook":"xlsx","n_sheets":8,"sheets":["Generale","005_Regolamentazione","004_Vigilanza_mercati","005_Internazionalizzazione","002_Indirizzo politico","004_Servizi generali","001_Fondi da assegnare","002_Fondi di riserva "],"not_rendered":{"charts":0,"images":0,"macros":1,"external_links":2,"defined_names":43,"comments":8,"pivot_tables":0},"unopened":[],"bounds":{"document_bytes":16777216,"sheet_cells":100000,"rows_first":2000,"rows_last":500,"rows_between":2000,"halvings":0,"cell_chars":16384,"cell_head_chars":4096},"cells_cut":0,"cells_raw":0,"read":"whole","date_system":"1900"}

{"sheet":"Generale","index":0,"n_rows":45,"n_cols":24,"rows_kept":45,"cut":false,"hidden":false,"merged":[[1,13,1,15],[1,18,1,20],[5,1,12,1]]}
[null,null,null,null,null,null,null,null,null,null,"PIRA 2023-2025"]
[null,"Missione",null,"011","Competitività delle imprese",null,"012","Regolazione dei mercati",null,"016","Commercio internazionale e internazionalizzazione del sistema produttivo",null,"032","Servizi istituzionali e generali delle amministrazioni pubbliche",null,null,null,"033","Fondi da ripartire"]
[]
[null,"Programma",null,"005","Regolamentazione, incentivazione dei settori imprenditoriali, riassetti industriali, sperimentazione tecnologica, lotta alla contraffazione, tutela della proprietà industriale",null,"004","Vigilanza sui mercati e sui prodotti, promozione della concorrenza e tutela dei consumatori",null,"005","Sostegno all'internazionalizzazione delle imprese e promozione del made in Italy",null,"002","Indirizzo politico","003","Servizi e affari generali per le amministrazioni di competenza",null,"001","Fondi da assegnare","002","Fondi di riserve speciali"]
[]
[null,"Obiettivi",null,{"$f":"IF(E6=\"\",\"\",CONCATENATE(D$2,\"-\",D$4,\"-\",$X6))","v":"011-005-001"},"Rafforzare la partecipazione delle PMI venete ed istituti di ricerca al processo di innovazione e alla ricerca",null,{"$f":"IF(H6=\"\",\"\",CONCATENATE(G$2,\"-\",G$4,\"-\",$X6))","v":"012-004-001"},"Promuovere la tutela delle imprese sotto l'aspetto della legalità ",null,{"$f":"IF(K6=\"\",\"\",CONCATENATE(J$2,\"-\",J$4,\"-\",$X6))","v":"016-005-001"},"Fornire supporto e competenze per sostenere l'esportazione nel Mercato unico e mercati internazionali ",null,{"$f":"IF(N6=\"\",\"\",CONCATENATE(M$2,\"-\",M$4,\"-\",$X6))","v":"032-002-001"},"Aumentare la trasparenza e la comunicazione interna ed esterna dell'Ente",{"$f":"IF(P6=\"\",\"\",CONCATENATE(M$2,\"-\",O$4,\"-\",$X6))","v":"032-003-001"},"Incrementare il numero di attività a supporto degli obiettivi ed attività comuni/associate del sistema delle Camere venete",null,{"$f":"IF(S6=\"\",\"\",CONCATENATE(R$2,\"-\",R$4,\"-\",$X6))","v":""},null,{"$f":"IF(U6=\"\",\"\",CONCATENATE(R$2,\"-\",T$4,\"-\",$X6))","v":""},null,null,null,"001"]
[null,null,null,{"$f":"IF(E7=\"\",\"\",CONCATENATE(D$2,\"-\",D$4,\"-\",$X7))","v":"011-005-002"},"Fornire strumenti e supporto per la tutela e valorizzazione della proprietà industriale",null,{"$f":"IF(H7=\"\",\"\",CONCATENATE(G$2,\"-\",G$4,\"-\",$X7))","v":"012-004-002"},"Aumentare la partecipazione delle associazioni di categoria delle imprese in tema di legalità e lotta alla criminalità organizzata",null,{"$f":"IF(K7=\"\",\"\",CONCATENATE(J$2,\"-\",J$4,\"-\",$X7))","v":"016-005-002"},"Attivare meccanismi di ricerca ed individuazione di partner esteri ",null,{"$f":"IF(N7=\"\",\"\",CONCATENATE(M$2,\"-\",M$4,\"-\",$X7))","v":"032-002-002"},"Garantire uno sviluppo strategico delle attività e una capacità di risposta ed adattamento alle nuove esigenze degli associati",{"$f":"IF(P7=\"\",\"\",CONCATENATE(M$2,\"-\",O$4,\"-\",$X7))","v":"032-003-002"},"Ridurre il costo dei  servizi generali (servizi di supporto, segreteria e centrali ) rispetto al totale dei costi, intervenendo sui processi e  con investimenti in soluzioni informatiche e upgrading delle competenze (formazione).",null,{"$f":"IF(S7=\"\",\"\",CONCATENATE(R$2,\"-\",R$4,\"-\",$X7))","v":""},null,{"$f":"IF(U7=\"\",\"\",CONCATENATE(R$2,\"-\",T$4,\"-\",$X7))","v":""},null,null,null,"002"]
[null,null,null,{"$f":"IF(E8=\"\",\"\",CONCATENATE(D$2,\"-\",D$4,\"-\",$X8))","v":"011-005-003"},"Promuovere  la competitività del sistema economico veneto tramite la partecipazione a progetti europei nei settori prioritari del periodo di programmazione 2021 2027",null,"",null,null,"",null,null,"",null,"032-003-003","Migliorare l'efficenza complessiva e la capacità di erogare servizi che rispondono ad una domanda effettiva nel mercato regionale, europeo e nazionale",null,"",null,"",null,null,null,"003"]
[null,null,null,{"$f":"IF(E9=\"\",\"\",CONCATENATE(D$2,\"-\",D$4,\"-\",$X9))","v":"011-005-004"},"Monitorare e diffondere dati strutturati sull' economia regionale",null,"",null,null,"",null,null,"",null,"",null,null,"",null,"",null,null,null,"004"]
[null,null,null,"",null,null,"",null,null,"",null,null,"",null,"",null,null,"",null,"",null,null,null,"005"]
[null,null,null,"",null,null,"",null,null,"",null,null,"",null,"",null,null,"",null,"",null,null,null,"006"]
[null,null,null,"",null,null,"",null,null,"",null,null,"",null,"",null,null,"",null,"",null,null,null,"007"]
[null,null,null,"",null,null,"",null,null,"",null,null,"",null,"",null,null,"",null,"",null,null,null,"008"]
[]
[]
[]
[null,"Arco temporale",null,"Inferiore all'anno"]
[null,null,null,"Anno"]
[null,null,null,"Biennio"]
[null,null,null,"Triennio"]
[null,null,null,"Superiore al triennio"]
[]
[null,"Tipologia",null,"di realizzazione fisica"]
[null,null,null,"di risultato (otuput)"]
[null,null,null,"di impatto (outcome)"]
[null,null,null,"di realizzazione finanziaria"]
[null,null,null,"altre tipologie (specificare sotto)"]
[]
[null,"Unità di misura",null,"Valore assoluto"]
[null,null,null,"Percentuale"]
[null,null,null,"Data"]
[null,null,null,"Euro"]
[null,null,null,"Altro (specificare sotto)"]
[]
[null,"Fonte",null,"Movimprese"]
[null,null,null,"Priamo"]
[null,null,null,"XAC/Oracle applications"]
[null,null,null,"Eureka"]
[null,null,null,"Starnet"]
[null,null,null,"Infocert"]
[null,null,null,"OFA"]
[null,null,null,"Stockview"]
[null,null,null,"Prodigi"]
[null,null,null,"Simba"]
[null,null,null,"Altro (specificare sotto)"]

{"sheet":"005_Regolamentazione","index":1,"n_rows":165,"n_cols":19,"rows_kept":165,"cut":false,"hidden":false,"merged":[[44,13,44,18],[48,13,48,18],[44,11,48,11],[46,3,46,8],[45,3,45,8],[44,3,44,8],[47,3,47,8],[48,3,48,8],[44,1,48,1],[54,12,54,18],[53,12,53,18],[54,2,54,8],[53,2,53,8],[52,11,52,18],[52,1,52,8],[46,13,46,18],[45,13,45,18],[47,13,47,18],[127,1,131,1],[127,3,127,8],[127,11,131,11],[127,13,127,18],[128,3,128,8],[128,13,128,18],[129,3,129,8],[129,13,129,18],[131,3,131,8],[131,13,131,18],[122,2,122,8],[122,12,122,18],[155,2,155,8],[155,12,155,18],[137,2,137,8],[137,12,137,18],[142,2,142,8],[142,12,142,18],[130,3,130,8],[130,13,130,18],[161,2,161,8],[161,12,161,18],[148,2,148,8],[148,12,148,18],[149,2,149,8],[149,12,149,18],[154,2,154,8],[154,12,154,18],[135,1,135,8],[135,11,135,18],[136,2,136,8],[136,12,136,18],[160,2,160,8],[160,12,160,18],[143,2,143,8],[143,12,143,18],[83,12,83,18],[85,12,85,18],[88,11,92,11],[88,13,88,18],[83,2,83,8],[116,2,116,8],[116,12,116,18],[121,2,121,8],[121,12,121,18],[91,3,91,8],[91,13,91,18],[109,2,109,8],[109,12,109,18],[97,12,97,18],[115,2,115,8],[115,12,115,18],[88,1,92,1],[88,3,88,8],[71,2,71,8],[71,12,71,18],[110,2,110,8],[110,12,110,18],[98,2,98,8],[98,12,98,18],[103,2,103,8],[103,12,103,18],[84,0,84,1],[85,2,85,8],[86,0,86,1],[104,2,104,8],[104,12,104,18],[92,3,92,8],[92,13,92,18],[96,1,96,8],[96,11,96,18],[97,2,97,8],[89,3,89,8],[89,13,89,18],[90,3,90,8],[90,13,90,18],[78,2,78,8],[78,12,78,18],[65,2,65,8],[65,12,65,18],[66,2,66,8],[66,12,66,18],[72,2,72,8],[72,12,72,18],[77,2,77,8],[77,12,77,18],[60,2,60,8],[60,12,60,18],[59,2,59,8],[59,12,59,18],[39,2,39,8],[39,12,39,18],[26,2,26,8],[26,12,26,18],[27,2,27,8],[27,12,27,18],[32,2,32,8],[32,12,32,18],[21,2,21,8],[21,12,21,18],[38,2,38,8],[38,12,38,18],[20,2,20,8],[20,12,20,18],[33,2,33,8],[33,12,33,18],[5,11,9,11],[5,13,5,18],[6,3,6,8],[6,13,6,18],[7,3,7,8],[7,13,7,18],[3,0,3,1],[4,0,4,8],[1,0,1,1],[0,2,0,8],[2,2,2,8],[0,12,0,18],[2,12,2,18],[15,2,15,8],[15,12,15,18],[9,3,9,8],[9,13,9,18],[13,1,13,8],[13,11,13,18],[14,2,14,8],[14,12,14,18],[5,1,9,1],[5,3,5,8],[8,3,8,8],[8,13,8,18]]}
[null,"Missione","011 - Competitività delle imprese",null,null,null,null,null,null,null,null,"Missione","011 - Competitività delle imprese"]
[]
[null,"Programma","005 - Regolamentazione, incentivazione dei settori imprenditoriali, riassetti industriali, sperimentazione tecnologica, lotta alla contraffazione, tutela della proprietà industriale",null,null,null,null,null,null,null,null,"Programma","005 - Regolamentazione, incentivazione dei settori imprenditoriali, riassetti industriali, sperimentazione tecnologica, lotta alla contraffazione, tutela della proprietà industriale"]
[]
[]
[null,"Obiettivo","Titolo",{"$f":"+Generale!E6","v":"Rafforzare la partecipazione delle PMI venete ed istituti di ricerca al processo di innovazione e alla ricerca"},null,null,null,null,null,null,null,"Obiettivo","Titolo",{"$f":"+Generale!E10","v":0}]
[null,null,"Descrizione","Azioni svolte a promuovere la partecipazione a programmi europei e regionali per l'innovazione e la ricerca",null,null,null,null,null,null,null,null,"Descrizione"]
[null,null,"Arco temporale realizzazione","Triennio",null,null,null,null,null,null,null,null,"Arco temporale realizzazione"]
[null,null,"Centro di responsabilità","Area impresa e territorio",null,null,null,null,null,null,null,null,"Centro di responsabilità"]
[null,null,"Risorse economiche","Triennio 2023-2025: 300.000",null,null,null,null,null,null,null,null,"Risorse finanziarie"]
[null,{"$f":"+Generale!D6","v":"011-005-001"},null,null,null,null,null,null,null,null,null,{"$f":"+Generale!D10","v":""}]
[null,null,"Nr indicatori associati",4,"<<< nb: indicare preventivamente il Nr indicatori associati all'obiettivo",null,null,null,null,null,null,null,"Nr indicatori associati",null,"<<< nb: indicare preventivamente il Nr indicatori associati all'obiettivo"]
[]
[]
[null,"Indicatore","Numero di imprese coinvolte in iniziative di innovazione e ricerca",null,null,null,null,null,null,null,null,"Indicatore","(titolo)"]
[null,"Cosa misura","Misura la variazione del numero di imprese a che si rivolgono ad Unioncamere del Veneto per \nconvegni e seminari informativi, corsi di formazione, corsi di progettazione ed assistenza specialistica",null,null,null,null,null,null,null,null,"Cosa misura"]
[null,"Tipologia","Unità di misura","Algoritmo di calcolo","Fonte dei dati","Ultimo valore osservato - cons. 2021","Risultato atteso anno 2023","Risultato atteso anno 2024","Risultato atteso anno 2025",null,null,"Tipologia","Unità di misura","Algoritmo di calcolo","Fonte dei dati","Ultimo valore osservato","Risultato atteso anno n","Risultato atteso anno n+1","Risultato atteso anno n+2"]
[null,"altre tipologie (specificare sotto)","Percentuale","Nr soggetti che hanno partecipato ad iniziative dell'Ente nell'anno n  / N° aziende che hanno partecipato ad\niniziative dell'Ente anno n-1 e nell'anno n ",null,{"$f":"532/(716+532)","v":0.42628205128205127},0.45,0.45,0.45]
[null,"Qualità","Se altro, indicare qui",null,"Relazione attività Unioncamere del Veneto e programmazione attività",null,null,null,null,null,null,"Se altro, indicare qui","Se altro, indicare qui",null,"Se altro, indicare qui"]
[]
[null,"Indicatore","Grado di partecipazione di imprese a programmi europei e regionali per la ricerca ed innovazione ",null,null,null,null,null,null,null,null,"Indicatore"]
[null,"Cosa misura","Capacità dell'Ente nel promuovere la partecipazione di imprese a programmi per la ricerca ed innovazione",null,null,null,null,null,null,null,null,"Cosa misura"]
[null,"Tipologia","Unità di misura","Algoritmo di calcolo","Fonte dei dati","Ultimo valore osservato - cons. 2021","Risultato atteso anno 2023","Risultato atteso anno 2024","Risultato atteso anno 2025",null,null,"Tipologia","Unità di misura","Algoritmo di calcolo","Fonte dei dati","Ultimo valore osservato","Risultato atteso anno n","Risultato atteso anno n+1","Risultato atteso anno n+2"]
[null,null,"Percentuale","Nr soggetti che hanno partecipato ad iniziative dell'Ente nell'anno n  / N° aziende che hanno partecipato ad\niniziative dell'Ente anno n-1 e nell'anno n ",null,{"$f":"246/(246+305)","v":0.44646098003629764},{"$f":"F24","v":0.44646098003629764},{"$f":"G24","v":0.44646098003629764},0.44646098003629764]
[null,"Qualità","Se altro, indicare qui",null,"RETE EEN",null,null,null,null,null,null,"Se altro, indicare qui","Se altro, indicare qui",null,"Se altro, indicare qui"]
[]
[null,"Indicatore","Numero di aziende iscritte alla sezione start up innovative",null,null,null,null,null,null,null,null,"Indicatore","(titolo)"]
[null,"Cosa misura","Grado di nascita di imprese innovative sul territorio regionale",null,null,null,null,null,null,null,null,"Cosa misura"]
[null,"Tipologia","Unità di misura","Algoritmo di calcolo","Fonte dei dati","Ultimo valore osservato - cons. 2021","Risultato atteso anno 2023","Risultato atteso anno 2024","Risultato atteso anno 2025",null,null,"Tipologia","Unità di misura","Algoritmo di calcolo","Fonte dei dati","Ultimo valore osservato","Risultato atteso anno n","Risultato atteso anno n+1","Risultato atteso anno n+2"]
[null,"di risultato (otuput)","Percentuale"," numero di start up innovative iscritte in veneto/numero di start up innovative iscritte in italia","Altro (specificare sotto)",{"$f":"1082/11899","v":9.0932011093369194E-2},0.1,0.1,0.1]
[null,"Se altro, indicare qui","Se altro, indicare qui",null,"Infocamere",null,null,null,null,null,null,"Se altro, indicare qui","Se altro, indicare qui",null,"Se altro, indicare qui"]
[]
[null,"Indicatore","Incidenza personale dedicato alle attività di innovazione e ricerca",null,null,null,null,null,null,null,null,"Indicatore","(titolo)"]
[null,"Cosa misura","Misura l'impegno dell'Unione regionale nell'offrire servizi relativi alle attività di innovazione e ricerca",null,null,null,null,null,null,null,null,"Cosa misura"]
[null,"Tipologia","Unità di misura","Algoritmo di calcolo","Fonte dei dati","Ultimo valore osservato - cons. 2021","Risultato atteso anno 2023","Risultato atteso anno 2024","Risultato atteso anno 2025",null,null,"Tipologia","Unità di misura","Algoritmo di calcolo","Fonte dei dati","Ultimo valore osservato","Risultato atteso anno n","Risultato atteso anno n+1","Risultato atteso anno n+2"]
[null,"altre tipologie (specificare sotto)","Percentuale","Personale (espresso in FTE) impiegato nell'anno \"n\"/Personale (espresso in FTE) impiegato nell'anno \"n\"","Altro (specificare sotto)",{"$f":"3/28","v":0.10714285714285714},0.107,{"$f":"G36","v":0.107},0.1]
[null,"Qualità","Se altro, indicare qui",null,"rilevazione interna UR",null,null,null,null,null,null,"Se altro, indicare qui","Se altro, indicare qui",null,"Se altro, indicare qui"]
[]
[null,"Indicatore","(titolo)",null,null,null,null,null,null,null,null,"Indicatore","(titolo)"]
[null,"Cosa misura",null,null,null,null,null,null,null,null,null,"Cosa misura"]
[null,"Tipologia","Unità di misura","Algoritmo di calcolo","Fonte dei dati","Ultimo valore osservato","Risultato atteso anno n","Risultato atteso anno n+1","Risultato atteso anno n+2",null,null,"Tipologia","Unità di misura","Algoritmo di calcolo","Fonte dei dati","Ultimo valore osservato","Risultato atteso anno n","Risultato atteso anno n+1","Risultato atteso anno n+2"]
[]
[null,"Se altro, indicare qui","Se altro, indicare qui",null,"Se altro, indicare qui",null,null,null,null,null,null,"Se altro, indicare qui","Se altro, indicare qui",null,"Se altro, indicare qui"]
[]
[null,"Obiettivo","Titolo",{"$f":"+IF(Generale!E7=\"\",\"\",Generale!E7)","v":"Fornire strumenti e supporto per la tutela e valorizzazione della proprietà industriale"},null,null,null,null,null,null,null,"Obiettivo","Titolo",{"$f":"+Generale!E11","v":0}]
[null,null,"Descrizione","Complesso di attività svolte dall'Ente a livello regionale ed europeo a tutela e valorizzazione degli asset aziendali",null,null,null,null,null,null,null,null,"Descrizione"]
[null,null,"Arco temporale per la realizzazione","Triennio",null,null,null,null,null,null,null,null,"Arco temporale per la realizzazione"]
[null,null,"Centro di responsabilità","Area Impresa e Territorio",null,null,null,null,null,null,null,null,"Centro di responsabilità"]
[null,null,"Risorse finanziarie","Triennio: 5.000",null,null,null,null,null,null,null,null,"Risorse finanziarie"]
[null,{"$f":"+Generale!D7","v":"011-005-002"},null,null,null,null,null,null,null,null,null,{"$f":"+Generale!D11","v":""}]
[null,null,"Nr indicatori associati",1,"<<< nb: indicare preventivamente il Nr indicatori associati all'obiettivo",null,null,null,null,null,null,null,"Nr indicatori associati",null,"<<< nb: indicare preventivamente il Nr indicatori associati all'obiettivo"]
[]
[]
[null,"Indicatore","Azioni volte alla valorizzazione e tutela della proprietà industriale",null,null,null,null,null,null,null,null,"Indicatore","(titolo)"]
[null,"Cosa misura","Il numero di attività promosse nel territorio, in cooperazione con il sistema camerale, i Ministeri nazionali e la Commissione Europea",null,null,null,null,null,null,null,null,"Cosa misura"]
[null,"Tipologia","Unità di misura","Algoritmo di calcolo","Fonte dei dati","Ultimo valore osservato - cons. 2021","Risultato atteso anno 2023","Risultato atteso anno 2024","Risultato atteso anno 2025",null,null,"Tipologia","Unità di misura","Algoritmo di calcolo","Fonte dei dati","Ultimo valore osservato","Risultato atteso anno n","Risultato atteso anno n+1","Risultato atteso anno n+2"]
[null,"di risultato (otuput)","Valore assoluto","N° incontri formativi, servizi televisivi o radiofonici, pieghevoli pubblicitari, guide pratiche pubblicate","Altro (specificare sotto)",0,1,1,1]
[null,"Se altro, indicare qui","Se altro, indicare qui",null,"rilevazione interna UR",null,null,null,null,null,null,"Se altro, indicare qui","Se altro, indicare qui",null,"Se altro, indicare qui"]
[]
[null,"Indicatore","(titolo)",null,null,null,null,null,null,null,null,"Indicatore","(titolo)"]
[null,"Cosa misura",null,null,null,null,null,null,null,null,null,"Cosa misura"]
[null,"Tipologia","Unità di misura","Algoritmo di calcolo","Fonte dei dati","Ultimo valore osservato","Risultato atteso anno n","Risultato atteso anno n+1","Risultato atteso anno n+2",null,null,"Tipologia","Unità di misura","Algoritmo di calcolo","Fonte dei dati","Ultimo valore osservato","Risultato atteso anno n","Risultato atteso anno n+1","Risultato atteso anno n+2"]
[]
[null,"Se altro, indicare qui","Se altro, indicare qui",null,"Se altro, indicare qui",null,null,null,null,null,null,"Se altro, indicare qui","Se altro, indicare qui",null,"Se altro, indicare qui"]
[]
[null,"Indicatore","(titolo)",null,null,null,null,null,null,null,null,"Indicatore","(titolo)"]
[null,"Cosa misura",null,null,null,null,null,null,null,null,null,"Cosa misura"]
[null,"Tipologia","Unità di misura","Algoritmo di calcolo","Fonte dei dati","Ultimo valore osservato","Risultato atteso anno n","Risultato atteso anno n+1","Risultato atteso anno n+2",null,null,"Tipologia","Unità di misura","Algoritmo di calcolo","Fonte dei dati","Ultimo valore osservato","Risultato atteso anno n","Risultato atteso anno n+1","Risultato atteso anno n+2"]
[]
[null,"Se altro, indicare qui","Se altro, indicare qui",null,"Se altro, indicare qui",null,null,null,null,null,null,"Se altro, indicare qui","Se altro, indicare qui",null,"Se altro, indicare qui"]
[]
[null,"Indicatore","(titolo)",null,null,null,null,null,null,null,null,"Indicatore"]
[null,"Cosa misura",null,null,null,null,null,null,null,null,null,"Cosa misura"]
[null,"Tipologia","Unità di misura","Algoritmo di calcolo","Fonte dei dati","Ultimo valore osservato","Risultato atteso anno n","Risultato atteso anno n+1","Risultato atteso anno n+2",null,null,"Tipologia","Unità di misura","Algoritmo di calcolo","Fonte dei dati","Ultimo valore osservato","Risultato atteso anno n","Risultato atteso anno n+1","Risultato atteso anno n+2"]
[]
[null,"Se altro, indicare qui","Se altro, indicare qui",null,"Se altro, indicare qui",null,null,null,null,null,null,"Se altro, indicare qui","Se altro, indicare qui",null,"Se altro, indicare qui"]
[]
[null,"Indicatore","(titolo)",null,null,null,null,null,null,null,null,"Indicatore"]
[null,"Cosa misura",null,null,null,null,null,null,null,null,null,"Cosa misura"]
[null,"Tipologia","Unità di misura","Algoritmo di calcolo","Fonte dei dati","Ultimo valore osservato","Risultato atteso anno n","Risultato atteso anno n+1","Risultato atteso anno n+2",null,null,"Tipologia","Unità di misura","Algoritmo di calcolo","Fonte dei dati","Ultimo valore osservato","Risultato atteso anno n","Risultato atteso anno n+1","Risultato atteso anno n+2"]
[]
[null,"Se altro, indicare qui","Se altro, indicare qui",null,"Se altro, indicare qui",null,null,null,null,null,null,"Se altro, indicare qui","Se altro, indicare qui",null,"Se altro, indicare qui"]
[]
[null,"Missione","011 - Competitività delle imprese",null,null,null,null,null,null,null,null,"Missione","011 - Competitività delle imprese"]
[]
[null,"Programma","005 - Regolamentazione, incentivazione dei settori imprenditoriali, riassetti industriali, sperimentazione tecnologica, lotta alla contraffazione, tutela della proprietà industriale",null,null,null,null,null,null,null,null,"Programma","005 - Regolamentazione, incentivazione dei settori imprenditoriali, riassetti industriali, sperimentazione tecnologica, lotta alla contraffazione, tutela della proprietà industriale"]
[]
[]
[null,"Obiettivo","Titolo",{"$f":"+Generale!E8","v":"Promuovere  la competitività del sistema economico veneto tramite la partecipazione a progetti europei nei settori prioritari del periodo di programmazione 2021 2027"},null,null,null,null,null,null,null,"Obiettivo","Titolo",{"$f":"+Generale!E12","v":0}]
[null,null,"Descrizione","Mobilitazione del comparto produttivo e dei servizi in materia di energia, trasporti e agrobusiness \"verde\", tramite progetti europei , regionali e nazionali",null,null,null,null,null,null,null,null,"Descrizione"]
[null,null,"Arco temporale realizzazione","Triennio",null,null,null,null,null,null,null,null,"Arco temporale  realizzazione"]
[null,null,"Centro di responsabilità","Area Impresa e Territorio - Supporto progettuale alle CCIAA",null,null,null,null,null,null,null,null,"Centro di responsabilità"]
[null,null,"Risorse finanziarie","Triennio: 1.500.000",null,null,null,null,null,null,null,null,"Risorse finanziarie"]
[null,{"$f":"+Generale!D8","v":"011-005-003"},null,null,null,null,null,null,null,null,null,{"$f":"+Generale!D12","v":""}]
[null,null,"Nr indicatori associati",3,"<<< nb: indicare preventivamente il Nr indicatori associati all'obiettivo",null,null,null,null,null,null,null,"Nr indicatori associati",null,"<<< nb: indicare preventivamente il Nr indicatori associati all'obiettivo"]
[]
[]
[null,"Indicatore","Grado di partecipazione di imprese ad iniziative nei settori prioritari per la competitività come definiti dall'UE nella programmazione 2014-2020",null,null,null,null,null,null,null,null,"Indicatore","(titolo)"]
[null,"Cosa misura","Misura il numero di imprese che si sono rivolte ad Unioncamere del veneto per \nconvegni e seminari informativi, corsi di formazione, corsi di progettazione su temi europei per la competitività",null,null,null,null,null,null,null,null,"Cosa misura"]
[null,"Tipologia","Unità di misura","Algoritmo di calcolo","Fonte dei dati","Ultimo valore osservato - cons. 2021","Risultato atteso anno 2023","Risultato atteso anno 2024","Risultato atteso anno 2025",null,null,"Tipologia","Unità di misura","Algoritmo di calcolo","Fonte dei dati","Ultimo valore osservato","Risultato atteso anno n","Risultato atteso anno n+1","Risultato atteso anno n+2"]
[null,null,"Valore assoluto","Nr  di soggetti partecipanti anno ",null,275,350,350,350]
[null,"Se altro, indicare qui","Se altro, indicare qui",null,"Relazione attività",null,null,null,null,null,null,"Se altro, indicare qui","Se altro, indicare qui",null,"Se altro, indicare qui"]
[]
[null,"Indicatore","Grado di successo nella presentazione di progetti europei",null,null,null,null,null,null,null,null,"Indicatore","(titolo)"]
[null,"Cosa misura","La capacità dell'Ente di agiudicarsi fondi europei a gestione centralizzata",null,null,null,null,null,null,null,null,"Cosa misura"]
[null,"Tipologia","Unità di misura","Algoritmo di calcolo","Fonte dei dati","Ultimo valore osservato - cons. 2021","Risultato atteso anno 2023","Risultato atteso anno 2024","Risultato atteso anno 2025",null,null,"Tipologia","Unità di misura","Algoritmo di calcolo","Fonte dei dati","Ultimo valore osservato","Risultato atteso anno n","Risultato atteso anno n+1","Risultato atteso anno n+2"]
[null,null,"Percentuale","Progetti presentati/Progetti aggiudicati",null,0.3,0.3,3.2,0.3]
[null,"Qualità","Se altro, indicare qui",null,"Commissione europea",null,null,null,null,null,null,"Se altro, indicare qui","Se altro, indicare qui",null,"Se altro, indicare qui"]
[]
[null,"Indicatore","Coinvolgimento e promozione di attività volte a favorire l'accesso al credito delle PMI",null,null,null,null,null,null,null,null,"Indicatore","(titolo)"]
[null,"Cosa misura","Il coinvolgimento dell'Ente nelle attività di promozione e sviluppo di azioni che facilitino l'accesso al credito delle PMI venete",null,null,null,null,null,null,null,null,"Cosa misura"]
[null,"Tipologia","Unità di misura","Algoritmo di calcolo","Fonte dei dati","Ultimo valore osservato - cons. 2021","Risultato atteso anno 2023","Risultato atteso anno 2024","Risultato atteso anno 2025",null,null,"Tipologia","Unità di misura","Algoritmo di calcolo","Fonte dei dati","Ultimo valore osservato","Risultato atteso anno n","Risultato atteso anno n+1","Risultato atteso anno n+2"]
[null,null,"Valore assoluto","Nr di nuove iniziative per il credito promosse a livello regionale","Altro (specificare sotto)",4,4,4,4]
[null,"Qualità","Se altro, indicare qui",null,"Relazione Attività Unioncamere del Veneto e programmazione attività",null,null,null,null,null,null,"Se altro, indicare qui","Se altro, indicare qui",null,"Se altro, indicare qui"]
[]
[null,"Indicatore",null,null,null,null,null,null,null,null,null,"Indicatore","(titolo)"]
[null,"Cosa misura",null,null,null,null,null,null,null,null,null,"Cosa misura"]
[null,"Tipologia","Unità di misura","Algoritmo di calcolo","Fonte dei dati","Ultimo valore osservato","Risultato atteso anno n","Risultato atteso anno n+1","Risultato atteso anno n+2",null,null,"Tipologia","Unità di misura","Algoritmo di calcolo","Fonte dei dati","Ultimo valore osservato","Risultato atteso anno n","Risultato atteso anno n+1","Risultato atteso anno n+2"]
[null,null,null,null,"Altro (specificare sotto)","n.d",0.25,0.5,0.6]
[null,"Se altro, indicare qui","Se altro, indicare qui",null,null,null,null,null,null,null,null,"Se altro, indicare qui","Se altro, indicare qui",null,"Se altro, indicare qui"]
[]
[null,"Indicatore","(titolo)",null,null,null,null,null,null,null,null,"Indicatore","(titolo)"]
[null,"Cosa misura"]
[null,"Tipologia","Unità di misura","Algoritmo di calcolo","Fonte dei dati","Ultimo valore osservato","Risultato atteso anno n","Risultato atteso anno n+1","Risultato atteso anno n+2",null,null,"Tipologia","Unità di misura","Algoritmo di calcolo","Fonte dei dati","Ultimo valore osservato","Risultato atteso anno n","Risultato atteso anno n+1","Risultato atteso anno n+2"]
[]
[null,"Se altro, indicare qui","Se altro, indicare qui",null,"Se altro, indicare qui",null,null,null,null,null,null,"Se altro, indicare qui","Se altro, indicare qui",null,"Se altro, indicare qui"]
[]
[null,"Obiettivo","Titolo",{"$f":"+Generale!E9","v":"Monitorare e diffondere dati strutturati sull' economia regionale"},null,null,null,null,null,null,null,"Obiettivo","Titolo",{"$f":"+Generale!E13","v":0}]
[null,null,"Descrizione","Attività di raccolta ed elaborazione dati e studi sull'economia regionale e suoi trend",null,null,null,null,null,null,null,null,"Descrizione"]
[null,null,"Arco temporale realizzazione","Triennio",null,null,null,null,null,null,null,null,"Arco temporale realizzazione"]
[null,null,"Centro di responsabilità","Area Impresa e Territorio",null,null,null,null,null,null,null,null,"Centro di responsabilità"]
[null,null,"Risorse finanziarie","Triennio: 210.000",null,null,null,null,null,null,null,null,"Risorse finanziarie"]
[null,{"$f":"+Generale!D9","v":"011-005-004"},null,null,null,null,null,null,null,null,null,{"$f":"+Generale!D13","v":""}]
[null,null,"Nr indicatori associati",4,"<<< nb: indicare preventivamente il Nr indicatori associati all'obiettivo",null,null,null,null,null,null,null,"Nr indicatori associati",1,"<<< nb: indicare preventivamente il Nr indicatori associati all'obiettivo"]
[]
[]
[null,"Indicatore","Livello di copertura dei settori economici mediante indagini statistiche",null,null,null,null,null,null,null,null,"Indicatore","(titolo)"]
[null,"Cosa misura","Misura la copertura dei settori economici mediante indagini statistiche effettuate dall'Ente",null,null,null,null,null,null,null,null,"Cosa misura"]
[null,"Tipologia","Unità di misura","Algoritmo di calcolo","Fonte dei dati","Ultimo valore osservato - cons. 2021","Risultato atteso anno 2023","Risultato atteso anno 2024","Risultato atteso anno 2025",null,null,"Tipologia","Unità di misura","Algoritmo di calcolo","Fonte dei dati","Ultimo valore osservato","Risultato atteso anno n","Risultato atteso anno n+1","Risultato atteso anno n+2"]
[null,"di risultato (otuput)","Percentuale","Numero di settori per cui è stata realizzata almeno un'indagine statistica nell'anno \"n\"/Totale settori economici interessati (ad es. Agricoltura; Artigianato; Commercio; Industria; Altri settori)","Altro (specificare sotto)",{"$f":"7/10","v":0.7},0.7,0.7,0.7]
[null,"Se altro, indicare qui","Se altro, indicare qui",null,"rilevazione interna UR",null,null,null,null,null,null,"Se altro, indicare qui","Se altro, indicare qui",null,"Se altro, indicare qui"]
[]
[null,"Indicatore","Grado di diffusione delle indagini statistiche",null,null,null,null,null,null,null,null,"Indicatore","(titolo)"]
[null,"Cosa misura","Misura il gRado di \"utilizzo\" da parte delle CCIAA delle indagini statistiche effettuate dalle Unioni regionali",null,null,null,null,null,null,null,null,"Cosa misura"]
[null,"Tipologia","Unità di misura","Algoritmo di calcolo","Fonte dei dati","Ultimo valore osservato - cons. 2021","Risultato atteso anno 2023","Risultato atteso anno 2024","Risultato atteso anno 2025",null,null,"Tipologia","Unità di misura","Algoritmo di calcolo","Fonte dei dati","Ultimo valore osservato","Risultato atteso anno n","Risultato atteso anno n+1","Risultato atteso anno n+2"]
[null,null,"Valore assoluto","Iniziative (convegni, seminari, pubblicazioni, ecc.) realizzate dall'Ente che si basano su indagini curate dall'Ente stesso","Altro (specificare sotto)",38,40,40,40]
[null,"Efficacia","Se altro, indicare qui",null,"rilevazione interna UR",null,null,null,null,null,null,"Se altro, indicare qui","Se altro, indicare qui",null,"Se altro, indicare qui"]
[]
[null,"Indicatore","Volume medio di attività gestito dal personale addetto all'ufficio studi",null,null,null,null,null,null,null,null,"Indicatore","(titolo)"]
[null,"Cosa misura","Misura dell’efficienza con cui l'Unione regionale gestisce il servizio di pubblicazioni statistica e di analisi dell'economia regionale",null,null,null,null,null,null,null,null,"Cosa misura"]
[null,"Tipologia","Unità di misura","Algoritmo di calcolo","Fonte dei dati","Ultimo valore osservato - cons. 2021","Risultato atteso anno 2023","Risultato atteso anno 2024","Risultato atteso anno 2025",null,null,"Tipologia","Unità di misura","Algoritmo di calcolo","Fonte dei dati","Ultimo valore osservato","Risultato atteso anno n","Risultato atteso anno n+1","Risultato atteso anno n+2"]
[null,"di realizzazione fisica","Valore assoluto","N° pubblicazioni, studi e ricerche realizzate nell'anno \"n\"/Personale (espresso in FTE) impiegato nell'uffico studi nell'anno \"n\"","Altro (specificare sotto)",{"$f":"38/2","v":19},19,19,19]
[null,"Se altro, indicare qui","Se altro, indicare qui",null,"rilevazione interna UR",null,null,null,null,null,null,"Se altro, indicare qui","Se altro, indicare qui",null,"Se altro, indicare qui"]
[]
[null,"Indicatore","Incidenza personale dedicato alle attvità dell'ufficio studi",null,null,null,null,null,null,null,null,"Indicatore","(titolo)"]
[null,"Cosa misura","Misura l'impegno dell'Unione regionale nell'offrire servizi relativi all'attività dell'ufficio studi",null,null,null,null,null,null,null,null,"Cosa misura"]
[null,"Tipologia","Unità di misura","Algoritmo di calcolo","Fonte dei dati","Ultimo valore osservato - cons. 2021","Risultato atteso anno 2023","Risultato atteso anno 2024","Risultato atteso anno 2025",null,null,"Tipologia","Unità di misura","Algoritmo di calcolo","Fonte dei dati","Ultimo valore osservato","Risultato atteso anno n","Risultato atteso anno n+1","Risultato atteso anno n+2"]
[null,"altre tipologie (specificare sotto)","Percentuale","Personale (espresso in FTE) impiegato nell'uffico studi nell'anno \"n\"/Personale (espresso in FTE) impiegato nell'anno \"n\"","Altro (specificare sotto)",{"$f":"2.5/27","v":9.2592592592592587E-2},0.09,0.09,0.09]
[null,"Qualità","Se altro, indicare qui",null,"rilevazione interna UR",null,null,null,null,null,null,"Se altro, indicare qui","Se altro, indicare qui",null,"Se altro, indicare qui"]
[]
[null,"Indicatore","(titolo)",null,null,null,null,null,null,null,null,"Indicatore","(titolo)"]
[null,"Cosa misura",null,null,null,null,null,null,null,null,null,"Cosa misura"]
[null,"Tipologia","Unità di misura","Algoritmo di calcolo","Fonte dei dati","Ultimo valore osservato","Risultato atteso anno n","Risultato atteso anno n+1","Risultato atteso anno n+2",null,null,"Tipologia","Unità di misura","Algoritmo di calcolo","Fonte dei dati","Ultimo valore osservato","Risultato atteso anno n","Risultato atteso anno n+1","Risultato atteso anno n+2"]
[]
[null,"Se altro, indicare qui","Se altro, indicare qui",null,"Se altro, indicare qui",null,null,null,null,null,null,"Se altro, indicare qui","Se altro, indicare qui",null,"Se altro, indicare qui"]

{"sheet":"004_Vigilanza_mercati","index":2,"n_rows":165,"n_cols":19,"rows_kept":165,"cut":false,"hidden":false,"merged":[[110,2,110,8],[110,12,110,18],[161,2,161,8],[161,12,161,18],[148,2,148,8],[148,12,148,18],[149,2,149,8],[149,12,149,18],[142,2,142,8],[142,12,142,18],[155,2,155,8],[155,12,155,18],[143,2,143,8],[143,12,143,18],[154,2,154,8],[154,12,154,18],[160,2,160,8],[160,12,160,18],[121,2,121,8],[121,12,121,18],[122,2,122,8],[122,12,122,18],[136,2,136,8],[136,12,136,18],[137,2,137,8],[137,12,137,18],[131,3,131,8],[131,13,131,18],[135,1,135,8],[135,11,135,18],[127,1,131,1],[127,3,127,8],[127,11,131,11],[127,13,127,18],[128,3,128,8],[128,13,128,18],[130,3,130,8],[130,13,130,18],[129,3,129,8],[129,13,129,18],[104,2,104,8],[104,12,104,18],[92,3,92,8],[92,13,92,18],[96,1,96,8],[96,11,96,18],[83,2,83,8],[83,12,83,18],[116,2,116,8],[116,12,116,18],[98,2,98,8],[98,12,98,18],[103,2,103,8],[103,12,103,18],[115,2,115,8],[115,12,115,18],[109,2,109,8],[109,12,109,18],[84,0,84,1],[85,2,85,8],[85,12,85,18],[86,0,86,1],[88,11,92,11],[88,13,88,18],[65,2,65,8],[65,12,65,18],[66,2,66,8],[66,12,66,18],[72,2,72,8],[72,12,72,18],[97,2,97,8],[97,12,97,18],[88,1,92,1],[88,3,88,8],[71,2,71,8],[71,12,71,18],[78,2,78,8],[78,12,78,18],[77,2,77,8],[77,12,77,18],[90,3,90,8],[90,13,90,18],[91,3,91,8],[91,13,91,18],[89,3,89,8],[89,13,89,18],[59,2,59,8],[59,12,59,18],[38,2,38,8],[38,12,38,18],[39,2,39,8],[39,12,39,18],[60,2,60,8],[60,12,60,18],[48,3,48,8],[48,13,48,18],[52,1,52,8],[52,11,52,18],[53,2,53,8],[53,12,53,18],[44,11,48,11],[44,13,44,18],[44,1,48,1],[44,3,44,8],[47,3,47,8],[47,13,47,18],[45,3,45,8],[45,13,45,18],[46,3,46,8],[46,13,46,18],[54,2,54,8],[54,12,54,18],[33,2,33,8],[33,12,33,18],[15,12,15,18],[20,2,20,8],[20,12,20,18],[5,11,9,11],[5,13,5,18],[6,3,6,8],[6,13,6,18],[7,3,7,8],[26,2,26,8],[26,12,26,18],[27,2,27,8],[27,12,27,18],[32,2,32,8],[32,12,32,18],[21,2,21,8],[21,12,21,18],[8,13,8,18],[9,3,9,8],[9,13,9,18],[13,1,13,8],[13,11,13,18],[14,2,14,8],[14,12,14,18],[15,2,15,8],[0,2,0,8],[0,12,0,18],[1,0,1,1],[2,2,2,8],[2,12,2,18],[7,13,7,18],[8,3,8,8],[3,0,3,1],[4,0,4,8],[5,1,9,1],[5,3,5,8]]}
[null,"Missione","012 - Regolazione dei mercati",null,null,null,null,null,null,null,null,"Missione","012 - Regolazione dei mercati"]
[]
[null,"Programma","004 - Vigilanza sui mercati e sui prodotti, promozione della concorrenza e tutela dei consumatori",null,null,null,null,null,null,null,null,"Programma","004 - Vigilanza sui mercati e sui prodotti, promozione della concorrenza e tutela dei consumatori"]
[]
[]
[null,"Obiettivo","Titolo",{"$f":"+Generale!H6","v":"Promuovere la tutela delle imprese sotto l'aspetto della legalità "},null,null,null,null,null,null,null,"Obiettivo","Titolo",{"$f":"+Generale!H10","v":0}]
[null,null,"Descrizione","Azioni volte alla tutela delle imprese in tema di legalità e lotta alla criminalità",null,null,null,null,null,null,null,null,"Descrizione"]
[null,null,"Arco temporale realizzazione","Triennio",null,null,null,null,null,null,null,null,"Arco temporale realizzazione"]
[null,null,"Centro di responsabilità","Area Amministrazione interna e Servizi alle CCIAA",null,null,null,null,null,null,null,null,"Centro di responsabilità"]
[null,null,"Risorse economiche","Triennio: 30.000",null,null,null,null,null,null,null,null,"Risorse finanziarie"]
[null,{"$f":"+Generale!G6","v":"012-004-001"},null,null,null,null,null,null,null,null,null,{"$f":"+Generale!G10","v":""}]
[null,null,"Nr indicatori associati",3,"<<< nb: indicare preventivamente il Nr indicatori associati all'obiettivo",null,null,null,null,null,null,null,"Nr indicatori associati",null,"<<< nb: indicare preventivamente il Nr indicatori associati all'obiettivo"]
[]
[]
[null,"Indicatore","Grado di copertura delle iniziative camerali di regolazione del mercato e vigilanza",null,null,null,null,null,null,null,null,"Indicatore","(titolo)"]
[null,"Cosa misura","Misura il grado di copertura delle iniziative camerali in materia di regolazione del mercato e vigilanza attraverso le Unioni regionali",null,null,null,null,null,null,null,null,"Cosa misura"]
[null,"Tipologia","Unità di misura","Algoritmo di calcolo","Fonte dei dati","Ultimo valore osservato - cons. 2021","Risultato atteso anno 2023","Risultato atteso anno 2024","Risultato atteso anno 2025",null,null,"Tipologia","Unità di misura","Algoritmo di calcolo","Fonte dei dati","Ultimo valore osservato","Risultato atteso anno n","Risultato atteso anno n+1","Risultato atteso anno n+2"]
[null,"di realizzazione fisica","valore assoluto","Numero di inizative volte alla tutela delle imprese dalle infiltrazioni della criminalità organizzata","Altro (specificare sotto)",1,1,1,1]
[null,"Se altro, indicare qui","Se altro, indicare qui",null,"rilevazione interna UR",null,null,null,null,null,null,"Se altro, indicare qui","Se altro, indicare qui",null,"Se altro, indicare qui"]
[]
[null,"Indicatore","Incidenza personale dedicato alle attività di regolazione del mercato e vigilanza",null,null,null,null,null,null,null,null,"Indicatore"]
[null,"Cosa misura","Misura l'impegno dell'Unione regionale nell'offrire servizi di regolazione del mercato e vigilanza",null,null,null,null,null,null,null,null,"Cosa misura"]
[null,"Tipologia","Unità di misura","Algoritmo di calcolo","Fonte dei dati","Ultimo valore osservato - cons. 2021","Risultato atteso anno 2023","Risultato atteso anno 2024","Risultato atteso anno 2025",null,null,"Tipologia","Unità di misura","Algoritmo di calcolo","Fonte dei dati","Ultimo valore osservato","Risultato atteso anno n","Risultato atteso anno n+1","Risultato atteso anno n+2"]
[null,"altre tipologie (specificare sotto)","Percentuale","Personale (espresso in FTE) impiegato in attività di regolazione del mercato e vigilanza nell'anno \"n\"/Personale (espresso in FTE) impiegato nell'anno \"n\"","Altro (specificare sotto)",{"$f":"1/28","v":3.5714285714285712E-2},{"$f":"F24","v":3.5714285714285712E-2},{"$f":"G24","v":3.5714285714285712E-2},{"$f":"H24","v":3.5714285714285712E-2}]
[null,"Qualità","Se altro, indicare qui",null,"rilevazione interna UR",null,null,null,null,null,null,"Se altro, indicare qui","Se altro, indicare qui",null,"Se altro, indicare qui"]
[]
[null,"Indicatore","Livello di informazione e formazione sui temi della tutela delle imprese",null,null,null,null,null,null,null,null,"Indicatore","(titolo)"]
[null,"Cosa misura","Misura il livello di informazione ed assistenza  erogata dall'ente sui temi della legalità e delle infiltrazioni criminali",null,null,null,null,null,null,null,null,"Cosa misura"]
[null,"Tipologia","Unità di misura","Algoritmo di calcolo","Fonte dei dati","Ultimo valore osservato - cons. 2021","Risultato atteso anno 2023","Risultato atteso anno 2024","Risultato atteso anno 2025",null,null,"Tipologia","Unità di misura","Algoritmo di calcolo","Fonte dei dati","Ultimo valore osservato","Risultato atteso anno n","Risultato atteso anno n+1","Risultato atteso anno n+2"]
[null,"di realizzazione fisica","Valore assoluto","N° incontri informativi, servizi televisivi o radiofonici, pieghevoli pubblicitari, guide pratiche pubblicate, uscite stampa","Altro (specificare sotto)",1,1,1,1]
[null,"Se altro, indicare qui","Se altro, indicare qui",null,"fonti varie",null,null,null,null,null,null,"Se altro, indicare qui","Se altro, indicare qui",null,"Se altro, indicare qui"]
[]
[null,"Indicatore","(titolo)",null,null,null,null,null,null,null,null,"Indicatore","(titolo)"]
[null,"Cosa misura",null,null,null,null,null,null,null,null,null,"Cosa misura"]
[null,"Tipologia","Unità di misura","Algoritmo di calcolo","Fonte dei dati","Ultimo valore osservato","Risultato atteso anno n","Risultato atteso anno n+1","Risultato atteso anno n+2",null,null,"Tipologia","Unità di misura","Algoritmo di calcolo","Fonte dei dati","Ultimo valore osservato","Risultato atteso anno n","Risultato atteso anno n+1","Risultato atteso anno n+2"]
[]
[null,"Se altro, indicare qui","Se altro, indicare qui",null,"Se altro, indicare qui",null,null,null,null,null,null,"Se altro, indicare qui","Se altro, indicare qui",null,"Se altro, indicare qui"]
[]
[null,"Indicatore","(titolo)",null,null,null,null,null,null,null,null,"Indicatore","(titolo)"]
[null,"Cosa misura",null,null,null,null,null,null,null,null,null,"Cosa misura"]
[null,"Tipologia","Unità di misura","Algoritmo di calcolo","Fonte dei dati","Ultimo valore osservato","Risultato atteso anno n","Risultato atteso anno n+1","Risultato atteso anno n+2",null,null,"Tipologia","Unità di misura","Algoritmo di calcolo","Fonte dei dati","Ultimo valore osservato","Risultato atteso anno n","Risultato atteso anno n+1","Risultato atteso anno n+2"]
[]
[null,"Se altro, indicare qui","Se altro, indicare qui",null,"Se altro, indicare qui",null,null,null,null,null,null,"Se altro, indicare qui","Se altro, indicare qui",null,"Se altro, indicare qui"]
[]
[null,"Obiettivo","Titolo",{"$f":"Generale!H7","v":"Aumentare la partecipazione delle associazioni di categoria delle imprese in tema di legalità e lotta alla criminalità organizzata"},null,null,null,null,null,null,null,"Obiettivo","Titolo",{"$f":"+Generale!H11","v":0}]
[null,null,"Descrizione","Indagini volte all'individuazione di forme di infiltrazioni criminali nelle imprese ",null,null,null,null,null,null,null,null,"Descrizione"]
[null,null,"Arco temporale per la realizzazione","Triennio",null,null,null,null,null,null,null,null,"Arco temporale per la realizzazione"]
[null,null,"Centro di responsabilità","Area Amministrazione interna e Servizi alle CCIAA",null,null,null,null,null,null,null,null,"Centro di responsabilità"]
[null,null,"Risorse finanziarie","Triennio: 15.000",null,null,null,null,null,null,null,null,"Risorse finanziarie"]
[null,{"$f":"+Generale!G7","v":"012-004-002"},null,null,null,null,null,null,null,null,null,{"$f":"+Generale!G11","v":""}]
[null,null,"Nr indicatori associati",1,"<<< nb: indicare preventivamente il Nr indicatori associati all'obiettivo",null,null,null,null,null,null,null,"Nr indicatori associati",1,"<<< nb: indicare preventivamente il Nr indicatori associati all'obiettivo"]
[]
[]
[null,"Indicatore","Attività di indagine, prevenzione e segnalazione"]
[null,"Cosa misura","Il grado di iniziativa attività dell' Ente sui temi della concorrenza e tutela del consumatore"]
[null,"Tipologia","Unità di misura","Algoritmo di calcolo","Fonte dei dati","Ultimo valore osservato - cons. 2021","Risultato atteso anno 2023","Risultato atteso anno 2024","Risultato atteso anno 2025"]
[null,"realizzazione fisica","Valore assoluto","Numero di indagini e studi svolti nell'anno",null,1,1,1,1]
[null,"Se altro, indicare qui","Se altro, indicare qui",null,"rilevazione interna "]
[]
[null,"Indicatore","(titolo)",null,null,null,null,null,null,null,null,"Indicatore","(titolo)"]
[null,"Cosa misura",null,null,null,null,null,null,null,null,null,"Cosa misura"]
[null,"Tipologia","Unità di misura","Algoritmo di calcolo","Fonte dei dati","Ultimo valore osservato","Risultato atteso anno n","Risultato atteso anno n+1","Risultato atteso anno n+2",null,null,"Tipologia","Unità di misura","Algoritmo di calcolo","Fonte dei dati","Ultimo valore osservato","Risultato atteso anno n","Risultato atteso anno n+1","Risultato atteso anno n+2"]
[]
[null,"Se altro, indicare qui","Se altro, indicare qui",null,"Se altro, indicare qui",null,null,null,null,null,null,"Se altro, indicare qui","Se altro, indicare qui",null,"Se altro, indicare qui"]
[]
[null,"Indicatore","(titolo)",null,null,null,null,null,null,null,null,"Indicatore","(titolo)"]
[null,"Cosa misura",null,null,null,null,null,null,null,null,null,"Cosa misura"]
[null,"Tipologia","Unità di misura","Algoritmo di calcolo","Fonte dei dati","Ultimo valore osservato","Risultato atteso anno n","Risultato atteso anno n+1","Risultato atteso anno n+2",null,null,"Tipologia","Unità di misura","Algoritmo di calcolo","Fonte dei dati","Ultimo valore osservato","Risultato atteso anno n","Risultato atteso anno n+1","Risultato atteso anno n+2"]
[]
[null,"Se altro, indicare qui","Se altro, indicare qui",null,"Se altro, indicare qui",null,null,null,null,null,null,"Se altro, indicare qui","Se altro, indicare qui",null,"Se altro, indicare qui"]
[]
[null,"Indicatore","(titolo)",null,null,null,null,null,null,null,null,"Indicatore"]
[null,"Cosa misura",null,null,null,null,null,null,null,null,null,"Cosa misura"]
[null,"Tipologia","Unità di misura","Algoritmo di calcolo","Fonte dei dati","Ultimo valore osservato","Risultato atteso anno n","Risultato atteso anno n+1","Risultato atteso anno n+2",null,null,"Tipologia","Unità di misura","Algoritmo di calcolo","Fonte dei dati","Ultimo valore osservato","Risultato atteso anno n","Risultato atteso anno n+1","Risultato atteso anno n+2"]
[]
[null,"Se altro, indicare qui","Se altro, indicare qui",null,"Se altro, indicare qui",null,null,null,null,null,null,"Se altro, indicare qui","Se altro, indicare qui",null,"Se altro, indicare qui"]
[]
[null,"Indicatore","(titolo)",null,null,null,null,null,null,null,null,"Indicatore"]
[null,"Cosa misura",null,null,null,null,null,null,null,null,null,"Cosa misura"]
[null,"Tipologia","Unità di misura","Algoritmo di calcolo","Fonte dei dati","Ultimo valore osservato","Risultato atteso anno n","Risultato atteso anno n+1","Risultato atteso anno n+2",null,null,"Tipologia","Unità di misura","Algoritmo di calcolo","Fonte dei dati","Ultimo valore osservato","Risultato atteso anno n","Risultato atteso anno n+1","Risultato atteso anno n+2"]
[]
[null,"Se altro, indicare qui","Se altro, indicare qui",null,"Se altro, indicare qui",null,null,null,null,null,null,"Se altro, indicare qui","Se altro, indicare qui",null,"Se altro, indicare qui"]
[]
[null,"Missione","012 - Regolazione dei mercati",null,null,null,null,null,null,null,null,"Missione","012 - Regolazione dei mercati"]
[]
[null,"Programma","004 - Vigilanza sui mercati e sui prodotti, promozione della concorrenza e tutela dei consumatori",null,null,null,null,null,null,null,null,"Programma","004 - Vigilanza sui mercati e sui prodotti, promozione della concorrenza e tutela dei consumatori"]
[]
[]
[null,"Obiettivo","Titolo",{"$f":"+Generale!H8","v":0},null,null,null,null,null,null,null,"Obiettivo","Titolo",{"$f":"+Generale!H12","v":0}]
[null,null,"Descrizione",null,null,null,null,null,null,null,null,null,"Descrizione"]
[null,null,"Arco temporale realizzazione",null,null,null,null,null,null,null,null,null,"Arco temporale  realizzazione"]
[null,null,"Centro di responsabilità",null,null,null,null,null,null,null,null,null,"Centro di responsabilità"]
[null,null,"Risorse finanziarie",null,null,null,null,null,null,null,null,null,"Risorse finanziarie"]
[null,{"$f":"+Generale!G8","v":""},null,null,null,null,null,null,null,null,null,{"$f":"+Generale!G12","v":""}]
[null,null,"Nr indicatori associati",1,"<<< nb: indicare preventivamente il Nr indicatori associati all'obiettivo",null,null,null,null,null,null,null,"Nr indicatori associati",1,"<<< nb: indicare preventivamente il Nr indicatori associati all'obiettivo"]
[]
[]
[null,null,null,null,null,null,null,null,null,null,null,"Indicatore","(titolo)"]
[null,null,null,null,null,null,null,null,null,null,null,"Cosa misura"]
[null,null,null,null,null,null,null,null,null,null,null,"Tipologia","Unità di misura","Algoritmo di calcolo","Fonte dei dati","Ultimo valore osservato","Risultato atteso anno n","Risultato atteso anno n+1","Risultato atteso anno n+2"]
[]
[null,null,null,null,null,null,null,null,null,null,null,"Se altro, indicare qui","Se altro, indicare qui",null,"Se altro, indicare qui"]
[]
[null,"Indicatore","(titolo)",null,null,null,null,null,null,null,null,"Indicatore","(titolo)"]
[null,"Cosa misura",null,null,null,null,null,null,null,null,null,"Cosa misura"]
[null,"Tipologia","Unità di misura","Algoritmo di calcolo","Fonte dei dati","Ultimo valore osservato","Risultato atteso anno n","Risultato atteso anno n+1","Risultato atteso anno n+2",null,null,"Tipologia","Unità di misura","Algoritmo di calcolo","Fonte dei dati","Ultimo valore osservato","Risultato atteso anno n","Risultato atteso anno n+1","Risultato atteso anno n+2"]
[]
[null,"Se altro, indicare qui","Se altro, indicare qui",null,"Se altro, indicare qui",null,null,null,null,null,null,"Se altro, indicare qui","Se altro, indicare qui",null,"Se altro, indicare qui"]
[]
[null,"Indicatore","(titolo)",null,null,null,null,null,null,null,null,"Indicatore","(titolo)"]
[null,"Cosa misura",null,null,null,null,null,null,null,null,null,"Cosa misura"]
[null,"Tipologia","Unità di misura","Algoritmo di calcolo","Fonte dei dati","Ultimo valore osservato","Risultato atteso anno n","Risultato atteso anno n+1","Risultato atteso anno n+2",null,null,"Tipologia","Unità di misura","Algoritmo di calcolo","Fonte dei dati","Ultimo valore osservato","Risultato atteso anno n","Risultato atteso anno n+1","Risultato atteso anno n+2"]
[]
[null,"Se altro, indicare qui","Se altro, indicare qui",null,"Se altro, indicare qui",null,null,null,null,null,null,"Se altro, indicare qui","Se altro, indicare qui",null,"Se altro, indicare qui"]
[]
[null,"Indicatore","(titolo)",null,null,null,null,null,null,null,null,"Indicatore","(titolo)"]
[null,"Cosa misura",null,null,null,null,null,null,null,null,null,"Cosa misura"]
[null,"Tipologia","Unità di misura","Algoritmo di calcolo","Fonte dei dati","Ultimo valore osservato","Risultato atteso anno n","Risultato atteso anno n+1","Risultato atteso anno n+2",null,null,"Tipologia","Unità di misura","Algoritmo di calcolo","Fonte dei dati","Ultimo valore osservato","Risultato atteso anno n","Risultato atteso anno n+1","Risultato atteso anno n+2"]
[]
[null,"Se altro, indicare qui","Se altro, indicare qui",null,"Se altro, indicare qui",null,null,null,null,null,null,"Se altro, indicare qui","Se altro, indicare qui",null,"Se altro, indicare qui"]
[]
[null,"Indicatore","(titolo)",null,null,null,null,null,null,null,null,"Indicatore","(titolo)"]
[null,"Cosa misura"]
[null,"Tipologia","Unità di misura","Algoritmo di calcolo","Fonte dei dati","Ultimo valore osservato","Risultato atteso anno n","Risultato atteso anno n+1","Risultato atteso anno n+2",null,null,"Tipologia","Unità di misura","Algoritmo di calcolo","Fonte dei dati","Ultimo valore osservato","Risultato atteso anno n","Risultato atteso anno n+1","Risultato atteso anno n+2"]
[]
[null,"Se altro, indicare qui","Se altro, indicare qui",null,"Se altro, indicare qui",null,null,null,null,null,null,"Se altro, indicare qui","Se altro, indicare qui",null,"Se altro, indicare qui"]
[]
[null,"Obiettivo","Titolo",{"$f":"+Generale!H9","v":0},null,null,null,null,null,null,null,"Obiettivo","Titolo",{"$f":"+Generale!H13","v":0}]
[null,null,"Descrizione",null,null,null,null,null,null,null,null,null,"Descrizione"]
[null,null,"Arco temporale realizzazione",null,null,null,null,null,null,null,null,null,"Arco temporale realizzazione"]
[null,null,"Centro di responsabilità",null,null,null,null,null,null,null,null,null,"Centro di responsabilità"]
[null,null,"Risorse finanziarie",null,null,null,null,null,null,null,null,null,"Risorse finanziarie"]
[null,{"$f":"+Generale!G9","v":""},null,null,null,null,null,null,null,null,null,{"$f":"+Generale!G13","v":""}]
[null,null,"Nr indicatori associati",1,"<<< nb: indicare preventivamente il Nr indicatori associati all'obiettivo",null,null,null,null,null,null,null,"Nr indicatori associati",1,"<<< nb: indicare preventivamente il Nr indicatori associati all'obiettivo"]
[]
[]
[null,"Indicatore","(titolo)",null,null,null,null,null,null,null,null,"Indicatore","(titolo)"]
[null,"Cosa misura",null,null,null,null,null,null,null,null,null,"Cosa misura"]
[null,"Tipologia","Unità di misura","Algoritmo di calcolo","Fonte dei dati","Ultimo valore osservato","Risultato atteso anno n","Risultato atteso anno n+1","Risultato atteso anno n+2",null,null,"Tipologia","Unità di misura","Algoritmo di calcolo","Fonte dei dati","Ultimo valore osservato","Risultato atteso anno n","Risultato atteso anno n+1","Risultato atteso anno n+2"]
[]
[null,"Se altro, indicare qui","Se altro, indicare qui",null,"Se altro, indicare qui",null,null,null,null,null,null,"Se altro, indicare qui","Se altro, indicare qui",null,"Se altro, indicare qui"]
[]
[null,"Indicatore","(titolo)",null,null,null,null,null,null,null,null,"Indicatore","(titolo)"]
[null,"Cosa misura",null,null,null,null,null,null,null,null,null,"Cosa misura"]
[null,"Tipologia","Unità di misura","Algoritmo di calcolo","Fonte dei dati","Ultimo valore osservato","Risultato atteso anno n","Risultato atteso anno n+1","Risultato atteso anno n+2",null,null,"Tipologia","Unità di misura","Algoritmo di calcolo","Fonte dei dati","Ultimo valore osservato","Risultato atteso anno n","Risultato atteso anno n+1","Risultato atteso anno n+2"]
[]
[null,"Se altro, indicare qui","Se altro, indicare qui",null,"Se altro, indicare qui",null,null,null,null,null,null,"Se altro, indicare qui","Se altro, indicare qui",null,"Se altro, indicare qui"]
[]
[null,"Indicatore","(titolo)",null,null,null,null,null,null,null,null,"Indicatore","(titolo)"]
[null,"Cosa misura",null,null,null,null,null,null,null,null,null,"Cosa misura"]
[null,"Tipologia","Unità di misura","Algoritmo di calcolo","Fonte dei dati","Ultimo valore osservato","Risultato atteso anno n","Risultato atteso anno n+1","Risultato atteso anno n+2",null,null,"Tipologia","Unità di misura","Algoritmo di calcolo","Fonte dei dati","Ultimo valore osservato","Risultato atteso anno n","Risultato atteso anno n+1","Risultato atteso anno n+2"]
[]
[null,"Se altro, indicare qui","Se altro, indicare qui",null,"Se altro, indicare qui",null,null,null,null,null,null,"Se altro, indicare qui","Se altro, indicare qui",null,"Se altro, indicare qui"]
[]
[null,"Indicatore","(titolo)",null,null,null,null,null,null,null,null,"Indicatore","(titolo)"]
[null,"Cosa misura",null,null,null,null,null,null,null,null,null,"Cosa misura"]
[null,"Tipologia","Unità di misura","Algoritmo di calcolo","Fonte dei dati","Ultimo valore osservato","Risultato atteso anno n","Risultato atteso anno n+1","Risultato atteso anno n+2",null,null,"Tipologia","Unità di misura","Algoritmo di calcolo","Fonte dei dati","Ultimo valore osservato","Risultato atteso anno n","Risultato atteso anno n+1","Risultato atteso anno n+2"]
[]
[null,"Se altro, indicare qui","Se altro, indicare qui",null,"Se altro, indicare qui",null,null,null,null,null,null,"Se altro, indicare qui","Se altro, indicare qui",null,"Se altro, indicare qui"]
[]
[null,"Indicatore","(titolo)",null,null,null,null,null,null,null,null,"Indicatore","(titolo)"]
[null,"Cosa misura",null,null,null,null,null,null,null,null,null,"Cosa misura"]
[null,"Tipologia","Unità di misura","Algoritmo di calcolo","Fonte dei dati","Ultimo valore osservato","Risultato atteso anno n","Risultato atteso anno n+1","Risultato atteso anno n+2",null,null,"Tipologia","Unità di misura","Algoritmo di calcolo","Fonte dei dati","Ultimo valore osservato","Risultato atteso anno n","Risultato atteso anno n+1","Risultato atteso anno n+2"]
[]
[null,"Se altro, indicare qui","Se altro, indicare qui",null,"Se altro, indicare qui",null,null,null,null,null,null,"Se altro, indicare qui","Se altro, indicare qui",null,"Se altro, indicare qui"]

{"sheet":"005_Internazionalizzazione","index":3,"n_rows":153,"n_cols":19,"rows_kept":153,"cut":false,"hidden":false,"merged":[[97,2,97,8],[97,12,97,18],[118,3,118,8],[118,13,118,18],[104,2,104,8],[104,12,104,18],[109,2,109,8],[109,12,109,18],[98,2,98,8],[98,12,98,18],[131,2,131,8],[131,12,131,18],[110,2,110,8],[110,12,110,18],[125,2,125,8],[125,12,125,18],[130,2,130,8],[130,12,130,18],[103,2,103,8],[103,12,103,18],[119,3,119,8],[119,13,119,18],[123,1,123,8],[123,11,123,18],[124,2,124,8],[124,12,124,18],[115,1,119,1],[115,3,115,8],[115,11,119,11],[115,13,115,18],[116,3,116,8],[116,13,116,18],[117,3,117,8],[117,13,117,18],[149,2,149,8],[149,12,149,18],[136,2,136,8],[136,12,136,18],[137,2,137,8],[137,12,137,18],[142,2,142,8],[142,12,142,18],[148,2,148,8],[148,12,148,18],[143,2,143,8],[143,12,143,18],[86,2,86,8],[86,12,86,18],[92,2,92,8],[92,12,92,18],[80,3,80,8],[80,13,80,18],[84,1,84,8],[84,11,84,18],[85,2,85,8],[85,12,85,18],[91,2,91,8],[91,12,91,18],[76,11,80,11],[76,13,76,18],[77,3,77,8],[77,13,77,18],[78,3,78,8],[78,13,78,18],[79,3,79,8],[79,13,79,18],[76,1,80,1],[76,3,76,8],[74,0,74,1],[48,2,48,8],[48,12,48,18],[65,2,65,8],[65,12,65,18],[53,2,53,8],[59,12,59,18],[53,12,53,18],[54,2,54,8],[54,12,54,18],[59,2,59,8],[66,2,66,8],[66,12,66,18],[60,2,60,8],[60,12,60,18],[71,2,71,8],[71,12,71,18],[73,2,73,8],[73,12,73,18],[72,0,72,1],[32,1,36,1],[32,3,32,8],[32,11,36,11],[35,3,35,8],[35,13,35,18],[41,2,41,8],[36,3,36,8],[36,13,36,18],[40,1,40,8],[42,2,42,8],[42,12,42,18],[47,2,47,8],[47,12,47,18],[32,13,32,18],[27,2,27,8],[27,12,27,18],[40,11,40,18],[33,3,33,8],[33,13,33,18],[34,3,34,8],[34,13,34,18],[41,12,41,18],[14,12,14,18],[26,2,26,8],[26,12,26,18],[15,2,15,8],[15,12,15,18],[20,2,20,8],[21,12,21,18],[20,12,20,18],[21,2,21,8],[13,11,13,18],[5,11,9,11],[5,13,5,18],[6,13,6,18],[7,13,7,18],[8,13,8,18],[0,2,0,8],[0,12,0,18],[1,0,1,1],[2,2,2,8],[2,12,2,18],[9,13,9,18],[3,0,3,1],[4,0,4,8],[5,1,9,1],[5,3,5,8],[6,3,6,8],[7,3,7,8],[8,3,8,8],[9,3,9,8],[13,1,13,8]]}
[null,"Missione","016 - Commercio internazionale ed internazionalizzazione del sistema produttivo",null,null,null,null,null,null,null,null,"Missione","016 - Commercio internazionale ed internazionalizzazione del sistema produttivo"]
[]
[null,"Programma","005 - Sostegno all'internazionalizzazione delle imprese e promozione del made in Italy",null,null,null,null,null,null,null,null,"Programma","005 - Sostegno all'internazionalizzazione delle imprese e promozione del made in Italy"]
[]
[]
[null,"Obiettivo","Titolo",{"$f":"+Generale!K6","v":"Fornire supporto e competenze per sostenere l'esportazione nel Mercato unico e mercati internazionali "},null,null,null,null,null,null,null,"Obiettivo","Titolo",{"$f":"+Generale!K10","v":0}]
[null,null,"Descrizione","Attività di accompagnamento e consulenza ad aziende del territorio volte ad incrementare l'esportazione ed i rapporti commerciali con partner esteri",null,null,null,null,null,null,null,null,"Descrizione"]
[null,null,"Arco temporale realizzazione","Triennio",null,null,null,null,null,null,null,null,"Arco temporale realizzazione"]
[null,null,"Centro di responsabilità","Area Impresa e Territorio - Area Amministrazione interna e Servizi alle CCIAA",null,null,null,null,null,null,null,null,"Centro di responsabilità"]
[null,null,"Risorse economiche","Triennio: 925.000",null,null,null,null,null,null,null,null,"Risorse finanziarie"]
[null,{"$f":"+Generale!J6","v":"016-005-001"},null,null,null,null,null,null,null,null,null,{"$f":"+Generale!J10","v":""}]
[null,null,"Nr indicatori associati",6,"<<< nb: indicare preventivamente il Nr indicatori associati all'obiettivo",null,null,null,null,null,null,null,"Nr indicatori associati",null,"<<< nb: indicare preventivamente il Nr indicatori associati all'obiettivo"]
[]
[]
[null,"Indicatore","Grado di partecipazione alle iniziative di internazionalizzazione in mercati esteri",null,null,null,null,null,null,null,null,"Indicatore","(titolo)"]
[null,"Cosa misura","Misura il grado di partecipazione alle iniziative dell' Ente in tema di internazionalizzazione",null,null,null,null,null,null,null,null,"Cosa misura"]
[null,"Tipologia","Unità di misura","Algoritmo di calcolo","Fonte dei dati","Ultimo valore osservato - cons. 2021","Risultato atteso anno 2023","Risultato atteso anno 2024","Risultato atteso anno 2025",null,null,"Tipologia","Unità di misura","Algoritmo di calcolo","Fonte dei dati","Ultimo valore osservato","Risultato atteso anno n","Risultato atteso anno n+1","Risultato atteso anno n+2"]
[null,"altre tipologie (specificare sotto)","Valore assoluto","Imprese della regione che hanno aderito alle iniziative di internazionalizzazione realizzate dall'ente","Altro (specificare sotto)",275,300,300,300]
[null,"Efficacia","Se altro, indicare qui",null,"Relazione attività",null,null,null,null,null,null,"Se altro, indicare qui","Se altro, indicare qui",null,"Se altro, indicare qui"]
[]
[null,"Indicatore","Partecipazione a seminari per operatori sul tema dell'internazionalizzazione",null,null,null,null,null,null,null,null,"Indicatore"]
[null,"Cosa misura","Qualificazione del capitale umano del territorio (aziende e professionisti) sul tema dell'internazionalizzazione",null,null,null,null,null,null,null,null,"Cosa misura"]
[null,"Tipologia","Unità di misura","Algoritmo di calcolo","Fonte dei dati","Ultimo valore osservato - cons. 2021","Risultato atteso anno 2023","Risultato atteso anno 2024","Risultato atteso anno 2025",null,null,"Tipologia","Unità di misura","Algoritmo di calcolo","Fonte dei dati","Ultimo valore osservato","Risultato atteso anno n","Risultato atteso anno n+1","Risultato atteso anno n+2"]
[null,"di realizzazione fisica","Valore assoluto","numero di partecipanti anno","Altro (specificare sotto)",1000,1000,1000,1000]
[null,"Se altro, indicare qui","Se altro, indicare qui",null,"Relazione attività",null,null,null,null,null,null,"Se altro, indicare qui","Se altro, indicare qui",null,"Se altro, indicare qui"]
[]
[null,"Indicatore","Incidenza personale dedicato alle attvità di internazionalizzazione",null,null,null,null,null,null,null,null,"Indicatore","(titolo)"]
[null,"Cosa misura","Misura l'impegno dell'Unione regionale nell'offrire servizi di internazionalizzazione",null,null,null,null,null,null,null,null,"Cosa misura"]
[null,"Tipologia","Unità di misura","Algoritmo di calcolo","Fonte dei dati","Ultimo valore osservato - cons. 2021","Risultato atteso anno 2023","Risultato atteso anno 2024","Risultato atteso anno 2025",null,null,"Tipologia","Unità di misura","Algoritmo di calcolo","Fonte dei dati","Ultimo valore osservato","Risultato atteso anno n","Risultato atteso anno n+1","Risultato atteso anno n+2"]
[null,null,"Percentuale","Personale (espresso in FTE) impiegato in attività di internazionalizzazione nell'anno \"n\"-1/Personale (espresso in FTE) impiegato nell'anno \"n\"","Altro (specificare sotto)",{"$f":"4/28","v":0.14285714285714285},{"$f":"F30","v":0.14285714285714285},{"$f":"G30","v":0.14285714285714285},0.14285714285714285]
[null,"Qualità","Se altro, indicare qui",null,"rilevazione interna UR",null,null,null,null,null,null,"Se altro, indicare qui","Se altro, indicare qui",null,"Se altro, indicare qui"]
[]
[null,"Obiettivo","Titolo",{"$f":"+Generale!K7","v":"Attivare meccanismi di ricerca ed individuazione di partner esteri "},null,null,null,null,null,null,null,"Obiettivo","Titolo",{"$f":"+Generale!K11","v":0}]
[null,null,"Descrizione","Attività di ricerca partnership commerciale, tecnologica e di ricerca",null,null,null,null,null,null,null,null,"Descrizione"]
[null,null,"Arco temporale per la realizzazione","Triennio",null,null,null,null,null,null,null,null,"Arco temporale per la realizzazione"]
[null,null,"Centro di responsabilità","Area Impresa e Territorio",null,null,null,null,null,null,null,null,"Centro di responsabilità"]
[null,null,"Risorse finanziarie"," Triennio: 75.000",null,null,null,null,null,null,null,null,"Risorse finanziarie"]
[null,{"$f":"+Generale!J7","v":"016-005-002"},null,null,null,null,null,null,null,null,null,{"$f":"+Generale!J11","v":""}]
[null,null,"Nr indicatori associati",4,"<<< nb: indicare preventivamente il Nr indicatori associati all'obiettivo",null,null,null,null,null,null,null,"Nr indicatori associati",null,"<<< nb: indicare preventivamente il Nr indicatori associati all'obiettivo"]
[]
[]
[null,"Indicatore","Incontri B2B organizzati per aziende venete",null,null,null,null,null,null,null,null,"Indicatore","(titolo)"]
[null,"Cosa misura","Numero di incontri calendarizzati ed effettuati da aziende venete con aziende straniere",null,null,null,null,null,null,null,null,"Cosa misura"]
[null,"Tipologia","Unità di misura","Algoritmo di calcolo","Fonte dei dati","Ultimo valore osservato - cons. 2021","Risultato atteso anno 2023","Risultato atteso anno 2024","Risultato atteso anno 2025",null,null,"Tipologia","Unità di misura","Algoritmo di calcolo","Fonte dei dati","Ultimo valore osservato","Risultato atteso anno n","Risultato atteso anno n+1","Risultato atteso anno n+2"]
[null,"di realizzazione fisica","Valore assoluto","numero di incontri","Altro (specificare sotto)",9,12,12,12]
[null,"Se altro, indicare qui","Se altro, indicare qui",null,"Relazione attività",null,null,null,null,null,null,"Se altro, indicare qui","Se altro, indicare qui",null,"Se altro, indicare qui"]
[]
[null,"Indicatore","Profili inseriti nel database di EACI \"Merlin\"",null,null,null,null,null,null,null,null,"Indicatore","(titolo)"]
[null,"Cosa misura","Attività dell'ufficio svolta per elaborare profili di collaborazione commerciale, tecnologica e di ricerca con partner esteri",null,null,null,null,null,null,null,null,"Cosa misura"]
[null,"Tipologia","Unità di misura","Algoritmo di calcolo","Fonte dei dati","Ultimo valore osservato - cons. 2021","Risultato atteso anno 2023","Risultato atteso anno 2024","Risultato atteso anno 2025",null,null,"Tipologia","Unità di misura","Algoritmo di calcolo","Fonte dei dati","Ultimo valore osservato","Risultato atteso anno n","Risultato atteso anno n+1","Risultato atteso anno n+2"]
[null,"di realizzazione fisica","Valore assoluto","numero di profili inseriti e validati nel POD","Altro (specificare sotto)",5,5,5,5]
[null,"Se altro, indicare qui","Se altro, indicare qui",null,"database europeo POD",null,null,null,null,null,null,"Se altro, indicare qui","Se altro, indicare qui",null,"Se altro, indicare qui"]
[]
[null,"Indicatore","Espressione d'interesse ricevute",null,null,null,null,null,null,null,null,"Indicatore","(titolo)"]
[null,"Cosa misura","Interesse di aziende estere nei profili di aziende venete inserite nel database europeo POD",null,null,null,null,null,null,null,null,"Cosa misura"]
[null,"Tipologia","Unità di misura","Algoritmo di calcolo","Fonte dei dati","Ultimo valore osservato - cons. 2021","Risultato atteso anno 2023","Risultato atteso anno 2024","Risultato atteso anno 2025",null,null,"Tipologia","Unità di misura","Algoritmo di calcolo","Fonte dei dati","Ultimo valore osservato","Risultato atteso anno n","Risultato atteso anno n+1","Risultato atteso anno n+2"]
[null,"di risultato (otuput)","Percentuale","numero di profili inseriti/numero di espressioni di interesse ricevute","Altro (specificare sotto)",119,120,120,120]
[null,"Se altro, indicare qui","Se altro, indicare qui",null,"database europeo POD",null,null,null,null,null,null,"Se altro, indicare qui","Se altro, indicare qui",null,"Se altro, indicare qui"]
[]
[null,"Indicatore","Accordi sottoscritti",null,null,null,null,null,null,null,null,"Indicatore"]
[null,"Cosa misura","Il numero di accordi raggiunti dalle aziende che hanno inserito un profilo di collaborazione in POD",null,null,null,null,null,null,null,null,"Cosa misura"]
[null,"Tipologia","Unità di misura","Algoritmo di calcolo","Fonte dei dati","Ultimo valore osservato - cons. 2021","Risultato atteso anno 2023","Risultato atteso anno 2024","Risultato atteso anno 2025",null,null,"Tipologia","Unità di misura","Algoritmo di calcolo","Fonte dei dati","Ultimo valore osservato","Risultato atteso anno n","Risultato atteso anno n+1","Risultato atteso anno n+2"]
[null,"di impatto (outcome)","Valore assoluto","numero achievement","Altro (specificare sotto)",10,10,10,10]
[null,"Se altro, indicare qui","Se altro, indicare qui",null,"documentazione ufficiale prevista da modulistica EEN",null,null,null,null,null,null,"Se altro, indicare qui","Se altro, indicare qui",null,"Se altro, indicare qui"]
[]
[null,"Indicatore","(titolo)",null,null,null,null,null,null,null,null,"Indicatore"]
[null,"Cosa misura",null,null,null,null,null,null,null,null,null,"Cosa misura"]
[null,"Tipologia","Unità di misura","Algoritmo di calcolo","Fonte dei dati","Ultimo valore osservato","Risultato atteso anno n","Risultato atteso anno n+1","Risultato atteso anno n+2",null,null,"Tipologia","Unità di misura","Algoritmo di calcolo","Fonte dei dati","Ultimo valore osservato","Risultato atteso anno n","Risultato atteso anno n+1","Risultato atteso anno n+2"]
[]
[null,"Se altro, indicare qui","Se altro, indicare qui",null,"Se altro, indicare qui",null,null,null,null,null,null,"Se altro, indicare qui","Se altro, indicare qui",null,"Se altro, indicare qui"]
[]
[null,"Missione","016 - Commercio internazionale ed internazionalizzazione del sistema produttivo",null,null,null,null,null,null,null,null,"Missione","016 - Commercio internazionale ed internazionalizzazione del sistema produttivo"]
[]
[null,"Programma","005 - Sostegno all'internazionalizzazione delle imprese e promozione del made in Italy",null,null,null,null,null,null,null,null,"Programma","005 - Sostegno all'internazionalizzazione delle imprese e promozione del made in Italy"]
[]
[]
[null,"Obiettivo","Titolo",{"$f":"+Generale!K8","v":0},null,null,null,null,null,null,null,"Obiettivo","Titolo",{"$f":"+Generale!K12","v":0}]
[null,null,"Descrizione",null,null,null,null,null,null,null,null,null,"Descrizione"]
[null,null,"Arco temporale realizzazione",null,null,null,null,null,null,null,null,null,"Arco temporale  realizzazione"]
[null,null,"Centro di responsabilità",null,null,null,null,null,null,null,null,null,"Centro di responsabilità"]
[null,null,"Risorse finanziarie",null,null,null,null,null,null,null,null,null,"Risorse finanziarie"]
[null,{"$f":"+Generale!J8","v":""},null,null,null,null,null,null,null,null,null,{"$f":"+Generale!J12","v":""}]
[null,null,"Nr indicatori associati",1,"<<< nb: indicare preventivamente il Nr indicatori associati all'obiettivo",null,null,null,null,null,null,null,"Nr indicatori associati",null,"<<< nb: indicare preventivamente il Nr indicatori associati all'obiettivo"]
[]
[]
[null,"Indicatore","(titolo)",null,null,null,null,null,null,null,null,"Indicatore","(titolo)"]
[null,"Cosa misura",null,null,null,null,null,null,null,null,null,"Cosa misura"]
[null,"Tipologia","Unità di misura","Algoritmo di calcolo","Fonte dei dati","Ultimo valore osservato","Risultato atteso anno n","Risultato atteso anno n+1","Risultato atteso anno n+2",null,null,"Tipologia","Unità di misura","Algoritmo di calcolo","Fonte dei dati","Ultimo valore osservato","Risultato atteso anno n","Risultato atteso anno n+1","Risultato atteso anno n+2"]
[]
[null,"Se altro, indicare qui","Se altro, indicare qui",null,"Se altro, indicare qui",null,null,null,null,null,null,"Se altro, indicare qui","Se altro, indicare qui",null,"Se altro, indicare qui"]
[]
[null,"Indicatore","(titolo)",null,null,null,null,null,null,null,null,"Indicatore","(titolo)"]
[null,"Cosa misura",null,null,null,null,null,null,null,null,null,"Cosa misura"]
[null,"Tipologia","Unità di misura","Algoritmo di calcolo","Fonte dei dati","Ultimo valore osservato","Risultato atteso anno n","Risultato atteso anno n+1","Risultato atteso anno n+2",null,null,"Tipologia","Unità di misura","Algoritmo di calcolo","Fonte dei dati","Ultimo valore osservato","Risultato atteso anno n","Risultato atteso anno n+1","Risultato atteso anno n+2"]
[]
[null,"Se altro, indicare qui","Se altro, indicare qui",null,"Se altro, indicare qui",null,null,null,null,null,null,"Se altro, indicare qui","Se altro, indicare qui",null,"Se altro, indicare qui"]
[]
[null,"Indicatore","(titolo)",null,null,null,null,null,null,null,null,"Indicatore","(titolo)"]
[null,"Cosa misura",null,null,null,null,null,null,null,null,null,"Cosa misura"]
[null,"Tipologia","Unità di misura","Algoritmo di calcolo","Fonte dei dati","Ultimo valore osservato","Risultato atteso anno n","Risultato atteso anno n+1","Risultato atteso anno n+2",null,null,"Tipologia","Unità di misura","Algoritmo di calcolo","Fonte dei dati","Ultimo valore osservato","Risultato atteso anno n","Risultato atteso anno n+1","Risultato atteso anno n+2"]
[]
[null,"Se altro, indicare qui","Se altro, indicare qui",null,"Se altro, indicare qui",null,null,null,null,null,null,"Se altro, indicare qui","Se altro, indicare qui",null,"Se altro, indicare qui"]
[]
[null,"Indicatore","(titolo)",null,null,null,null,null,null,null,null,"Indicatore","(titolo)"]
[null,"Cosa misura",null,null,null,null,null,null,null,null,null,"Cosa misura"]
[null,"Tipologia","Unità di misura","Algoritmo di calcolo","Fonte dei dati","Ultimo valore osservato","Risultato atteso anno n","Risultato atteso anno n+1","Risultato atteso anno n+2",null,null,"Tipologia","Unità di misura","Algoritmo di calcolo","Fonte dei dati","Ultimo valore osservato","Risultato atteso anno n","Risultato atteso anno n+1","Risultato atteso anno n+2"]
[]
[null,"Se altro, indicare qui","Se altro, indicare qui",null,"Se altro, indicare qui",null,null,null,null,null,null,"Se altro, indicare qui","Se altro, indicare qui",null,"Se altro, indicare qui"]
[]
[null,"Indicatore","(titolo)",null,null,null,null,null,null,null,null,"Indicatore","(titolo)"]
[null,"Cosa misura"]
[null,"Tipologia","Unità di misura","Algoritmo di calcolo","Fonte dei dati","Ultimo valore osservato","Risultato atteso anno n","Risultato atteso anno n+1","Risultato atteso anno n+2",null,null,"Tipologia","Unità di misura","Algoritmo di calcolo","Fonte dei dati","Ultimo valore osservato","Risultato atteso anno n","Risultato atteso anno n+1","Risultato atteso anno n+2"]
[]
[null,"Se altro, indicare qui","Se altro, indicare qui",null,"Se altro, indicare qui",null,null,null,null,null,null,"Se altro, indicare qui","Se altro, indicare qui",null,"Se altro, indicare qui"]
[]
[null,"Obiettivo","Titolo",{"$f":"+Generale!K9","v":0},null,null,null,null,null,null,null,"Obiettivo","Titolo",{"$f":"+Generale!K13","v":0}]
[null,null,"Descrizione",null,null,null,null,null,null,null,null,null,"Descrizione"]
[null,null,"Arco temporale realizzazione",null,null,null,null,null,null,null,null,null,"Arco temporale realizzazione"]
[null,null,"Centro di responsabilità",null,null,null,null,null,null,null,null,null,"Centro di responsabilità"]
[null,null,"Risorse finanziarie",null,null,null,null,null,null,null,null,null,"Risorse finanziarie"]
[null,{"$f":"+Generale!J9","v":""},null,null,null,null,null,null,null,null,null,{"$f":"+Generale!J13","v":""}]
[null,null,"Nr indicatori associati",null,"<<< nb: indicare preventivamente il Nr indicatori associati all'obiettivo",null,null,null,null,null,null,null,"Nr indicatori associati",null,"<<< nb: indicare preventivamente il Nr indicatori associati all'obiettivo"]
[]
[]
[null,"Indicatore","(titolo)",null,null,null,null,null,null,null,null,"Indicatore","(titolo)"]
[null,"Cosa misura",null,null,null,null,null,null,null,null,null,"Cosa misura"]
[null,"Tipologia","Unità di misura","Algoritmo di calcolo","Fonte dei dati","Ultimo valore osservato","Risultato atteso anno n","Risultato atteso anno n+1","Risultato atteso anno n+2",null,null,"Tipologia","Unità di misura","Algoritmo di calcolo","Fonte dei dati","Ultimo valore osservato","Risultato atteso anno n","Risultato atteso anno n+1","Risultato atteso anno n+2"]
[]
[null,"Se altro, indicare qui","Se altro, indicare qui",null,"Se altro, indicare qui",null,null,null,null,null,null,"Se altro, indicare qui","Se altro, indicare qui",null,"Se altro, indicare qui"]
[]
[null,"Indicatore","(titolo)",null,null,null,null,null,null,null,null,"Indicatore","(titolo)"]
[null,"Cosa misura",null,null,null,null,null,null,null,null,null,"Cosa misura"]
[null,"Tipologia","Unità di misura","Algoritmo di calcolo","Fonte dei dati","Ultimo valore osservato","Risultato atteso anno n","Risultato atteso anno n+1","Risultato atteso anno n+2",null,null,"Tipologia","Unità di misura","Algoritmo di calcolo","Fonte dei dati","Ultimo valore osservato","Risultato atteso anno n","Risultato atteso anno n+1","Risultato atteso anno n+2"]
[]
[null,"Se altro, indicare qui","Se altro, indicare qui",null,"Se altro, indicare qui",null,null,null,null,null,null,"Se altro, indicare qui","Se altro, indicare qui",null,"Se altro, indicare qui"]
[]
[null,"Indicatore","(titolo)",null,null,null,null,null,null,null,null,"Indicatore","(titolo)"]
[null,"Cosa misura",null,null,null,null,null,null,null,null,null,"Cosa misura"]
[null,"Tipologia","Unità di misura","Algoritmo di calcolo","Fonte dei dati","Ultimo valore osservato","Risultato atteso anno n","Risultato atteso anno n+1","Risultato atteso anno n+2",null,null,"Tipologia","Unità di misura","Algoritmo di calcolo","Fonte dei dati","Ultimo valore osservato","Risultato atteso anno n","Risultato atteso anno n+1","Risultato atteso anno n+2"]
[]
[null,"Se altro, indicare qui","Se altro, indicare qui",null,"Se altro, indicare qui",null,null,null,null,null,null,"Se altro, indicare qui","Se altro, indicare qui",null,"Se altro, indicare qui"]
[]
[null,"Indicatore","(titolo)",null,null,null,null,null,null,null,null,"Indicatore","(titolo)"]
[null,"Cosa misura",null,null,null,null,null,null,null,null,null,"Cosa misura"]
[null,"Tipologia","Unità di misura","Algoritmo di calcolo","Fonte dei dati","Ultimo valore osservato","Risultato atteso anno n","Risultato atteso anno n+1","Risultato atteso anno n+2",null,null,"Tipologia","Unità di misura","Algoritmo di calcolo","Fonte dei dati","Ultimo valore osservato","Risultato atteso anno n","Risultato atteso anno n+1","Risultato atteso anno n+2"]
[]
[null,"Se altro, indicare qui","Se altro, indicare qui",null,"Se altro, indicare qui",null,null,null,null,null,null,"Se altro, indicare qui","Se altro, indicare qui",null,"Se altro, indicare qui"]
[]
[null,"Indicatore","(titolo)",null,null,null,null,null,null,null,null,"Indicatore","(titolo)"]
[null,"Cosa misura",null,null,null,null,null,null,null,null,null,"Cosa misura"]
[null,"Tipologia","Unità di misura","Algoritmo di calcolo","Fonte dei dati","Ultimo valore osservato","Risultato atteso anno n","Risultato atteso anno n+1","Risultato atteso anno n+2",null,null,"Tipologia","Unità di misura","Algoritmo di calcolo","Fonte dei dati","Ultimo valore osservato","Risultato atteso anno n","Risultato atteso anno n+1","Risultato atteso anno n+2"]
[]
[null,"Se altro, indicare qui","Se altro, indicare qui",null,"Se altro, indicare qui",null,null,null,null,null,null,"Se altro, indicare qui","Se altro, indicare qui",null,"Se altro, indicare qui"]

{"sheet":"002_Indirizzo politico","index":4,"n_rows":165,"n_cols":19,"rows_kept":165,"cut":false,"hidden":false,"merged":[[110,2,110,8],[110,12,110,18],[161,2,161,8],[161,12,161,18],[148,2,148,8],[148,12,148,18],[149,2,149,8],[149,12,149,18],[142,2,142,8],[142,12,142,18],[155,2,155,8],[155,12,155,18],[143,2,143,8],[143,12,143,18],[154,2,154,8],[154,12,154,18],[160,2,160,8],[160,12,160,18],[121,2,121,8],[121,12,121,18],[122,2,122,8],[122,12,122,18],[136,2,136,8],[136,12,136,18],[137,2,137,8],[137,12,137,18],[131,3,131,8],[131,13,131,18],[135,1,135,8],[135,11,135,18],[127,1,131,1],[127,3,127,8],[127,11,131,11],[127,13,127,18],[128,3,128,8],[128,13,128,18],[130,3,130,8],[130,13,130,18],[129,3,129,8],[129,13,129,18],[104,2,104,8],[104,12,104,18],[92,3,92,8],[92,13,92,18],[96,1,96,8],[96,11,96,18],[83,2,83,8],[83,12,83,18],[116,2,116,8],[116,12,116,18],[98,2,98,8],[98,12,98,18],[103,2,103,8],[103,12,103,18],[115,2,115,8],[115,12,115,18],[109,2,109,8],[109,12,109,18],[84,0,84,1],[85,2,85,8],[85,12,85,18],[86,0,86,1],[88,11,92,11],[88,13,88,18],[65,2,65,8],[65,12,65,18],[66,2,66,8],[66,12,66,18],[72,2,72,8],[72,12,72,18],[97,2,97,8],[97,12,97,18],[88,1,92,1],[88,3,88,8],[71,2,71,8],[71,12,71,18],[78,2,78,8],[78,12,78,18],[77,2,77,8],[77,12,77,18],[90,3,90,8],[90,13,90,18],[91,3,91,8],[91,13,91,18],[89,3,89,8],[89,13,89,18],[59,2,59,8],[59,12,59,18],[38,2,38,8],[38,12,38,18],[39,2,39,8],[39,12,39,18],[60,2,60,8],[60,12,60,18],[48,3,48,8],[48,13,48,18],[52,1,52,8],[52,11,52,18],[53,2,53,8],[53,12,53,18],[44,11,48,11],[44,13,44,18],[44,1,48,1],[44,3,44,8],[47,3,47,8],[47,13,47,18],[45,3,45,8],[45,13,45,18],[46,3,46,8],[46,13,46,18],[54,2,54,8],[54,12,54,18],[33,2,33,8],[33,12,33,18],[15,12,15,18],[20,2,20,8],[20,12,20,18],[5,11,9,11],[5,13,5,18],[6,3,6,8],[6,13,6,18],[7,3,7,8],[26,2,26,8],[26,12,26,18],[27,2,27,8],[27,12,27,18],[32,2,32,8],[32,12,32,18],[21,2,21,8],[21,12,21,18],[8,13,8,18],[9,3,9,8],[9,13,9,18],[13,1,13,8],[13,11,13,18],[14,2,14,8],[14,12,14,18],[15,2,15,8],[0,2,0,8],[0,12,0,18],[1,0,1,1],[2,2,2,8],[2,12,2,18],[7,13,7,18],[8,3,8,8],[3,0,3,1],[4,0,4,8],[5,1,9,1],[5,3,5,8]]}
[null,"Missione","032 - Servizi istituzionali e generali delle amministrazioni pubbliche",null,null,null,null,null,null,null,null,"Missione","032 - Servizi istituzionali e generali delle amministrazioni pubbliche"]
[]
[null,"Programma","002 - Indirizzo politico",null,null,null,null,null,null,null,null,"Programma","002 - Indirizzo politico"]
[]
[]
[null,"Obiettivo","Titolo",{"$f":"+Generale!N6","v":"Aumentare la trasparenza e la comunicazione interna ed esterna dell'Ente"},null,null,null,null,null,null,null,"Obiettivo","Titolo",{"$f":"+Generale!N10","v":0}]
[null,null,"Descrizione","Indica il grado di incremento della comunicazione istituzionale circa gli indirizzi strategici dell'Ente al pubblico",null,null,null,null,null,null,null,null,"Descrizione"]
[null,null,"Arco temporale realizzazione","Triennio",null,null,null,null,null,null,null,null,"Arco temporale realizzazione"]
[null,null,"Centro di responsabilità","Area Amministrazione interna e servizi alle CCIAA",null,null,null,null,null,null,null,null,"Centro di responsabilità"]
[null,null,"Risorse economiche","Triennio: 180.000",null,null,null,null,null,null,null,null,"Risorse finanziarie"]
[null,{"$f":"+Generale!M6","v":"032-002-001"},null,null,null,null,null,null,null,null,null,{"$f":"+Generale!M10","v":""}]
[null,null,"Nr indicatori associati",2,"<<< nb: indicare preventivamente il Nr indicatori associati all'obiettivo",null,null,null,null,null,null,null,"Nr indicatori associati",null,"<<< nb: indicare preventivamente il Nr indicatori associati all'obiettivo"]
[]
[]
[null,"Indicatore","Aumento della comunicazione  al pubblico",null,null,null,null,null,null,null,null,"Indicatore","(titolo)"]
[null,"Cosa misura","Misura l'incremento del numero di comunicazioni al pubblico e notizie diffuse tramite i siti web istituzionali e newletters periodiche ",null,null,null,null,null,null,null,null,"Cosa misura"]
[null,"Tipologia","Unità di misura","Algoritmo di calcolo","Fonte dei dati","Ultimo valore osservato - cons. 2021","Risultato atteso anno 2023","Risultato atteso anno 2024","Risultato atteso anno 2025",null,null,"Tipologia","Unità di misura","Algoritmo di calcolo","Fonte dei dati","Ultimo valore osservato","Risultato atteso anno n","Risultato atteso anno n+1","Risultato atteso anno n+2"]
[null,"altre tipologie (specificare sotto)","Percentuale","(nr comunicati stampa dell'Ente nell'anno n - nr comunicati stampa nell'anno n-1) /( nr comunicati stampa  nell'anno n-1) * 100","Altro (specificare sotto)",{"$f":"(58-49)/49","v":0.18367346938775511},0.2,0.2,0.2]
[null,"Qualità","Se altro, indicare qui",null,"Siti web istituzionali e newletters",null,null,null,null,null,null,"Se altro, indicare qui","Se altro, indicare qui",null,"Se altro, indicare qui"]
[]
[null,"Indicatore","Aumento della comunicazione agli organi e all'interno",null,null,null,null,null,null,null,null,"Indicatore"]
[null,"Cosa misura","Misura l'incremento del numero di comunicazioni agli organi camerali e all'interno attraverso le notizie diffuse tramite il portale dedicato agli organi e allo staff",null,null,null,null,null,null,null,null,"Cosa misura"]
[null,"Tipologia","Unità di misura","Algoritmo di calcolo","Fonte dei dati","Ultimo valore osservato - cons. 2021","Risultato atteso anno 2023","Risultato atteso anno 2024","Risultato atteso anno 2025",null,null,"Tipologia","Unità di misura","Algoritmo di calcolo","Fonte dei dati","Ultimo valore osservato","Risultato atteso anno n","Risultato atteso anno n+1","Risultato atteso anno n+2"]
[null,"altre tipologie (specificare sotto)","Percentuale","n° notizie comunicate agli organi nell'anno n - nr notizie comunicate agli organi e pubblicate nel portale interno nell'anno n-1) / n° notizie comunicate agli organi\nnel portale interno nell'anno n-1) * 100",null,0.01,0.01,0.01,0.01]
[null,"Qualità","Se altro, indicare qui",null,"Portale interno per gli organi",null,null,null,null,null,null,"Se altro, indicare qui","Se altro, indicare qui",null,"Se altro, indicare qui"]
[]
[null,"Indicatore","(titolo)",null,null,null,null,null,null,null,null,"Indicatore","(titolo)"]
[null,"Cosa misura",null,null,null,null,null,null,null,null,null,"Cosa misura"]
[null,"Tipologia","Unità di misura","Algoritmo di calcolo","Fonte dei dati","Ultimo valore osservato","Risultato atteso anno n","Risultato atteso anno n+1","Risultato atteso anno n+2",null,null,"Tipologia","Unità di misura","Algoritmo di calcolo","Fonte dei dati","Ultimo valore osservato","Risultato atteso anno n","Risultato atteso anno n+1","Risultato atteso anno n+2"]
[]
[null,"Se altro, indicare qui","Se altro, indicare qui",null,"Se altro, indicare qui",null,null,null,null,null,null,"Se altro, indicare qui","Se altro, indicare qui",null,"Se altro, indicare qui"]
[]
[null,"Indicatore","(titolo)",null,null,null,null,null,null,null,null,"Indicatore","(titolo)"]
[null,"Cosa misura",null,null,null,null,null,null,null,null,null,"Cosa misura"]
[null,"Tipologia","Unità di misura","Algoritmo di calcolo","Fonte dei dati","Ultimo valore osservato","Risultato atteso anno n","Risultato atteso anno n+1","Risultato atteso anno n+2",null,null,"Tipologia","Unità di misura","Algoritmo di calcolo","Fonte dei dati","Ultimo valore osservato","Risultato atteso anno n","Risultato atteso anno n+1","Risultato atteso anno n+2"]
[]
[null,"Se altro, indicare qui","Se altro, indicare qui",null,"Se altro, indicare qui",null,null,null,null,null,null,"Se altro, indicare qui","Se altro, indicare qui",null,"Se altro, indicare qui"]
[]
[null,"Indicatore","(titolo)",null,null,null,null,null,null,null,null,"Indicatore","(titolo)"]
[null,"Cosa misura",null,null,null,null,null,null,null,null,null,"Cosa misura"]
[null,"Tipologia","Unità di misura","Algoritmo di calcolo","Fonte dei dati","Ultimo valore osservato","Risultato atteso anno n","Risultato atteso anno n+1","Risultato atteso anno n+2",null,null,"Tipologia","Unità di misura","Algoritmo di calcolo","Fonte dei dati","Ultimo valore osservato","Risultato atteso anno n","Risultato atteso anno n+1","Risultato atteso anno n+2"]
[]
[null,"Se altro, indicare qui","Se altro, indicare qui",null,"Se altro, indicare qui",null,null,null,null,null,null,"Se altro, indicare qui","Se altro, indicare qui",null,"Se altro, indicare qui"]
[]
[null,"Obiettivo","Titolo",{"$f":"+Generale!N7","v":"Garantire uno sviluppo strategico delle attività e una capacità di risposta ed adattamento alle nuove esigenze degli associati"},null,null,null,null,null,null,null,"Obiettivo","Titolo",{"$f":"+Generale!N11","v":0}]
[null,null,"Descrizione","Indica il nr di decisioni prese nell'anno in condivisione con gli organi di governo dell'Ente",null,null,null,null,null,null,null,null,"Descrizione"]
[null,null,"Arco temporale per la realizzazione","Triennio",null,null,null,null,null,null,null,null,"Arco temporale per la realizzazione"]
[null,null,"Centro di responsabilità","Area Amministrazione interna e servizi alle CCIAA",null,null,null,null,null,null,null,null,"Centro di responsabilità"]
[null,null,"Risorse finanziarie","Triennio: 75.000",null,null,null,null,null,null,null,null,"Risorse finanziarie"]
[null,{"$f":"+Generale!M7","v":"032-002-002"},null,null,null,null,null,null,null,null,null,{"$f":"+Generale!M11","v":""}]
[null,null,"Nr indicatori associati",1,"<<< nb: indicare preventivamente il Nr indicatori associati all'obiettivo",null,null,null,null,null,null,null,"Nr indicatori associati",null,"<<< nb: indicare preventivamente il Nr indicatori associati all'obiettivo"]
[]
[]
[null,"Indicatore","Numero di decisioni e delibere di indirizzo/strategiche assunte nell' anno",null,null,null,null,null,null,null,null,"Indicatore","(titolo)"]
[null,"Cosa misura","Il numero di decisioni strategiche e di indirizzo assunte dalla Direzione ed Organi ",null,null,null,null,null,null,null,null,"Cosa misura"]
[null,"Tipologia","Unità di misura","Algoritmo di calcolo","Fonte dei dati","Ultimo valore osservato - cons. 2021","Risultato atteso anno 2023","Risultato atteso anno 2024","Risultato atteso anno 2025",null,null,"Tipologia","Unità di misura","Algoritmo di calcolo","Fonte dei dati","Ultimo valore osservato","Risultato atteso anno n","Risultato atteso anno n+1","Risultato atteso anno n+2"]
[null,"di risultato (otuput)","Valore assoluto","Numero di decisioni di indirizzo per l'anno",null,8,8,8,8]
[null,"Se altro, indicare qui","Se altro, indicare qui",null,"amministrazione trasparente UR",null,null,null,null,null,null,"Se altro, indicare qui","Se altro, indicare qui",null,"Se altro, indicare qui"]
[]
[null,"Indicatore","(titolo)",null,null,null,null,null,null,null,null,"Indicatore","(titolo)"]
[null,"Cosa misura",null,null,null,null,null,null,null,null,null,"Cosa misura"]
[null,"Tipologia","Unità di misura","Algoritmo di calcolo","Fonte dei dati","Ultimo valore osservato","Risultato atteso anno n","Risultato atteso anno n+1","Risultato atteso anno n+2",null,null,"Tipologia","Unità di misura","Algoritmo di calcolo","Fonte dei dati","Ultimo valore osservato","Risultato atteso anno n","Risultato atteso anno n+1","Risultato atteso anno n+2"]
[]
[null,"Se altro, indicare qui","Se altro, indicare qui",null,"Se altro, indicare qui",null,null,null,null,null,null,"Se altro, indicare qui","Se altro, indicare qui",null,"Se altro, indicare qui"]
[]
[null,"Indicatore","(titolo)",null,null,null,null,null,null,null,null,"Indicatore","(titolo)"]
[null,"Cosa misura",null,null,null,null,null,null,null,null,null,"Cosa misura"]
[null,"Tipologia","Unità di misura","Algoritmo di calcolo","Fonte dei dati","Ultimo valore osservato","Risultato atteso anno n","Risultato atteso anno n+1","Risultato atteso anno n+2",null,null,"Tipologia","Unità di misura","Algoritmo di calcolo","Fonte dei dati","Ultimo valore osservato","Risultato atteso anno n","Risultato atteso anno n+1","Risultato atteso anno n+2"]
[]
[null,"Se altro, indicare qui","Se altro, indicare qui",null,"Se altro, indicare qui",null,null,null,null,null,null,"Se altro, indicare qui","Se altro, indicare qui",null,"Se altro, indicare qui"]
[]
[null,"Indicatore","(titolo)",null,null,null,null,null,null,null,null,"Indicatore"]
[null,"Cosa misura",null,null,null,null,null,null,null,null,null,"Cosa misura"]
[null,"Tipologia","Unità di misura","Algoritmo di calcolo","Fonte dei dati","Ultimo valore osservato","Risultato atteso anno n","Risultato atteso anno n+1","Risultato atteso anno n+2",null,null,"Tipologia","Unità di misura","Algoritmo di calcolo","Fonte dei dati","Ultimo valore osservato","Risultato atteso anno n","Risultato atteso anno n+1","Risultato atteso anno n+2"]
[]
[null,"Se altro, indicare qui","Se altro, indicare qui",null,"Se altro, indicare qui",null,null,null,null,null,null,"Se altro, indicare qui","Se altro, indicare qui",null,"Se altro, indicare qui"]
[]
[null,"Indicatore","(titolo)",null,null,null,null,null,null,null,null,"Indicatore"]
[null,"Cosa misura",null,null,null,null,null,null,null,null,null,"Cosa misura"]
[null,"Tipologia","Unità di misura","Algoritmo di calcolo","Fonte dei dati","Ultimo valore osservato","Risultato atteso anno n","Risultato atteso anno n+1","Risultato atteso anno n+2",null,null,"Tipologia","Unità di misura","Algoritmo di calcolo","Fonte dei dati","Ultimo valore osservato","Risultato atteso anno n","Risultato atteso anno n+1","Risultato atteso anno n+2"]
[]
[null,"Se altro, indicare qui","Se altro, indicare qui",null,"Se altro, indicare qui",null,null,null,null,null,null,"Se altro, indicare qui","Se altro, indicare qui",null,"Se altro, indicare qui"]
[]
[null,"Missione","032 - Servizi istituzionali e generali delle amministrazioni pubbliche",null,null,null,null,null,null,null,null,"Missione","032 - Servizi istituzionali e generali delle amministrazioni pubbliche"]
[]
[null,"Programma","002 - Indirizzo politico",null,null,null,null,null,null,null,null,"Programma","002 - Indirizzo politico"]
[]
[]
[null,"Obiettivo","Titolo",{"$f":"+Generale!N8","v":0},null,null,null,null,null,null,null,"Obiettivo","Titolo",{"$f":"+Generale!N12","v":0}]
[null,null,"Descrizione",null,null,null,null,null,null,null,null,null,"Descrizione"]
[null,null,"Arco temporale realizzazione",null,null,null,null,null,null,null,null,null,"Arco temporale  realizzazione"]
[null,null,"Centro di responsabilità",null,null,null,null,null,null,null,null,null,"Centro di responsabilità"]
[null,null,"Risorse finanziarie",null,null,null,null,null,null,null,null,null,"Risorse finanziarie"]
[null,{"$f":"+Generale!M8","v":""},null,null,null,null,null,null,null,null,null,{"$f":"+Generale!M12","v":""}]
[null,null,"Nr indicatori associati",null,"<<< nb: indicare preventivamente il Nr indicatori associati all'obiettivo",null,null,null,null,null,null,null,"Nr indicatori associati",null,"<<< nb: indicare preventivamente il Nr indicatori associati all'obiettivo"]
[]
[]
[null,"Indicatore","(titolo)",null,null,null,null,null,null,null,null,"Indicatore","(titolo)"]
[null,"Cosa misura",null,null,null,null,null,null,null,null,null,"Cosa misura"]
[null,"Tipologia","Unità di misura","Algoritmo di calcolo","Fonte dei dati","Ultimo valore osservato","Risultato atteso anno n","Risultato atteso anno n+1","Risultato atteso anno n+2",null,null,"Tipologia","Unità di misura","Algoritmo di calcolo","Fonte dei dati","Ultimo valore osservato","Risultato atteso anno n","Risultato atteso anno n+1","Risultato atteso anno n+2"]
[]
[null,"Se altro, indicare qui","Se altro, indicare qui",null,"Se altro, indicare qui",null,null,null,null,null,null,"Se altro, indicare qui","Se altro, indicare qui",null,"Se altro, indicare qui"]
[]
[null,"Indicatore","(titolo)",null,null,null,null,null,null,null,null,"Indicatore","(titolo)"]
[null,"Cosa misura",null,null,null,null,null,null,null,null,null,"Cosa misura"]
[null,"Tipologia","Unità di misura","Algoritmo di calcolo","Fonte dei dati","Ultimo valore osservato","Risultato atteso anno n","Risultato atteso anno n+1","Risultato atteso anno n+2",null,null,"Tipologia","Unità di misura","Algoritmo di calcolo","Fonte dei dati","Ultimo valore osservato","Risultato atteso anno n","Risultato atteso anno n+1","Risultato atteso anno n+2"]
[]
[null,"Se altro, indicare qui","Se altro, indicare qui",null,"Se altro, indicare qui",null,null,null,null,null,null,"Se altro, indicare qui","Se altro, indicare qui",null,"Se altro, indicare qui"]
[]
[null,"Indicatore","(titolo)",null,null,null,null,null,null,null,null,"Indicatore","(titolo)"]
[null,"Cosa misura",null,null,null,null,null,null,null,null,null,"Cosa misura"]
[null,"Tipologia","Unità di misura","Algoritmo di calcolo","Fonte dei dati","Ultimo valore osservato","Risultato atteso anno n","Risultato atteso anno n+1","Risultato atteso anno n+2",null,null,"Tipologia","Unità di misura","Algoritmo di calcolo","Fonte dei dati","Ultimo valore osservato","Risultato atteso anno n","Risultato atteso anno n+1","Risultato atteso anno n+2"]
[]
[null,"Se altro, indicare qui","Se altro, indicare qui",null,"Se altro, indicare qui",null,null,null,null,null,null,"Se altro, indicare qui","Se altro, indicare qui",null,"Se altro, indicare qui"]
[]
[null,"Indicatore","(titolo)",null,null,null,null,null,null,null,null,"Indicatore","(titolo)"]
[null,"Cosa misura",null,null,null,null,null,null,null,null,null,"Cosa misura"]
[null,"Tipologia","Unità di misura","Algoritmo di calcolo","Fonte dei dati","Ultimo valore osservato","Risultato atteso anno n","Risultato atteso anno n+1","Risultato atteso anno n+2",null,null,"Tipologia","Unità di misura","Algoritmo di calcolo","Fonte dei dati","Ultimo valore osservato","Risultato atteso anno n","Risultato atteso anno n+1","Risultato atteso anno n+2"]
[]
[null,"Se altro, indicare qui","Se altro, indicare qui",null,"Se altro, indicare qui",null,null,null,null,null,null,"Se altro, indicare qui","Se altro, indicare qui",null,"Se altro, indicare qui"]
[]
[null,"Indicatore","(titolo)",null,null,null,null,null,null,null,null,"Indicatore","(titolo)"]
[null,"Cosa misura"]
[null,"Tipologia","Unità di misura","Algoritmo di calcolo","Fonte dei dati","Ultimo valore osservato","Risultato atteso anno n","Risultato atteso anno n+1","Risultato atteso anno n+2",null,null,"Tipologia","Unità di misura","Algoritmo di calcolo","Fonte dei dati","Ultimo valore osservato","Risultato atteso anno n","Risultato atteso anno n+1","Risultato atteso anno n+2"]
[]
[null,"Se altro, indicare qui","Se altro, indicare qui",null,"Se altro, indicare qui",null,null,null,null,null,null,"Se altro, indicare qui","Se altro, indicare qui",null,"Se altro, indicare qui"]
[]
[null,"Obiettivo","Titolo",{"$f":"+Generale!N9","v":0},null,null,null,null,null,null,null,"Obiettivo","Titolo",{"$f":"+Generale!N13","v":0}]
[null,null,"Descrizione",null,null,null,null,null,null,null,null,null,"Descrizione"]
[null,null,"Arco temporale realizzazione",null,null,null,null,null,null,null,null,null,"Arco temporale realizzazione"]
[null,null,"Centro di responsabilità",null,null,null,null,null,null,null,null,null,"Centro di responsabilità"]
[null,null,"Risorse finanziarie",null,null,null,null,null,null,null,null,null,"Risorse finanziarie"]
[null,{"$f":"+Generale!M9","v":""},null,null,null,null,null,null,null,null,null,{"$f":"+Generale!M13","v":""}]
[null,null,"Nr indicatori associati",null,"<<< nb: indicare preventivamente il Nr indicatori associati all'obiettivo",null,null,null,null,null,null,null,"Nr indicatori associati",null,"<<< nb: indicare preventivamente il Nr indicatori associati all'obiettivo"]
[]
[]
[null,"Indicatore","(titolo)",null,null,null,null,null,null,null,null,"Indicatore","(titolo)"]
[null,"Cosa misura",null,null,null,null,null,null,null,null,null,"Cosa misura"]
[null,"Tipologia","Unità di misura","Algoritmo di calcolo","Fonte dei dati","Ultimo valore osservato","Risultato atteso anno n","Risultato atteso anno n+1","Risultato atteso anno n+2",null,null,"Tipologia","Unità di misura","Algoritmo di calcolo","Fonte dei dati","Ultimo valore osservato","Risultato atteso anno n","Risultato atteso anno n+1","Risultato atteso anno n+2"]
[]
[null,"Se altro, indicare qui","Se altro, indicare qui",null,"Se altro, indicare qui",null,null,null,null,null,null,"Se altro, indicare qui","Se altro, indicare qui",null,"Se altro, indicare qui"]
[]
[null,"Indicatore","(titolo)",null,null,null,null,null,null,null,null,"Indicatore","(titolo)"]
[null,"Cosa misura",null,null,null,null,null,null,null,null,null,"Cosa misura"]
[null,"Tipologia","Unità di misura","Algoritmo di calcolo","Fonte dei dati","Ultimo valore osservato","Risultato atteso anno n","Risultato atteso anno n+1","Risultato atteso anno n+2",null,null,"Tipologia","Unità di misura","Algoritmo di calcolo","Fonte dei dati","Ultimo valore osservato","Risultato atteso anno n","Risultato atteso anno n+1","Risultato atteso anno n+2"]
[]
[null,"Se altro, indicare qui","Se altro, indicare qui",null,"Se altro, indicare qui",null,null,null,null,null,null,"Se altro, indicare qui","Se altro, indicare qui",null,"Se altro, indicare qui"]
[]
[null,"Indicatore","(titolo)",null,null,null,null,null,null,null,null,"Indicatore","(titolo)"]
[null,"Cosa misura",null,null,null,null,null,null,null,null,null,"Cosa misura"]
[null,"Tipologia","Unità di misura","Algoritmo di calcolo","Fonte dei dati","Ultimo valore osservato","Risultato atteso anno n","Risultato atteso anno n+1","Risultato atteso anno n+2",null,null,"Tipologia","Unità di misura","Algoritmo di calcolo","Fonte dei dati","Ultimo valore osservato","Risultato atteso anno n","Risultato atteso anno n+1","Risultato atteso anno n+2"]
[null,null,null,null,null,null,null,null,null,null,null,null,null,null,"Movimprese"]
[null,"Se altro, indicare qui","Se altro, indicare qui",null,"Se altro, indicare qui",null,null,null,null,null,null,"Se altro, indicare qui","Se altro, indicare qui",null,"Se altro, indicare qui"]
[]
[null,"Indicatore","(titolo)",null,null,null,null,null,null,null,null,"Indicatore","(titolo)"]
[null,"Cosa misura",null,null,null,null,null,null,null,null,null,"Cosa misura"]
[null,"Tipologia","Unità di misura","Algoritmo di calcolo","Fonte dei dati","Ultimo valore osservato","Risultato atteso anno n","Risultato atteso anno n+1","Risultato atteso anno n+2",null,null,"Tipologia","Unità di misura","Algoritmo di calcolo","Fonte dei dati","Ultimo valore osservato","Risultato atteso anno n","Risultato atteso anno n+1","Risultato atteso anno n+2"]
[]
[null,"Se altro, indicare qui","Se altro, indicare qui",null,"Se altro, indicare qui",null,null,null,null,null,null,"Se altro, indicare qui","Se altro, indicare qui",null,"Se altro, indicare qui"]
[]
[null,"Indicatore","(titolo)",null,null,null,null,null,null,null,null,"Indicatore","(titolo)"]
[null,"Cosa misura",null,null,null,null,null,null,null,null,null,"Cosa misura"]
[null,"Tipologia","Unità di misura","Algoritmo di calcolo","Fonte dei dati","Ultimo valore osservato","Risultato atteso anno n","Risultato atteso anno n+1","Risultato atteso anno n+2",null,null,"Tipologia","Unità di misura","Algoritmo di calcolo","Fonte dei dati","Ultimo valore osservato","Risultato atteso anno n","Risultato atteso anno n+1","Risultato atteso anno n+2"]
[]
[null,"Se altro, indicare qui","Se altro, indicare qui",null,"Se altro, indicare qui",null,null,null,null,null,null,"Se altro, indicare qui","Se altro, indicare qui",null,"Se altro, indicare qui"]

{"sheet":"004_Servizi generali","index":5,"n_rows":165,"n_cols":19,"rows_kept":165,"cut":false,"hidden":false,"merged":[[127,1,131,1],[127,3,127,8],[143,2,143,8],[143,12,143,18],[137,2,137,8],[137,12,137,18],[142,2,142,8],[142,12,142,18],[135,1,135,8],[135,11,135,18],[127,11,131,11],[127,13,127,18],[128,3,128,8],[128,13,128,18],[161,2,161,8],[161,12,161,18],[148,2,148,8],[148,12,148,18],[149,2,149,8],[149,12,149,18],[154,2,154,8],[154,12,154,18],[155,2,155,8],[155,12,155,18],[160,2,160,8],[160,12,160,18],[109,12,109,18],[110,2,110,8],[110,12,110,18],[122,2,122,8],[122,12,122,18],[136,2,136,8],[136,12,136,18],[129,3,129,8],[129,13,129,18],[130,3,130,8],[130,13,130,18],[131,3,131,8],[131,13,131,18],[77,2,77,8],[77,12,77,18],[78,2,78,8],[78,12,78,18],[96,1,96,8],[116,2,116,8],[116,12,116,18],[121,2,121,8],[121,12,121,18],[96,11,96,18],[83,2,83,8],[83,12,83,18],[91,13,91,18],[97,12,97,18],[103,2,103,8],[103,12,103,18],[104,2,104,8],[104,12,104,18],[97,2,97,8],[115,2,115,8],[115,12,115,18],[98,2,98,8],[98,12,98,18],[109,2,109,8],[84,0,84,1],[85,2,85,8],[85,12,85,18],[86,0,86,1],[88,11,92,11],[88,13,88,18],[89,13,89,18],[90,13,90,18],[92,3,92,8],[92,13,92,18],[88,1,92,1],[88,3,88,8],[89,3,89,8],[90,3,90,8],[91,3,91,8],[53,12,53,18],[44,11,48,11],[44,13,44,18],[54,2,54,8],[33,12,33,18],[54,12,54,18],[60,2,60,8],[52,1,52,8],[59,2,59,8],[53,2,53,8],[48,3,48,8],[44,1,48,1],[44,3,44,8],[47,3,47,8],[47,13,47,18],[45,3,45,8],[52,11,52,18],[45,13,45,18],[46,3,46,8],[46,13,46,18],[48,13,48,18],[72,2,72,8],[72,12,72,18],[65,2,65,8],[71,12,71,18],[65,12,65,18],[66,2,66,8],[66,12,66,18],[71,2,71,8],[59,12,59,18],[60,12,60,18],[14,12,14,18],[7,3,7,8],[8,13,8,18],[9,3,9,8],[9,13,9,18],[7,13,7,18],[8,3,8,8],[39,12,39,18],[15,2,15,8],[15,12,15,18],[20,2,20,8],[20,12,20,18],[13,1,13,8],[13,11,13,18],[14,2,14,8],[27,2,27,8],[27,12,27,18],[21,2,21,8],[21,12,21,18],[26,2,26,8],[26,12,26,18],[32,12,32,18],[38,12,38,18],[0,2,0,8],[0,12,0,18],[1,0,1,1],[2,2,2,8],[2,12,2,18],[3,0,3,1],[4,0,4,8],[5,1,9,1],[5,3,5,8],[5,11,9,11],[5,13,5,18],[6,3,6,8],[6,13,6,18]]}
[null,"Missione","032 - Servizi istituzionali e generali delle amministrazioni pubbliche",null,null,null,null,null,null,null,null,"Missione","032 - Servizi istituzionali e generali delle amministrazioni pubbliche"]
[]
[null,"Programma","003 - Servizi e affari generali per le amministrazioni di competenza",null,null,null,null,null,null,null,null,"Programma","004 - Servizi generali, formativi ed approvvigionamenti per le Amministrazioni pubbliche"]
[]
[]
[null,"Obiettivo","Titolo",{"$f":"+Generale!P6","v":"Incrementare il numero di attività a supporto degli obiettivi ed attività comuni/associate del sistema delle Camere venete"},null,null,null,null,null,null,null,"Obiettivo","Titolo",{"$f":"+Generale!P10","v":0}]
[null,null,"Descrizione","Insieme di azioni svolte dall'Ente a favore di priorità e necessità comuni delle Camere",null,null,null,null,null,null,null,null,"Descrizione"]
[null,null,"Arco temporale realizzazione","Triennio",null,null,null,null,null,null,null,null,"Arco temporale realizzazione"]
[null,null,"Centro di responsabilità","Area Impresa e Territorio - Area Amministrazione interna e servzii alle CCIAA",null,null,null,null,null,null,null,null,"Centro di responsabilità"]
[null,null,"Risorse economiche","Triennio: 1.300.000",null,null,null,null,null,null,null,null,"Risorse finanziarie"]
[null,{"$f":"+Generale!O6","v":"032-003-001"},null,null,null,null,null,null,null,null,null,{"$f":"+Generale!O10","v":""}]
[null,null,"Nr indicatori associati",4,"<<< nb: indicare preventivamente il Nr indicatori associati all'obiettivo",null,null,null,null,null,null,null,"Nr indicatori associati",null,"<<< nb: indicare preventivamente il Nr indicatori associati all'obiettivo"]
[]
[]
[null,"Indicatore","Volume medio di attività formativa per il personale camerale",null,null,null,null,null,null,null,null,"Indicatore","(titolo)"]
[null,"Cosa misura","Misura l'impegno dell'Unione regionale per acquisire/sviluppare conoscenze/competenze e capacità connesse all'attività lavorativa del personale camerale",null,null,null,null,null,null,null,null,"Cosa misura"]
[null,"Tipologia","Unità di misura","Algoritmo di calcolo","Fonte dei dati","Ultimo valore osservato - cons. 2021","Risultato atteso anno 2023","Risultato atteso anno 2024","Risultato atteso anno 2025",null,null,"Tipologia","Unità di misura","Algoritmo di calcolo","Fonte dei dati","Ultimo valore osservato","Risultato atteso anno n","Risultato atteso anno n+1","Risultato atteso anno n+2"]
[null,"di realizzazione fisica","Valore assoluto","numero incontri rivolti a personale camerale","Altro (specificare sotto)",5,7,7,7]
[null,"Se altro, indicare qui","Se altro, indicare qui",null,"Relazione attività",null,null,null,null,null,null,"Se altro, indicare qui","Se altro, indicare qui",null,"Se altro, indicare qui"]
[]
[null,"Indicatore","Incidenza personale di supporto alle CCIAA",null,null,null,null,null,null,null,null,"Indicatore"]
[null,"Cosa misura","Misura l'impegno dell'Unione regionale per supportare le Camere di commercio della propria regione",null,null,null,null,null,null,null,null,"Cosa misura"]
[null,"Tipologia","Unità di misura","Algoritmo di calcolo","Fonte dei dati","Ultimo valore osservato - cons. 2021","Risultato atteso anno 2023","Risultato atteso anno 2024","Risultato atteso anno 2025",null,null,"Tipologia","Unità di misura","Algoritmo di calcolo","Fonte dei dati","Ultimo valore osservato","Risultato atteso anno n","Risultato atteso anno n+1","Risultato atteso anno n+2"]
[null,"altre tipologie (specificare sotto)","Percentuale","Personale (espresso in FTE) impiegato in servizi di supporto alle Camere (escluso studi e ricerche, regolazione del mercato e vigilanza, internazionalizzazione) nell'anno \"n\"/Personale (espresso in FTE) impiegato nell'anno \"n\"","Altro (specificare sotto)",{"$f":"15/28","v":0.5357142857142857},0.56000000000000005,0.56000000000000005,0.56000000000000005]
[null,"Qualità",null,null,"rilevazione interna UR",null,null,null,null,null,null,"Se altro, indicare qui","Se altro, indicare qui",null,"Se altro, indicare qui"]
[]
[null,"Indicatore","Incremento del numero di attività ed iniziative dell'Ente realizzate a favore del sistema camerale regionale",null,null,null,null,null,null,null,null,"Indicatore","(titolo)"]
[null,"Cosa misura","La capacità dell'Ente di mettere in atto azioni che consentano l'ottimizzazione ed un effetto moltiplicatore su attività svolte individualmente dalle Camere provinciali",null,null,null,null,null,null,null,null,"Cosa misura"]
[null,"Tipologia","Unità di misura","Algoritmo di calcolo","Fonte dei dati","Ultimo valore osservato","Risultato atteso anno n","Risultato atteso anno n+1","Risultato atteso anno n+2",null,null,"Tipologia","Unità di misura","Algoritmo di calcolo","Fonte dei dati","Ultimo valore osservato","Risultato atteso anno n","Risultato atteso anno n+1","Risultato atteso anno n+2"]
[null,"di risultato (otuput)","Valore percentuale"]
[null,"Se altro, indicare qui","Se altro, indicare qui",null,"rilevazione interna UR",null,null,null,null,null,null,"Se altro, indicare qui","Se altro, indicare qui",null,"Se altro, indicare qui"]
[]
[null,"Indicatore",null,null,null,null,null,null,null,null,null,"Indicatore","(titolo)"]
[null,"Cosa misura",null,null,null,null,null,null,null,null,null,"Cosa misura"]
[null,"Tipologia","Unità di misura","Algoritmo di calcolo","Fonte dei dati","Ultimo valore osservato","Risultato atteso anno n","Risultato atteso anno n+1","Risultato atteso anno n+2",null,null,"Tipologia","Unità di misura","Algoritmo di calcolo","Fonte dei dati","Ultimo valore osservato","Risultato atteso anno n","Risultato atteso anno n+1","Risultato atteso anno n+2"]
[null,"di realizzazione finanziaria","Percentuale",null,"Altro (specificare sotto)"]
[null,"Se altro, indicare qui","Se altro, indicare qui",null,"Bilancio consuntivo",null,null,null,null,null,null,"Se altro, indicare qui","Se altro, indicare qui",null,"Se altro, indicare qui"]
[]
[null,"Indicatore",null,null,null,null,null,null,null,null,null,"Indicatore","(titolo)"]
[null,"Cosa misura",null,null,null,null,null,null,null,null,null,"Cosa misura"]
[null,"Tipologia","Unità di misura","Algoritmo di calcolo","Fonte dei dati","Ultimo valore osservato","Risultato atteso anno n","Risultato atteso anno n+1","Risultato atteso anno n+2",null,null,"Tipologia","Unità di misura","Algoritmo di calcolo","Fonte dei dati","Ultimo valore osservato","Risultato atteso anno n","Risultato atteso anno n+1","Risultato atteso anno n+2"]
[null,"di realizzazione finanziaria","Valore assoluto",null,"Altro (specificare sotto)"]
[null,"Se altro, indicare qui",null,null,"Bilancio consuntivo",null,null,null,null,null,null,"Se altro, indicare qui","Se altro, indicare qui",null,"Se altro, indicare qui"]
[]
[null,"Obiettivo","Titolo",{"$f":"Generale!P7","v":"Ridurre il costo dei  servizi generali (servizi di supporto, segreteria e centrali ) rispetto al totale dei costi, intervenendo sui processi e  con investimenti in soluzioni informatiche e upgrading delle competenze (formazione)."},null,null,null,null,null,null,null,"Obiettivo","Titolo",{"$f":"+Generale!P11","v":0}]
[null,null,"Descrizione","Tramite il miglioramento dell'efficienza interna, l'Ente mette in opera azioni di razionalizzazione dei processi ed investimenti informatici",null,null,null,null,null,null,null,null,"Descrizione"]
[null,null,"Arco temporale per la realizzazione","Triennio",null,null,null,null,null,null,null,null,"Arco temporale per la realizzazione"]
[null,null,"Centro di responsabilità","Direzione",null,null,null,null,null,null,null,null,"Centro di responsabilità"]
[null,null,"Risorse finanziarie","Triennio: 45.000",null,null,null,null,null,null,null,null,"Risorse finanziarie"]
[null,{"$f":"+Generale!O7","v":"032-003-002"},null,null,null,null,null,null,null,null,null,{"$f":"+Generale!O11","v":""}]
[null,null,"Nr indicatori associati",3,"<<< nb: indicare preventivamente il Nr indicatori associati all'obiettivo",null,null,null,null,null,null,null,"Nr indicatori associati",null,"<<< nb: indicare preventivamente il Nr indicatori associati all'obiettivo"]
[]
[]
[null,"Indicatore","Costo dei servizi generali",null,null,null,null,null,null,null,null,"Indicatore","(titolo)"]
[null,"Cosa misura","La capacità dell'Ente di tenere sotto controllo il costo dei servizi generali sul totale dei costi dell'Ente ",null,null,null,null,null,null,null,null,"Cosa misura"]
[null,"Tipologia","Unità di misura","Algoritmo di calcolo","Fonte dei dati","Ultimo valore osservato - cons. 2021","Risultato atteso anno 2023","Risultato atteso anno 2024","Risultato atteso anno 2025",null,null,"Tipologia","Unità di misura","Algoritmo di calcolo","Fonte dei dati","Ultimo valore osservato","Risultato atteso anno n","Risultato atteso anno n+1","Risultato atteso anno n+2"]
[null,"altre tipologie (specificare sotto)","Percentuale","Costi per servizi istituzionali e generali/Costi totali",null,{"$f":"525108/34308819","v":1.5305335925436547E-2},{"$f":"712022/6782832","v":0.10497414649220267},{"$f":"632022/4372420","v":0.14454741310304134},{"$f":"632022/4312420","v":0.14655854485416542}]
[null,"Economico Patrimoniale","Se altro, indicare qui",null,"Bilancio consuntivo e preventivo economico",null,null,null,null,null,null,"Se altro, indicare qui","Se altro, indicare qui",null,"Se altro, indicare qui"]
[]
[null,"Indicatore","Incidenza costi strutturali",null,null,null,null,null,null,null,null,"Indicatore","(titolo)"]
[null,"Cosa misura","La capacità dell'Unione regionale di destinare risorse per interventi a favore delle Camere",null,null,null,null,null,null,null,null,"Cosa misura"]
[null,"Tipologia","Unità di misura","Algoritmo di calcolo","Fonte dei dati","Ultimo valore osservato - cons. 2021","Risultato atteso anno 2023","Risultato atteso anno 2024","Risultato atteso anno 2025",null,null,"Tipologia","Unità di misura","Algoritmo di calcolo","Fonte dei dati","Ultimo valore osservato","Risultato atteso anno n","Risultato atteso anno n+1","Risultato atteso anno n+2"]
[null,"altre tipologie (specificare sotto)","Percentuale","Oneri di struttura/Totale Oneri Gestione Corrente",null,{"$f":"'[1]Preventivo 2023-2025'!$G$42/'[1]Preventivo 2023-2025'!$G$65","v":5.6755669730281302E-2},{"$f":"'[1]Preventivo 2023-2025'!$J$42/'[1]Preventivo 2023-2025'!$J$65","v":0.32308007770416647},{"$f":"'[1]Preventivo 2023-2025'!$K$42/'[1]Preventivo 2023-2025'!$K$65","v":0.49958559541990866},{"$f":"'[1]Preventivo 2023-2025'!$L$42/'[1]Preventivo 2023-2025'!$L$65","v":0.5083915855440021}]
[null,"Economico patrimoniale","Se altro, indicare qui",null,"Bilancio consuntivo e preventivo economico",null,null,null,null,null,null,"Se altro, indicare qui","Se altro, indicare qui",null,"Se altro, indicare qui"]
[]
[null,"Indicatore","Ore di formazione interna",null,null,null,null,null,null,null,null,"Indicatore","(titolo)"]
[null,"Cosa misura","Il volume delle attività di formazione per il miglioramento delle competenze gestionali del personale",null,null,null,null,null,null,null,null,"Cosa misura"]
[null,"Tipologia","Unità di misura","Algoritmo di calcolo","Fonte dei dati","Ultimo valore osservato - cons. 2021","Risultato atteso anno 2023","Risultato atteso anno 2024","Risultato atteso anno 2025",null,null,"Tipologia","Unità di misura","Algoritmo di calcolo","Fonte dei dati","Ultimo valore osservato","Risultato atteso anno n","Risultato atteso anno n+1","Risultato atteso anno n+2"]
[null,"realizzazione fisica","Valore assoluto","totale ore di formazione ",null,50,100,100,100]
[null,null,"Se altro, indicare qui",null,"rilevazione interna UR",null,null,null,null,null,null,"Se altro, indicare qui","Se altro, indicare qui",null,"Se altro, indicare qui"]
[]
[null,"Indicatore","(titolo)",null,null,null,null,null,null,null,null,"Indicatore"]
[null,"Cosa misura",null,null,null,null,null,null,null,null,null,"Cosa misura"]
[null,"Tipologia","Unità di misura","Algoritmo di calcolo","Fonte dei dati","Ultimo valore osservato","Risultato atteso anno n","Risultato atteso anno n+1","Risultato atteso anno n+2",null,null,"Tipologia","Unità di misura","Algoritmo di calcolo","Fonte dei dati","Ultimo valore osservato","Risultato atteso anno n","Risultato atteso anno n+1","Risultato atteso anno n+2"]
[]
[null,"Se altro, indicare qui","Se altro, indicare qui",null,"Se altro, indicare qui",null,null,null,null,null,null,"Se altro, indicare qui","Se altro, indicare qui",null,"Se altro, indicare qui"]
[]
[null,"Indicatore","(titolo)",null,null,null,null,null,null,null,null,"Indicatore"]
[null,"Cosa misura",null,null,null,null,null,null,null,null,null,"Cosa misura"]
[null,"Tipologia","Unità di misura","Algoritmo di calcolo","Fonte dei dati","Ultimo valore osservato","Risultato atteso anno n","Risultato atteso anno n+1","Risultato atteso anno n+2",null,null,"Tipologia","Unità di misura","Algoritmo di calcolo","Fonte dei dati","Ultimo valore osservato","Risultato atteso anno n","Risultato atteso anno n+1","Risultato atteso anno n+2"]
[]
[null,"Se altro, indicare qui","Se altro, indicare qui",null,"Se altro, indicare qui",null,null,null,null,null,null,"Se altro, indicare qui","Se altro, indicare qui",null,"Se altro, indicare qui"]
[]
[null,"Missione","032 - Servizi istituzionali e generali delle amministrazioni pubbliche",null,null,null,null,null,null,null,null,"Missione","032 - Servizi istituzionali e generali delle amministrazioni pubbliche"]
[]
[null,"Programma","003 - Servizi e affari generali per le amministrazioni di competenza",null,null,null,null,null,null,null,null,"Programma","004 - Servizi generali, formativi ed approvvigionamenti per le Amministrazioni pubbliche"]
[]
[]
[null,"Obiettivo","Titolo",{"$f":"+Generale!P8","v":"Migliorare l'efficenza complessiva e la capacità di erogare servizi che rispondono ad una domanda effettiva nel mercato regionale, europeo e nazionale"},null,null,null,null,null,null,null,"Obiettivo","Titolo",{"$f":"+Generale!P12","v":0}]
[null,null,"Descrizione","Capacità dell'Ente di reperire risorse da servizi commerciali ed istituzionali ed essere efficiente nel rapporto con le controparti",null,null,null,null,null,null,null,null,"Descrizione"]
[null,null,"Arco temporale realizzazione","Triennio",null,null,null,null,null,null,null,null,"Arco temporale  realizzazione"]
[null,null,"Centro di responsabilità","Direzione",null,null,null,null,null,null,null,null,"Centro di responsabilità"]
[null,null,"Risorse finanziarie","Triennio: 60.000",null,null,null,null,null,null,null,null,"Risorse finanziarie"]
[null,{"$f":"+Generale!O8","v":"032-003-003"},null,null,null,null,null,null,null,null,null,{"$f":"+Generale!O12","v":""}]
[null,null,"Nr indicatori associati",3,"<<< nb: indicare preventivamente il Nr indicatori associati all'obiettivo",null,null,null,null,null,null,null,"Nr indicatori associati",null,"<<< nb: indicare preventivamente il Nr indicatori associati all'obiettivo"]
[]
[]
[null,"Indicatore","Incidenza delle entrate per servizi",null,null,null,null,null,null,null,null,"Indicatore","(titolo)"]
[null,"Cosa misura","Misura la capacità dell'Unione regionale di reperire risorse dal mercato",null,null,null,null,null,null,null,null,"Cosa misura"]
[null,"Tipologia","Unità di misura","Algoritmo di calcolo","Fonte dei dati","Ultimo valore osservato - cons. 2021","Risultato atteso anno 2023","Risultato atteso anno 2024","Risultato atteso anno 2025",null,null,"Tipologia","Unità di misura","Algoritmo di calcolo","Fonte dei dati","Ultimo valore osservato","Risultato atteso anno n","Risultato atteso anno n+1","Risultato atteso anno n+2"]
[null,"di realizzazione finanziaria","Percentuale","Proventi da gestione di servizi commerciali/Totale Proventi gestione corrente","Altro (specificare sotto)",{"$f":"50864/[2]SCHECEE!$H$186","v":1.482827130733875E-3},{"$f":"('[1]Preventivo 2023-2025'!$J$20+'[1]Preventivo 2023-2025'!$J$22)/'[1]Preventivo 2023-2025'!$J$24","v":7.5043552344302572E-3},{"$f":"('[1]Preventivo 2023-2025'!$K$20+'[1]Preventivo 2023-2025'!$K$22)/'[1]Preventivo 2023-2025'!$K$24","v":1.0330592213287026E-2},{"$f":"('[1]Preventivo 2023-2025'!$L$20+'[1]Preventivo 2023-2025'!$L$22)/'[1]Preventivo 2023-2025'!$L$24","v":1.0634698282231738E-2}]
[null,"economico patrimoniale","Se altro, indicare qui",null,"Bilancio consuntivo e preventivo economico",null,null,null,null,null,null,"Se altro, indicare qui","Se altro, indicare qui",null,"Se altro, indicare qui"]
[]
[null,"Indicatore","Capacita di autofinanziamento",null,null,null,null,null,null,null,null,"Indicatore","(titolo)"]
[null,"Cosa misura","Misura la capacità dell'Unione regionale di coprire i propri costi di gestione senza il supporto camerale",null,null,null,null,null,null,null,null,"Cosa misura"]
[null,"Tipologia","Unità di misura","Algoritmo di calcolo","Fonte dei dati","Ultimo valore osservato - cons. 2021","Risultato atteso anno 2023","Risultato atteso anno 2024","Risultato atteso anno 2025",null,null,"Tipologia","Unità di misura","Algoritmo di calcolo","Fonte dei dati","Ultimo valore osservato","Risultato atteso anno n","Risultato atteso anno n+1","Risultato atteso anno n+2"]
[null,"altre tipologie (specificare sotto)","Percentuale","(Totale Proventi gestione corrente - Risorse da CCIAA)/Totale Oneri Gestione Corrente)","Altro (specificare sotto)",{"$f":"('[1]Preventivo 2023-2025'!$G$24-'[1]Preventivo 2023-2025'!$G$14-'[1]Preventivo 2023-2025'!$G$15)/'[1]Preventivo 2023-2025'!$G$65","v":0.95053172771700478},{"$f":"('[1]Preventivo 2023-2025'!$J$24-1360443-500000)/'[1]Preventivo 2023-2025'!$J$65","v":0.70819820119859689},{"$f":"('[1]Preventivo 2023-2025'!$K$24-1360443-50000)/'[1]Preventivo 2023-2025'!$K$65","v":0.64450188759909133},{"$f":"('[1]Preventivo 2023-2025'!$L$24-1360443-500000)/'[1]Preventivo 2023-2025'!$L$65","v":0.52108026129618856}]
[null,"economico patrimoniale","Se altro, indicare qui",null,"Bilancio consuntivo e preventivo economico",null,null,null,null,null,null,"Se altro, indicare qui","Se altro, indicare qui",null,"Se altro, indicare qui"]
[]
[null,"Indicatore","Tempo medio di pagamento delle fatture passive",null,null,null,null,null,null,null,null,"Indicatore","(titolo)"]
[null,"Cosa misura","Il tempo medio necessario all'unione regionale per pagare le fatture passive ove il fornitore sia in regola con la documentazione accompagnatoria da produrre",null,null,null,null,null,null,null,null,"Cosa misura"]
[null,"Tipologia","Unità di misura","Algoritmo di calcolo","Fonte dei dati","Ultimo valore osservato - cons. 2021","Risultato atteso anno 2023","Risultato atteso anno 2024","Risultato atteso anno 2025",null,null,"Tipologia","Unità di misura","Algoritmo di calcolo","Fonte dei dati","Ultimo valore osservato","Risultato atteso anno n","Risultato atteso anno n+1","Risultato atteso anno n+2"]
[null,"altre tipologie (specificare sotto)","Valore assoluto","Sommatoria giorni che intercorrono tra la data del ricevimento e la data del mandato di pagamento delle fatture passive pagate nell’anno \"n\"/N° di fatture passive pagate nell'anno \"n\"","Altro (specificare sotto)",23,25,25,25]
[null,"Qualità","Se altro, indicare qui",null,"Sistema di contabilità interna",null,null,null,null,null,null,"Se altro, indicare qui","Se altro, indicare qui",null,"Se altro, indicare qui"]
[]
[null,"Indicatore","(titolo)",null,null,null,null,null,null,null,null,"Indicatore","(titolo)"]
[null,"Cosa misura",null,null,null,null,null,null,null,null,null,"Cosa misura"]
[null,"Tipologia","Unità di misura","Algoritmo di calcolo","Fonte dei dati","Ultimo valore osservato","Risultato atteso anno n","Risultato atteso anno n+1","Risultato atteso anno n+2",null,null,"Tipologia","Unità di misura","Algoritmo di calcolo","Fonte dei dati","Ultimo valore osservato","Risultato atteso anno n","Risultato atteso anno n+1","Risultato atteso anno n+2"]
[]
[null,"Se altro, indicare qui","Se altro, indicare qui",null,"Se altro, indicare qui",null,null,null,null,null,null,"Se altro, indicare qui","Se altro, indicare qui",null,"Se altro, indicare qui"]
[]
[null,"Indicatore","(titolo)",null,null,null,null,null,null,null,null,"Indicatore","(titolo)"]
[null,"Cosa misura"]
[null,"Tipologia","Unità di misura","Algoritmo di calcolo","Fonte dei dati","Ultimo valore osservato","Risultato atteso anno n","Risultato atteso anno n+1","Risultato atteso anno n+2",null,null,"Tipologia","Unità di misura","Algoritmo di calcolo","Fonte dei dati","Ultimo valore osservato","Risultato atteso anno n","Risultato atteso anno n+1","Risultato atteso anno n+2"]
[]
[null,"Se altro, indicare qui","Se altro, indicare qui",null,"Se altro, indicare qui",null,null,null,null,null,null,"Se altro, indicare qui","Se altro, indicare qui",null,"Se altro, indicare qui"]
[]
[null,"Obiettivo","Titolo",{"$f":"+Generale!P9","v":0},null,null,null,null,null,null,null,"Obiettivo","Titolo",{"$f":"+Generale!P13","v":0}]
[null,null,"Descrizione",null,null,null,null,null,null,null,null,null,"Descrizione"]
[null,null,"Arco temporale realizzazione",null,null,null,null,null,null,null,null,null,"Arco temporale realizzazione"]
[null,null,"Centro di responsabilità",null,null,null,null,null,null,null,null,null,"Centro di responsabilità"]
[null,null,"Risorse finanziarie",null,null,null,null,null,null,null,null,null,"Risorse finanziarie"]
[null,{"$f":"+Generale!O9","v":""},null,null,null,null,null,null,null,null,null,{"$f":"+Generale!O13","v":""}]
[null,null,"Nr indicatori associati",null,"<<< nb: indicare preventivamente il Nr indicatori associati all'obiettivo",null,null,null,null,null,null,null,"Nr indicatori associati",null,"<<< nb: indicare preventivamente il Nr indicatori associati all'obiettivo"]
[]
[]
[null,"Indicatore","(titolo)",null,null,null,null,null,null,null,null,"Indicatore","(titolo)"]
[null,"Cosa misura",null,null,null,null,null,null,null,null,null,"Cosa misura"]
[null,"Tipologia","Unità di misura","Algoritmo di calcolo","Fonte dei dati","Ultimo valore osservato","Risultato atteso anno n","Risultato atteso anno n+1","Risultato atteso anno n+2",null,null,"Tipologia","Unità di misura","Algoritmo di calcolo","Fonte dei dati","Ultimo valore osservato","Risultato atteso anno n","Risultato atteso anno n+1","Risultato atteso anno n+2"]
[]
[null,"Se altro, indicare qui","Se altro, indicare qui",null,"Se altro, indicare qui",null,null,null,null,null,null,"Se altro, indicare qui","Se altro, indicare qui",null,"Se altro, indicare qui"]
[]
[null,"Indicatore","(titolo)",null,null,null,null,null,null,null,null,"Indicatore","(titolo)"]
[null,"Cosa misura",null,null,null,null,null,null,null,null,null,"Cosa misura"]
[null,"Tipologia","Unità di misura","Algoritmo di calcolo","Fonte dei dati","Ultimo valore osservato","Risultato atteso anno n","Risultato atteso anno n+1","Risultato atteso anno n+2",null,null,"Tipologia","Unità di misura","Algoritmo di calcolo","Fonte dei dati","Ultimo valore osservato","Risultato atteso anno n","Risultato atteso anno n+1","Risultato atteso anno n+2"]
[]
[null,"Se altro, indicare qui","Se altro, indicare qui",null,"Se altro, indicare qui",null,null,null,null,null,null,"Se altro, indicare qui","Se altro, indicare qui",null,"Se altro, indicare qui"]
[]
[null,"Indicatore","(titolo)",null,null,null,null,null,null,null,null,"Indicatore","(titolo)"]
[null,"Cosa misura",null,null,null,null,null,null,null,null,null,"Cosa misura"]
[null,"Tipologia","Unità di misura","Algoritmo di calcolo","Fonte dei dati","Ultimo valore osservato","Risultato atteso anno n","Risultato atteso anno n+1","Risultato atteso anno n+2",null,null,"Tipologia","Unità di misura","Algoritmo di calcolo","Fonte dei dati","Ultimo valore osservato","Risultato atteso anno n","Risultato atteso anno n+1","Risultato atteso anno n+2"]
[]
[null,"Se altro, indicare qui","Se altro, indicare qui",null,"Se altro, indicare qui",null,null,null,null,null,null,"Se altro, indicare qui","Se altro, indicare qui",null,"Se altro, indicare qui"]
[]
[null,"Indicatore","(titolo)",null,null,null,null,null,null,null,null,"Indicatore","(titolo)"]
[null,"Cosa misura",null,null,null,null,null,null,null,null,null,"Cosa misura"]
[null,"Tipologia","Unità di misura","Algoritmo di calcolo","Fonte dei dati","Ultimo valore osservato","Risultato atteso anno n","Risultato atteso anno n+1","Risultato atteso anno n+2",null,null,"Tipologia","Unità di misura","Algoritmo di calcolo","Fonte dei dati","Ultimo valore osservato","Risultato atteso anno n","Risultato atteso anno n+1","Risultato atteso anno n+2"]
[]
[null,"Se altro, indicare qui","Se altro, indicare qui",null,"Se altro, indicare qui",null,null,null,null,null,null,"Se altro, indicare qui","Se altro, indicare qui",null,"Se altro, indicare qui"]
[]
[null,"Indicatore","(titolo)",null,null,null,null,null,null,null,null,"Indicatore","(titolo)"]
[null,"Cosa misura",null,null,null,null,null,null,null,null,null,"Cosa misura"]
[null,"Tipologia","Unità di misura","Algoritmo di calcolo","Fonte dei dati","Ultimo valore osservato","Risultato atteso anno n","Risultato atteso anno n+1","Risultato atteso anno n+2",null,null,"Tipologia","Unità di misura","Algoritmo di calcolo","Fonte dei dati","Ultimo valore osservato","Risultato atteso anno n","Risultato atteso anno n+1","Risultato atteso anno n+2"]
[]
[null,"Se altro, indicare qui","Se altro, indicare qui",null,"Se altro, indicare qui",null,null,null,null,null,null,"Se altro, indicare qui","Se altro, indicare qui",null,"Se altro, indicare qui"]

{"sheet":"001_Fondi da assegnare","index":6,"n_rows":165,"n_cols":19,"rows_kept":165,"cut":false,"hidden":false,"merged":[[110,2,110,8],[110,12,110,18],[161,2,161,8],[161,12,161,18],[148,2,148,8],[148,12,148,18],[149,2,149,8],[149,12,149,18],[142,2,142,8],[142,12,142,18],[155,2,155,8],[155,12,155,18],[143,2,143,8],[143,12,143,18],[154,2,154,8],[154,12,154,18],[160,2,160,8],[160,12,160,18],[121,2,121,8],[121,12,121,18],[122,2,122,8],[122,12,122,18],[136,2,136,8],[136,12,136,18],[137,2,137,8],[137,12,137,18],[131,3,131,8],[131,13,131,18],[135,1,135,8],[135,11,135,18],[127,1,131,1],[127,3,127,8],[127,11,131,11],[127,13,127,18],[128,3,128,8],[128,13,128,18],[130,3,130,8],[130,13,130,18],[129,3,129,8],[129,13,129,18],[104,2,104,8],[104,12,104,18],[92,3,92,8],[92,13,92,18],[96,1,96,8],[96,11,96,18],[83,2,83,8],[83,12,83,18],[116,2,116,8],[116,12,116,18],[98,2,98,8],[98,12,98,18],[103,2,103,8],[103,12,103,18],[115,2,115,8],[115,12,115,18],[109,2,109,8],[109,12,109,18],[84,0,84,1],[85,2,85,8],[85,12,85,18],[86,0,86,1],[88,11,92,11],[88,13,88,18],[65,2,65,8],[65,12,65,18],[66,2,66,8],[66,12,66,18],[72,2,72,8],[72,12,72,18],[97,2,97,8],[97,12,97,18],[88,1,92,1],[88,3,88,8],[71,2,71,8],[71,12,71,18],[78,2,78,8],[78,12,78,18],[77,2,77,8],[77,12,77,18],[90,3,90,8],[90,13,90,18],[91,3,91,8],[91,13,91,18],[89,3,89,8],[89,13,89,18],[59,2,59,8],[59,12,59,18],[38,2,38,8],[38,12,38,18],[39,2,39,8],[39,12,39,18],[60,2,60,8],[60,12,60,18],[48,3,48,8],[48,13,48,18],[52,1,52,8],[52,11,52,18],[53,2,53,8],[53,12,53,18],[44,11,48,11],[44,13,44,18],[44,1,48,1],[44,3,44,8],[47,3,47,8],[47,13,47,18],[45,3,45,8],[45,13,45,18],[46,3,46,8],[46,13,46,18],[54,2,54,8],[54,12,54,18],[33,2,33,8],[33,12,33,18],[15,12,15,18],[20,2,20,8],[20,12,20,18],[5,11,9,11],[5,13,5,18],[6,3,6,8],[6,13,6,18],[7,3,7,8],[26,2,26,8],[26,12,26,18],[27,2,27,8],[27,12,27,18],[32,2,32,8],[32,12,32,18],[21,2,21,8],[21,12,21,18],[8,13,8,18],[9,3,9,8],[9,13,9,18],[13,1,13,8],[13,11,13,18],[14,2,14,8],[14,12,14,18],[15,2,15,8],[0,2,0,8],[0,12,0,18],[1,0,1,1],[2,2,2,8],[2,12,2,18],[7,13,7,18],[8,3,8,8],[3,0,3,1],[4,0,4,8],[5,1,9,1],[5,3,5,8]]}
[null,"Missione","033 - Fondi da ripartire",null,null,null,null,null,null,null,null,"Missione","033 - Fondi da ripartire"]
[]
[null,"Programma","001 - Fondi da assegnare",null,null,null,null,null,null,null,null,"Programma","001 - Fondi da assegnare"]
[]
[]
[null,"Obiettivo","Titolo",{"$f":"+Generale!S6","v":0},null,null,null,null,null,null,null,"Obiettivo","Titolo",{"$f":"+Generale!S10","v":0}]
[null,null,"Descrizione",null,null,null,null,null,null,null,null,null,"Descrizione"]
[null,null,"Arco temporale realizzazione",null,null,null,null,null,null,null,null,null,"Arco temporale realizzazione"]
[null,null,"Centro di responsabilità",null,null,null,null,null,null,null,null,null,"Centro di responsabilità"]
[null,null,"Risorse economiche",null,null,null,null,null,null,null,null,null,"Risorse finanziarie"]
[null,{"$f":"+Generale!R6","v":""},null,null,null,null,null,null,null,null,null,{"$f":"+Generale!R10","v":""}]
[null,null,"Nr indicatori associati",1,"<<< nb: indicare preventivamente il Nr indicatori associati all'obiettivo",null,null,null,null,null,null,null,"Nr indicatori associati",null,"<<< nb: indicare preventivamente il Nr indicatori associati all'obiettivo"]
[]
[]
[null,"Indicatore","(titolo)",null,null,null,null,null,null,null,null,"Indicatore","(titolo)"]
[null,"Cosa misura",null,null,null,null,null,null,null,null,null,"Cosa misura"]
[null,"Tipologia","Unità di misura","Algoritmo di calcolo","Fonte dei dati","Ultimo valore osservato","Risultato atteso anno n","Risultato atteso anno n+1","Risultato atteso anno n+2",null,null,"Tipologia","Unità di misura","Algoritmo di calcolo","Fonte dei dati","Ultimo valore osservato","Risultato atteso anno n","Risultato atteso anno n+1","Risultato atteso anno n+2"]
[]
[null,"Se altro, indicare qui","Se altro, indicare qui",null,"Se altro, indicare qui",null,null,null,null,null,null,"Se altro, indicare qui","Se altro, indicare qui",null,"Se altro, indicare qui"]
[]
[null,"Indicatore","(titolo)",null,null,null,null,null,null,null,null,"Indicatore"]
[null,"Cosa misura",null,null,null,null,null,null,null,null,null,"Cosa misura"]
[null,"Tipologia","Unità di misura","Algoritmo di calcolo","Fonte dei dati","Ultimo valore osservato","Risultato atteso anno n","Risultato atteso anno n+1","Risultato atteso anno n+2",null,null,"Tipologia","Unità di misura","Algoritmo di calcolo","Fonte dei dati","Ultimo valore osservato","Risultato atteso anno n","Risultato atteso anno n+1","Risultato atteso anno n+2"]
[]
[null,"Se altro, indicare qui","Se altro, indicare qui",null,"Se altro, indicare qui",null,null,null,null,null,null,"Se altro, indicare qui","Se altro, indicare qui",null,"Se altro, indicare qui"]
[]
[null,"Indicatore","(titolo)",null,null,null,null,null,null,null,null,"Indicatore","(titolo)"]
[null,"Cosa misura",null,null,null,null,null,null,null,null,null,"Cosa misura"]
[null,"Tipologia","Unità di misura","Algoritmo di calcolo","Fonte dei dati","Ultimo valore osservato","Risultato atteso anno n","Risultato atteso anno n+1","Risultato atteso anno n+2",null,null,"Tipologia","Unità di misura","Algoritmo di calcolo","Fonte dei dati","Ultimo valore osservato","Risultato atteso anno n","Risultato atteso anno n+1","Risultato atteso anno n+2"]
[]
[null,"Se altro, indicare qui","Se altro, indicare qui",null,"Se altro, indicare qui",null,null,null,null,null,null,"Se altro, indicare qui","Se altro, indicare qui",null,"Se altro, indicare qui"]
[]
[null,"Indicatore","(titolo)",null,null,null,null,null,null,null,null,"Indicatore","(titolo)"]
[null,"Cosa misura",null,null,null,null,null,null,null,null,null,"Cosa misura"]
[null,"Tipologia","Unità di misura","Algoritmo di calcolo","Fonte dei dati","Ultimo valore osservato","Risultato atteso anno n","Risultato atteso anno n+1","Risultato atteso anno n+2",null,null,"Tipologia","Unità di misura","Algoritmo di calcolo","Fonte dei dati","Ultimo valore osservato","Risultato atteso anno n","Risultato atteso anno n+1","Risultato atteso anno n+2"]
[]
[null,"Se altro, indicare qui","Se altro, indicare qui",null,"Se altro, indicare qui",null,null,null,null,null,null,"Se altro, indicare qui","Se altro, indicare qui",null,"Se altro, indicare qui"]
[]
[null,"Indicatore","(titolo)",null,null,null,null,null,null,null,null,"Indicatore","(titolo)"]
[null,"Cosa misura",null,null,null,null,null,null,null,null,null,"Cosa misura"]
[null,"Tipologia","Unità di misura","Algoritmo di calcolo","Fonte dei dati","Ultimo valore osservato","Risultato atteso anno n","Risultato atteso anno n+1","Risultato atteso anno n+2",null,null,"Tipologia","Unità di misura","Algoritmo di calcolo","Fonte dei dati","Ultimo valore osservato","Risultato atteso anno n","Risultato atteso anno n+1","Risultato atteso anno n+2"]
[]
[null,"Se altro, indicare qui","Se altro, indicare qui",null,"Se altro, indicare qui",null,null,null,null,null,null,"Se altro, indicare qui","Se altro, indicare qui",null,"Se altro, indicare qui"]
[]
[null,"Obiettivo","Titolo",{"$f":"+Generale!S7","v":0},null,null,null,null,null,null,null,"Obiettivo","Titolo",{"$f":"+Generale!S11","v":0}]
[null,null,"Descrizione",null,null,null,null,null,null,null,null,null,"Descrizione"]
[null,null,"Arco temporale per la realizzazione",null,null,null,null,null,null,null,null,null,"Arco temporale per la realizzazione"]
[null,null,"Centro di responsabilità",null,null,null,null,null,null,null,null,null,"Centro di responsabilità"]
[null,null,"Risorse finanziarie",null,null,null,null,null,null,null,null,null,"Risorse finanziarie"]
[null,{"$f":"+Generale!R7","v":""},null,null,null,null,null,null,null,null,null,{"$f":"+Generale!R11","v":""}]
[null,null,"Nr indicatori associati",null,"<<< nb: indicare preventivamente il Nr indicatori associati all'obiettivo",null,null,null,null,null,null,null,"Nr indicatori associati",null,"<<< nb: indicare preventivamente il Nr indicatori associati all'obiettivo"]
[]
[]
[null,"Indicatore","(titolo)",null,null,null,null,null,null,null,null,"Indicatore","(titolo)"]
[null,"Cosa misura",null,null,null,null,null,null,null,null,null,"Cosa misura"]
[null,"Tipologia","Unità di misura","Algoritmo di calcolo","Fonte dei dati","Ultimo valore osservato","Risultato atteso anno n","Risultato atteso anno n+1","Risultato atteso anno n+2",null,null,"Tipologia","Unità di misura","Algoritmo di calcolo","Fonte dei dati","Ultimo valore osservato","Risultato atteso anno n","Risultato atteso anno n+1","Risultato atteso anno n+2"]
[]
[null,"Se altro, indicare qui","Se altro, indicare qui",null,"Se altro, indicare qui",null,null,null,null,null,null,"Se altro, indicare qui","Se altro, indicare qui",null,"Se altro, indicare qui"]
[]
[null,"Indicatore","(titolo)",null,null,null,null,null,null,null,null,"Indicatore","(titolo)"]
[null,"Cosa misura",null,null,null,null,null,null,null,null,null,"Cosa misura"]
[null,"Tipologia","Unità di misura","Algoritmo di calcolo","Fonte dei dati","Ultimo valore osservato","Risultato atteso anno n","Risultato atteso anno n+1","Risultato atteso anno n+2",null,null,"Tipologia","Unità di misura","Algoritmo di calcolo","Fonte dei dati","Ultimo valore osservato","Risultato atteso anno n","Risultato atteso anno n+1","Risultato atteso anno n+2"]
[]
[null,"Se altro, indicare qui","Se altro, indicare qui",null,"Se altro, indicare qui",null,null,null,null,null,null,"Se altro, indicare qui","Se altro, indicare qui",null,"Se altro, indicare qui"]
[]
[null,"Indicatore","(titolo)",null,null,null,null,null,null,null,null,"Indicatore","(titolo)"]
[null,"Cosa misura",null,null,null,null,null,null,null,null,null,"Cosa misura"]
[null,"Tipologia","Unità di misura","Algoritmo di calcolo","Fonte dei dati","Ultimo valore osservato","Risultato atteso anno n","Risultato atteso anno n+1","Risultato atteso anno n+2",null,null,"Tipologia","Unità di misura","Algoritmo di calcolo","Fonte dei dati","Ultimo valore osservato","Risultato atteso anno n","Risultato atteso anno n+1","Risultato atteso anno n+2"]
[]
[null,"Se altro, indicare qui","Se altro, indicare qui",null,"Se altro, indicare qui",null,null,null,null,null,null,"Se altro, indicare qui","Se altro, indicare qui",null,"Se altro, indicare qui"]
[]
[null,"Indicatore","(titolo)",null,null,null,null,null,null,null,null,"Indicatore"]
[null,"Cosa misura",null,null,null,null,null,null,null,null,null,"Cosa misura"]
[null,"Tipologia","Unità di misura","Algoritmo di calcolo","Fonte dei dati","Ultimo valore osservato","Risultato atteso anno n","Risultato atteso anno n+1","Risultato atteso anno n+2",null,null,"Tipologia","Unità di misura","Algoritmo di calcolo","Fonte dei dati","Ultimo valore osservato","Risultato atteso anno n","Risultato atteso anno n+1","Risultato atteso anno n+2"]
[]
[null,"Se altro, indicare qui","Se altro, indicare qui",null,"Se altro, indicare qui",null,null,null,null,null,null,"Se altro, indicare qui","Se altro, indicare qui",null,"Se altro, indicare qui"]
[]
[null,"Indicatore","(titolo)",null,null,null,null,null,null,null,null,"Indicatore"]
[null,"Cosa misura",null,null,null,null,null,null,null,null,null,"Cosa misura"]
[null,"Tipologia","Unità di misura","Algoritmo di calcolo","Fonte dei dati","Ultimo valore osservato","Risultato atteso anno n","Risultato atteso anno n+1","Risultato atteso anno n+2",null,null,"Tipologia","Unità di misura","Algoritmo di calcolo","Fonte dei dati","Ultimo valore osservato","Risultato atteso anno n","Risultato atteso anno n+1","Risultato atteso anno n+2"]
[]
[null,"Se altro, indicare qui","Se altro, indicare qui",null,"Se altro, indicare qui",null,null,null,null,null,null,"Se altro, indicare qui","Se altro, indicare qui",null,"Se altro, indicare qui"]
[]
[null,"Missione","033 - Fondi da ripartire",null,null,null,null,null,null,null,null,"Missione","033 - Fondi da ripartire"]
[]
[null,"Programma","001 - Fondi da assegnare",null,null,null,null,null,null,null,null,"Programma","001 - Fondi da assegnare"]
[]
[]
[null,"Obiettivo","Titolo",{"$f":"+Generale!S8","v":0},null,null,null,null,null,null,null,"Obiettivo","Titolo",{"$f":"+Generale!S12","v":0}]
[null,null,"Descrizione",null,null,null,null,null,null,null,null,null,"Descrizione"]
[null,null,"Arco temporale realizzazione",null,null,null,null,null,null,null,null,null,"Arco temporale  realizzazione"]
[null,null,"Centro di responsabilità",null,null,null,null,null,null,null,null,null,"Centro di responsabilità"]
[null,null,"Risorse finanziarie",null,null,null,null,null,null,null,null,null,"Risorse finanziarie"]
[null,{"$f":"+Generale!R8","v":""},null,null,null,null,null,null,null,null,null,{"$f":"+Generale!R12","v":""}]
[null,null,"Nr indicatori associati",null,"<<< nb: indicare preventivamente il Nr indicatori associati all'obiettivo",null,null,null,null,null,null,null,"Nr indicatori associati",null,"<<< nb: indicare preventivamente il Nr indicatori associati all'obiettivo"]
[]
[]
[null,"Indicatore","(titolo)",null,null,null,null,null,null,null,null,"Indicatore","(titolo)"]
[null,"Cosa misura",null,null,null,null,null,null,null,null,null,"Cosa misura"]
[null,"Tipologia","Unità di misura","Algoritmo di calcolo","Fonte dei dati","Ultimo valore osservato","Risultato atteso anno n","Risultato atteso anno n+1","Risultato atteso anno n+2",null,null,"Tipologia","Unità di misura","Algoritmo di calcolo","Fonte dei dati","Ultimo valore osservato","Risultato atteso anno n","Risultato atteso anno n+1","Risultato atteso anno n+2"]
[]
[null,"Se altro, indicare qui","Se altro, indicare qui",null,"Se altro, indicare qui",null,null,null,null,null,null,"Se altro, indicare qui","Se altro, indicare qui",null,"Se altro, indicare qui"]
[]
[null,"Indicatore","(titolo)",null,null,null,null,null,null,null,null,"Indicatore","(titolo)"]
[null,"Cosa misura",null,null,null,null,null,null,null,null,null,"Cosa misura"]
[null,"Tipologia","Unità di misura","Algoritmo di calcolo","Fonte dei dati","Ultimo valore osservato","Risultato atteso anno n","Risultato atteso anno n+1","Risultato atteso anno n+2",null,null,"Tipologia","Unità di misura","Algoritmo di calcolo","Fonte dei dati","Ultimo valore osservato","Risultato atteso anno n","Risultato atteso anno n+1","Risultato atteso anno n+2"]
[]
[null,"Se altro, indicare qui","Se altro, indicare qui",null,"Se altro, indicare qui",null,null,null,null,null,null,"Se altro, indicare qui","Se altro, indicare qui",null,"Se altro, indicare qui"]
[]
[null,"Indicatore","(titolo)",null,null,null,null,null,null,null,null,"Indicatore","(titolo)"]
[null,"Cosa misura",null,null,null,null,null,null,null,null,null,"Cosa misura"]
[null,"Tipologia","Unità di misura","Algoritmo di calcolo","Fonte dei dati","Ultimo valore osservato","Risultato atteso anno n","Risultato atteso anno n+1","Risultato atteso anno n+2",null,null,"Tipologia","Unità di misura","Algoritmo di calcolo","Fonte dei dati","Ultimo valore osservato","Risultato atteso anno n","Risultato atteso anno n+1","Risultato atteso anno n+2"]
[]
[null,"Se altro, indicare qui","Se altro, indicare qui",null,"Se altro, indicare qui",null,null,null,null,null,null,"Se altro, indicare qui","Se altro, indicare qui",null,"Se altro, indicare qui"]
[]
[null,"Indicatore","(titolo)",null,null,null,null,null,null,null,null,"Indicatore","(titolo)"]
[null,"Cosa misura",null,null,null,null,null,null,null,null,null,"Cosa misura"]
[null,"Tipologia","Unità di misura","Algoritmo di calcolo","Fonte dei dati","Ultimo valore osservato","Risultato atteso anno n","Risultato atteso anno n+1","Risultato atteso anno n+2",null,null,"Tipologia","Unità di misura","Algoritmo di calcolo","Fonte dei dati","Ultimo valore osservato","Risultato atteso anno n","Risultato atteso anno n+1","Risultato atteso anno n+2"]
[]
[null,"Se altro, indicare qui","Se altro, indicare qui",null,"Se altro, indicare qui",null,null,null,null,null,null,"Se altro, indicare qui","Se altro, indicare qui",null,"Se altro, indicare qui"]
[]
[null,"Indicatore","(titolo)",null,null,null,null,null,null,null,null,"Indicatore","(titolo)"]
[null,"Cosa misura"]
[null,"Tipologia","Unità di misura","Algoritmo di calcolo","Fonte dei dati","Ultimo valore osservato","Risultato atteso anno n","Risultato atteso anno n+1","Risultato atteso anno n+2",null,null,"Tipologia","Unità di misura","Algoritmo di calcolo","Fonte dei dati","Ultimo valore osservato","Risultato atteso anno n","Risultato atteso anno n+1","Risultato atteso anno n+2"]
[]
[null,"Se altro, indicare qui","Se altro, indicare qui",null,"Se altro, indicare qui",null,null,null,null,null,null,"Se altro, indicare qui","Se altro, indicare qui",null,"Se altro, indicare qui"]
[]
[null,"Obiettivo","Titolo",{"$f":"+Generale!S9","v":0},null,null,null,null,null,null,null,"Obiettivo","Titolo",{"$f":"+Generale!S13","v":0}]
[null,null,"Descrizione",null,null,null,null,null,null,null,null,null,"Descrizione"]
[null,null,"Arco temporale realizzazione",null,null,null,null,null,null,null,null,null,"Arco temporale realizzazione"]
[null,null,"Centro di responsabilità",null,null,null,null,null,null,null,null,null,"Centro di responsabilità"]
[null,null,"Risorse finanziarie",null,null,null,null,null,null,null,null,null,"Risorse finanziarie"]
[null,{"$f":"+Generale!R9","v":""},null,null,null,null,null,null,null,null,null,{"$f":"+Generale!R13","v":""}]
[null,null,"Nr indicatori associati",null,"<<< nb: indicare preventivamente il Nr indicatori associati all'obiettivo",null,null,null,null,null,null,null,"Nr indicatori associati",null,"<<< nb: indicare preventivamente il Nr indicatori associati all'obiettivo"]
[]
[]
[null,"Indicatore","(titolo)",null,null,null,null,null,null,null,null,"Indicatore","(titolo)"]
[null,"Cosa misura",null,null,null,null,null,null,null,null,null,"Cosa misura"]
[null,"Tipologia","Unità di misura","Algoritmo di calcolo","Fonte dei dati","Ultimo valore osservato","Risultato atteso anno n","Risultato atteso anno n+1","Risultato atteso anno n+2",null,null,"Tipologia","Unità di misura","Algoritmo di calcolo","Fonte dei dati","Ultimo valore osservato","Risultato atteso anno n","Risultato atteso anno n+1","Risultato atteso anno n+2"]
[]
[null,"Se altro, indicare qui","Se altro, indicare qui",null,"Se altro, indicare qui",null,null,null,null,null,null,"Se altro, indicare qui","Se altro, indicare qui",null,"Se altro, indicare qui"]
[]
[null,"Indicatore","(titolo)",null,null,null,null,null,null,null,null,"Indicatore","(titolo)"]
[null,"Cosa misura",null,null,null,null,null,null,null,null,null,"Cosa misura"]
[null,"Tipologia","Unità di misura","Algoritmo di calcolo","Fonte dei dati","Ultimo valore osservato","Risultato atteso anno n","Risultato atteso anno n+1","Risultato atteso anno n+2",null,null,"Tipologia","Unità di misura","Algoritmo di calcolo","Fonte dei dati","Ultimo valore osservato","Risultato atteso anno n","Risultato atteso anno n+1","Risultato atteso anno n+2"]
[]
[null,"Se altro, indicare qui","Se altro, indicare qui",null,"Se altro, indicare qui",null,null,null,null,null,null,"Se altro, indicare qui","Se altro, indicare qui",null,"Se altro, indicare qui"]
[]
[null,"Indicatore","(titolo)",null,null,null,null,null,null,null,null,"Indicatore","(titolo)"]
[null,"Cosa misura",null,null,null,null,null,null,null,null,null,"Cosa misura"]
[null,"Tipologia","Unità di misura","Algoritmo di calcolo","Fonte dei dati","Ultimo valore osservato","Risultato atteso anno n","Risultato atteso anno n+1","Risultato atteso anno n+2",null,null,"Tipologia","Unità di misura","Algoritmo di calcolo","Fonte dei dati","Ultimo valore osservato","Risultato atteso anno n","Risultato atteso anno n+1","Risultato atteso anno n+2"]
[]
[null,"Se altro, indicare qui","Se altro, indicare qui",null,"Se altro, indicare qui",null,null,null,null,null,null,"Se altro, indicare qui","Se altro, indicare qui",null,"Se altro, indicare qui"]
[]
[null,"Indicatore","(titolo)",null,null,null,null,null,null,null,null,"Indicatore","(titolo)"]
[null,"Cosa misura",null,null,null,null,null,null,null,null,null,"Cosa misura"]
[null,"Tipologia","Unità di misura","Algoritmo di calcolo","Fonte dei dati","Ultimo valore osservato","Risultato atteso anno n","Risultato atteso anno n+1","Risultato atteso anno n+2",null,null,"Tipologia","Unità di misura","Algoritmo di calcolo","Fonte dei dati","Ultimo valore osservato","Risultato atteso anno n","Risultato atteso anno n+1","Risultato atteso anno n+2"]
[]
[null,"Se altro, indicare qui","Se altro, indicare qui",null,"Se altro, indicare qui",null,null,null,null,null,null,"Se altro, indicare qui","Se altro, indicare qui",null,"Se altro, indicare qui"]
[]
[null,"Indicatore","(titolo)",null,null,null,null,null,null,null,null,"Indicatore","(titolo)"]
[null,"Cosa misura",null,null,null,null,null,null,null,null,null,"Cosa misura"]
[null,"Tipologia","Unità di misura","Algoritmo di calcolo","Fonte dei dati","Ultimo valore osservato","Risultato atteso anno n","Risultato atteso anno n+1","Risultato atteso anno n+2",null,null,"Tipologia","Unità di misura","Algoritmo di calcolo","Fonte dei dati","Ultimo valore osservato","Risultato atteso anno n","Risultato atteso anno n+1","Risultato atteso anno n+2"]
[]
[null,"Se altro, indicare qui","Se altro, indicare qui",null,"Se altro, indicare qui",null,null,null,null,null,null,"Se altro, indicare qui","Se altro, indicare qui",null,"Se altro, indicare qui"]

{"sheet":"002_Fondi di riserva ","index":7,"n_rows":165,"n_cols":19,"rows_kept":165,"cut":false,"hidden":false,"merged":[[110,2,110,8],[110,12,110,18],[161,2,161,8],[161,12,161,18],[148,2,148,8],[148,12,148,18],[149,2,149,8],[149,12,149,18],[142,2,142,8],[142,12,142,18],[155,2,155,8],[155,12,155,18],[143,2,143,8],[143,12,143,18],[154,2,154,8],[154,12,154,18],[160,2,160,8],[160,12,160,18],[121,2,121,8],[121,12,121,18],[122,2,122,8],[122,12,122,18],[136,2,136,8],[136,12,136,18],[137,2,137,8],[137,12,137,18],[131,3,131,8],[131,13,131,18],[135,1,135,8],[135,11,135,18],[127,1,131,1],[127,3,127,8],[127,11,131,11],[127,13,127,18],[128,3,128,8],[128,13,128,18],[130,3,130,8],[130,13,130,18],[129,3,129,8],[129,13,129,18],[104,2,104,8],[104,12,104,18],[92,3,92,8],[92,13,92,18],[96,1,96,8],[96,11,96,18],[83,2,83,8],[83,12,83,18],[116,2,116,8],[116,12,116,18],[98,2,98,8],[98,12,98,18],[103,2,103,8],[103,12,103,18],[115,2,115,8],[115,12,115,18],[109,2,109,8],[109,12,109,18],[84,0,84,1],[85,2,85,8],[85,12,85,18],[86,0,86,1],[88,11,92,11],[88,13,88,18],[65,2,65,8],[65,12,65,18],[66,2,66,8],[66,12,66,18],[72,2,72,8],[72,12,72,18],[97,2,97,8],[97,12,97,18],[88,1,92,1],[88,3,88,8],[71,2,71,8],[71,12,71,18],[78,2,78,8],[78,12,78,18],[77,2,77,8],[77,12,77,18],[90,3,90,8],[90,13,90,18],[91,3,91,8],[91,13,91,18],[89,3,89,8],[89,13,89,18],[59,2,59,8],[59,12,59,18],[38,2,38,8],[38,12,38,18],[39,2,39,8],[39,12,39,18],[60,2,60,8],[60,12,60,18],[48,3,48,8],[48,13,48,18],[52,1,52,8],[52,11,52,18],[53,2,53,8],[53,12,53,18],[44,11,48,11],[44,13,44,18],[44,1,48,1],[44,3,44,8],[47,3,47,8],[47,13,47,18],[45,3,45,8],[45,13,45,18],[46,3,46,8],[46,13,46,18],[54,2,54,8],[54,12,54,18],[33,2,33,8],[33,12,33,18],[15,12,15,18],[20,2,20,8],[20,12,20,18],[5,11,9,11],[5,13,5,18],[6,3,6,8],[6,13,6,18],[7,3,7,8],[26,2,26,8],[26,12,26,18],[27,2,27,8],[27,12,27,18],[32,2,32,8],[32,12,32,18],[21,2,21,8],[21,12,21,18],[8,13,8,18],[9,3,9,8],[9,13,9,18],[13,1,13,8],[13,11,13,18],[14,2,14,8],[14,12,14,18],[15,2,15,8],[0,2,0,8],[0,12,0,18],[1,0,1,1],[2,2,2,8],[2,12,2,18],[7,13,7,18],[8,3,8,8],[3,0,3,1],[4,0,4,8],[5,1,9,1],[5,3,5,8]]}
[null,"Missione","033 - Fondi da ripartire",null,null,null,null,null,null,null,null,"Missione","033 - Fondi da ripartire"]
[]
[null,"Programma","002 - Fondi di riserva e speciali",null,null,null,null,null,null,null,null,"Programma","002 - Fondi di riserva e speciali"]
[]
[]
[null,"Obiettivo","Titolo",{"$f":"+Generale!U6","v":0},null,null,null,null,null,null,null,"Obiettivo","Titolo",{"$f":"+Generale!U10","v":0}]
[null,null,"Descrizione",null,null,null,null,null,null,null,null,null,"Descrizione"]
[null,null,"Arco temporale realizzazione",null,null,null,null,null,null,null,null,null,"Arco temporale realizzazione"]
[null,null,"Centro di responsabilità",null,null,null,null,null,null,null,null,null,"Centro di responsabilità"]
[null,null,"Risorse economiche",null,null,null,null,null,null,null,null,null,"Risorse finanziarie"]
[null,{"$f":"+Generale!T6","v":""},null,null,null,null,null,null,null,null,null,{"$f":"+Generale!T10","v":""}]
[null,null,"Nr indicatori associati",1,"<<< nb: indicare preventivamente il Nr indicatori associati all'obiettivo",null,null,null,null,null,null,null,"Nr indicatori associati",null,"<<< nb: indicare preventivamente il Nr indicatori associati all'obiettivo"]
[]
[]
[null,"Indicatore","(titolo)",null,null,null,null,null,null,null,null,"Indicatore","(titolo)"]
[null,"Cosa misura",null,null,null,null,null,null,null,null,null,"Cosa misura"]
[null,"Tipologia","Unità di misura","Algoritmo di calcolo","Fonte dei dati","Ultimo valore osservato","Risultato atteso anno n","Risultato atteso anno n+1","Risultato atteso anno n+2",null,null,"Tipologia","Unità di misura","Algoritmo di calcolo","Fonte dei dati","Ultimo valore osservato","Risultato atteso anno n","Risultato atteso anno n+1","Risultato atteso anno n+2"]
[]
[null,"Se altro, indicare qui","Se altro, indicare qui",null,"Se altro, indicare qui",null,null,null,null,null,null,"Se altro, indicare qui","Se altro, indicare qui",null,"Se altro, indicare qui"]
[]
[null,"Indicatore","(titolo)",null,null,null,null,null,null,null,null,"Indicatore"]
[null,"Cosa misura",null,null,null,null,null,null,null,null,null,"Cosa misura"]
[null,"Tipologia","Unità di misura","Algoritmo di calcolo","Fonte dei dati","Ultimo valore osservato","Risultato atteso anno n","Risultato atteso anno n+1","Risultato atteso anno n+2",null,null,"Tipologia","Unità di misura","Algoritmo di calcolo","Fonte dei dati","Ultimo valore osservato","Risultato atteso anno n","Risultato atteso anno n+1","Risultato atteso anno n+2"]
[]
[null,"Se altro, indicare qui","Se altro, indicare qui",null,"Se altro, indicare qui",null,null,null,null,null,null,"Se altro, indicare qui","Se altro, indicare qui",null,"Se altro, indicare qui"]
[]
[null,"Indicatore","(titolo)",null,null,null,null,null,null,null,null,"Indicatore","(titolo)"]
[null,"Cosa misura",null,null,null,null,null,null,null,null,null,"Cosa misura"]
[null,"Tipologia","Unità di misura","Algoritmo di calcolo","Fonte dei dati","Ultimo valore osservato","Risultato atteso anno n","Risultato atteso anno n+1","Risultato atteso anno n+2",null,null,"Tipologia","Unità di misura","Algoritmo di calcolo","Fonte dei dati","Ultimo valore osservato","Risultato atteso anno n","Risultato atteso anno n+1","Risultato atteso anno n+2"]
[]
[null,"Se altro, indicare qui","Se altro, indicare qui",null,"Se altro, indicare qui",null,null,null,null,null,null,"Se altro, indicare qui","Se altro, indicare qui",null,"Se altro, indicare qui"]
[]
[null,"Indicatore","(titolo)",null,null,null,null,null,null,null,null,"Indicatore","(titolo)"]
[null,"Cosa misura",null,null,null,null,null,null,null,null,null,"Cosa misura"]
[null,"Tipologia","Unità di misura","Algoritmo di calcolo","Fonte dei dati","Ultimo valore osservato","Risultato atteso anno n","Risultato atteso anno n+1","Risultato atteso anno n+2",null,null,"Tipologia","Unità di misura","Algoritmo di calcolo","Fonte dei dati","Ultimo valore osservato","Risultato atteso anno n","Risultato atteso anno n+1","Risultato atteso anno n+2"]
[]
[null,"Se altro, indicare qui","Se altro, indicare qui",null,"Se altro, indicare qui",null,null,null,null,null,null,"Se altro, indicare qui","Se altro, indicare qui",null,"Se altro, indicare qui"]
[]
[null,"Indicatore","(titolo)",null,null,null,null,null,null,null,null,"Indicatore","(titolo)"]
[null,"Cosa misura",null,null,null,null,null,null,null,null,null,"Cosa misura"]
[null,"Tipologia","Unità di misura","Algoritmo di calcolo","Fonte dei dati","Ultimo valore osservato","Risultato atteso anno n","Risultato atteso anno n+1","Risultato atteso anno n+2",null,null,"Tipologia","Unità di misura","Algoritmo di calcolo","Fonte dei dati","Ultimo valore osservato","Risultato atteso anno n","Risultato atteso anno n+1","Risultato atteso anno n+2"]
[]
[null,"Se altro, indicare qui","Se altro, indicare qui",null,"Se altro, indicare qui",null,null,null,null,null,null,"Se altro, indicare qui","Se altro, indicare qui",null,"Se altro, indicare qui"]
[]
[null,"Obiettivo","Titolo",{"$f":"+Generale!U7","v":0},null,null,null,null,null,null,null,"Obiettivo","Titolo",{"$f":"+Generale!U11","v":0}]
[null,null,"Descrizione",null,null,null,null,null,null,null,null,null,"Descrizione"]
[null,null,"Arco temporale per la realizzazione",null,null,null,null,null,null,null,null,null,"Arco temporale per la realizzazione"]
[null,null,"Centro di responsabilità",null,null,null,null,null,null,null,null,null,"Centro di responsabilità"]
[null,null,"Risorse finanziarie",null,null,null,null,null,null,null,null,null,"Risorse finanziarie"]
[null,{"$f":"+Generale!T7","v":""},null,null,null,null,null,null,null,null,null,{"$f":"+Generale!T11","v":""}]
[null,null,"Nr indicatori associati",null,"<<< nb: indicare preventivamente il Nr indicatori associati all'obiettivo",null,null,null,null,null,null,null,"Nr indicatori associati",null,"<<< nb: indicare preventivamente il Nr indicatori associati all'obiettivo"]
[]
[]
[null,"Indicatore","(titolo)",null,null,null,null,null,null,null,null,"Indicatore","(titolo)"]
[null,"Cosa misura",null,null,null,null,null,null,null,null,null,"Cosa misura"]
[null,"Tipologia","Unità di misura","Algoritmo di calcolo","Fonte dei dati","Ultimo valore osservato","Risultato atteso anno n","Risultato atteso anno n+1","Risultato atteso anno n+2",null,null,"Tipologia","Unità di misura","Algoritmo di calcolo","Fonte dei dati","Ultimo valore osservato","Risultato atteso anno n","Risultato atteso anno n+1","Risultato atteso anno n+2"]
[]
[null,"Se altro, indicare qui","Se altro, indicare qui",null,"Se altro, indicare qui",null,null,null,null,null,null,"Se altro, indicare qui","Se altro, indicare qui",null,"Se altro, indicare qui"]
[]
[null,"Indicatore","(titolo)",null,null,null,null,null,null,null,null,"Indicatore","(titolo)"]
[null,"Cosa misura",null,null,null,null,null,null,null,null,null,"Cosa misura"]
[null,"Tipologia","Unità di misura","Algoritmo di calcolo","Fonte dei dati","Ultimo valore osservato","Risultato atteso anno n","Risultato atteso anno n+1","Risultato atteso anno n+2",null,null,"Tipologia","Unità di misura","Algoritmo di calcolo","Fonte dei dati","Ultimo valore osservato","Risultato atteso anno n","Risultato atteso anno n+1","Risultato atteso anno n+2"]
[]
[null,"Se altro, indicare qui","Se altro, indicare qui",null,"Se altro, indicare qui",null,null,null,null,null,null,"Se altro, indicare qui","Se altro, indicare qui",null,"Se altro, indicare qui"]
[]
[null,"Indicatore","(titolo)",null,null,null,null,null,null,null,null,"Indicatore","(titolo)"]
[null,"Cosa misura",null,null,null,null,null,null,null,null,null,"Cosa misura"]
[null,"Tipologia","Unità di misura","Algoritmo di calcolo","Fonte dei dati","Ultimo valore osservato","Risultato atteso anno n","Risultato atteso anno n+1","Risultato atteso anno n+2",null,null,"Tipologia","Unità di misura","Algoritmo di calcolo","Fonte dei dati","Ultimo valore osservato","Risultato atteso anno n","Risultato atteso anno n+1","Risultato atteso anno n+2"]
[]
[null,"Se altro, indicare qui","Se altro, indicare qui",null,"Se altro, indicare qui",null,null,null,null,null,null,"Se altro, indicare qui","Se altro, indicare qui",null,"Se altro, indicare qui"]
[]
[null,"Indicatore","(titolo)",null,null,null,null,null,null,null,null,"Indicatore"]
[null,"Cosa misura",null,null,null,null,null,null,null,null,null,"Cosa misura"]
[null,"Tipologia","Unità di misura","Algoritmo di calcolo","Fonte dei dati","Ultimo valore osservato","Risultato atteso anno n","Risultato atteso anno n+1","Risultato atteso anno n+2",null,null,"Tipologia","Unità di misura","Algoritmo di calcolo","Fonte dei dati","Ultimo valore osservato","Risultato atteso anno n","Risultato atteso anno n+1","Risultato atteso anno n+2"]
[]
[null,"Se altro, indicare qui","Se altro, indicare qui",null,"Se altro, indicare qui",null,null,null,null,null,null,"Se altro, indicare qui","Se altro, indicare qui",null,"Se altro, indicare qui"]
[]
[null,"Indicatore","(titolo)",null,null,null,null,null,null,null,null,"Indicatore"]
[null,"Cosa misura",null,null,null,null,null,null,null,null,null,"Cosa misura"]
[null,"Tipologia","Unità di misura","Algoritmo di calcolo","Fonte dei dati","Ultimo valore osservato","Risultato atteso anno n","Risultato atteso anno n+1","Risultato atteso anno n+2",null,null,"Tipologia","Unità di misura","Algoritmo di calcolo","Fonte dei dati","Ultimo valore osservato","Risultato atteso anno n","Risultato atteso anno n+1","Risultato atteso anno n+2"]
[]
[null,"Se altro, indicare qui","Se altro, indicare qui",null,"Se altro, indicare qui",null,null,null,null,null,null,"Se altro, indicare qui","Se altro, indicare qui",null,"Se altro, indicare qui"]
[]
[null,"Missione","033 - Fondi da ripartire",null,null,null,null,null,null,null,null,"Missione","033 - Fondi da ripartire"]
[]
[null,"Programma","002 - Fondi di riserva e speciali",null,null,null,null,null,null,null,null,"Programma","002 - Fondi di riserva e speciali"]
[]
[]
[null,"Obiettivo","Titolo",{"$f":"+Generale!U8","v":0},null,null,null,null,null,null,null,"Obiettivo","Titolo",{"$f":"+Generale!U12","v":0}]
[null,null,"Descrizione",null,null,null,null,null,null,null,null,null,"Descrizione"]
[null,null,"Arco temporale realizzazione",null,null,null,null,null,null,null,null,null,"Arco temporale  realizzazione"]
[null,null,"Centro di responsabilità",null,null,null,null,null,null,null,null,null,"Centro di responsabilità"]
[null,null,"Risorse finanziarie",null,null,null,null,null,null,null,null,null,"Risorse finanziarie"]
[null,{"$f":"+Generale!T8","v":""},null,null,null,null,null,null,null,null,null,{"$f":"+Generale!T12","v":""}]
[null,null,"Nr indicatori associati",null,"<<< nb: indicare preventivamente il Nr indicatori associati all'obiettivo",null,null,null,null,null,null,null,"Nr indicatori associati",null,"<<< nb: indicare preventivamente il Nr indicatori associati all'obiettivo"]
[]
[]
[null,"Indicatore","(titolo)",null,null,null,null,null,null,null,null,"Indicatore","(titolo)"]
[null,"Cosa misura",null,null,null,null,null,null,null,null,null,"Cosa misura"]
[null,"Tipologia","Unità di misura","Algoritmo di calcolo","Fonte dei dati","Ultimo valore osservato","Risultato atteso anno n","Risultato atteso anno n+1","Risultato atteso anno n+2",null,null,"Tipologia","Unità di misura","Algoritmo di calcolo","Fonte dei dati","Ultimo valore osservato","Risultato atteso anno n","Risultato atteso anno n+1","Risultato atteso anno n+2"]
[]
[null,"Se altro, indicare qui","Se altro, indicare qui",null,"Se altro, indicare qui",null,null,null,null,null,null,"Se altro, indicare qui","Se altro, indicare qui",null,"Se altro, indicare qui"]
[]
[null,"Indicatore","(titolo)",null,null,null,null,null,null,null,null,"Indicatore","(titolo)"]
[null,"Cosa misura",null,null,null,null,null,null,null,null,null,"Cosa misura"]
[null,"Tipologia","Unità di misura","Algoritmo di calcolo","Fonte dei dati","Ultimo valore osservato","Risultato atteso anno n","Risultato atteso anno n+1","Risultato atteso anno n+2",null,null,"Tipologia","Unità di misura","Algoritmo di calcolo","Fonte dei dati","Ultimo valore osservato","Risultato atteso anno n","Risultato atteso anno n+1","Risultato atteso anno n+2"]
[]
[null,"Se altro, indicare qui","Se altro, indicare qui",null,"Se altro, indicare qui",null,null,null,null,null,null,"Se altro, indicare qui","Se altro, indicare qui",null,"Se altro, indicare qui"]
[]
[null,"Indicatore","(titolo)",null,null,null,null,null,null,null,null,"Indicatore","(titolo)"]
[null,"Cosa misura",null,null,null,null,null,null,null,null,null,"Cosa misura"]
[null,"Tipologia","Unità di misura","Algoritmo di calcolo","Fonte dei dati","Ultimo valore osservato","Risultato atteso anno n","Risultato atteso anno n+1","Risultato atteso anno n+2",null,null,"Tipologia","Unità di misura","Algoritmo di calcolo","Fonte dei dati","Ultimo valore osservato","Risultato atteso anno n","Risultato atteso anno n+1","Risultato atteso anno n+2"]
[]
[null,"Se altro, indicare qui","Se altro, indicare qui",null,"Se altro, indicare qui",null,null,null,null,null,null,"Se altro, indicare qui","Se altro, indicare qui",null,"Se altro, indicare qui"]
[]
[null,"Indicatore","(titolo)",null,null,null,null,null,null,null,null,"Indicatore","(titolo)"]
[null,"Cosa misura",null,null,null,null,null,null,null,null,null,"Cosa misura"]
[null,"Tipologia","Unità di misura","Algoritmo di calcolo","Fonte dei dati","Ultimo valore osservato","Risultato atteso anno n","Risultato atteso anno n+1","Risultato atteso anno n+2",null,null,"Tipologia","Unità di misura","Algoritmo di calcolo","Fonte dei dati","Ultimo valore osservato","Risultato atteso anno n","Risultato atteso anno n+1","Risultato atteso anno n+2"]
[]
[null,"Se altro, indicare qui","Se altro, indicare qui",null,"Se altro, indicare qui",null,null,null,null,null,null,"Se altro, indicare qui","Se altro, indicare qui",null,"Se altro, indicare qui"]
[]
[null,"Indicatore","(titolo)",null,null,null,null,null,null,null,null,"Indicatore","(titolo)"]
[null,"Cosa misura"]
[null,"Tipologia","Unità di misura","Algoritmo di calcolo","Fonte dei dati","Ultimo valore osservato","Risultato atteso anno n","Risultato atteso anno n+1","Risultato atteso anno n+2",null,null,"Tipologia","Unità di misura","Algoritmo di calcolo","Fonte dei dati","Ultimo valore osservato","Risultato atteso anno n","Risultato atteso anno n+1","Risultato atteso anno n+2"]
[]
[null,"Se altro, indicare qui","Se altro, indicare qui",null,"Se altro, indicare qui",null,null,null,null,null,null,"Se altro, indicare qui","Se altro, indicare qui",null,"Se altro, indicare qui"]
[]
[null,"Obiettivo","Titolo",{"$f":"+Generale!U9","v":0},null,null,null,null,null,null,null,"Obiettivo","Titolo",{"$f":"+Generale!U13","v":0}]
[null,null,"Descrizione",null,null,null,null,null,null,null,null,null,"Descrizione"]
[null,null,"Arco temporale realizzazione",null,null,null,null,null,null,null,null,null,"Arco temporale realizzazione"]
[null,null,"Centro di responsabilità",null,null,null,null,null,null,null,null,null,"Centro di responsabilità"]
[null,null,"Risorse finanziarie",null,null,null,null,null,null,null,null,null,"Risorse finanziarie"]
[null,{"$f":"+Generale!T9","v":""},null,null,null,null,null,null,null,null,null,{"$f":"+Generale!T13","v":""}]
[null,null,"Nr indicatori associati",null,"<<< nb: indicare preventivamente il Nr indicatori associati all'obiettivo",null,null,null,null,null,null,null,"Nr indicatori associati",null,"<<< nb: indicare preventivamente il Nr indicatori associati all'obiettivo"]
[]
[]
[null,"Indicatore","(titolo)",null,null,null,null,null,null,null,null,"Indicatore","(titolo)"]
[null,"Cosa misura",null,null,null,null,null,null,null,null,null,"Cosa misura"]
[null,"Tipologia","Unità di misura","Algoritmo di calcolo","Fonte dei dati","Ultimo valore osservato","Risultato atteso anno n","Risultato atteso anno n+1","Risultato atteso anno n+2",null,null,"Tipologia","Unità di misura","Algoritmo di calcolo","Fonte dei dati","Ultimo valore osservato","Risultato atteso anno n","Risultato atteso anno n+1","Risultato atteso anno n+2"]
[]
[null,"Se altro, indicare qui","Se altro, indicare qui",null,"Se altro, indicare qui",null,null,null,null,null,null,"Se altro, indicare qui","Se altro, indicare qui",null,"Se altro, indicare qui"]
[]
[null,"Indicatore","(titolo)",null,null,null,null,null,null,null,null,"Indicatore","(titolo)"]
[null,"Cosa misura",null,null,null,null,null,null,null,null,null,"Cosa misura"]
[null,"Tipologia","Unità di misura","Algoritmo di calcolo","Fonte dei dati","Ultimo valore osservato","Risultato atteso anno n","Risultato atteso anno n+1","Risultato atteso anno n+2",null,null,"Tipologia","Unità di misura","Algoritmo di calcolo","Fonte dei dati","Ultimo valore osservato","Risultato atteso anno n","Risultato atteso anno n+1","Risultato atteso anno n+2"]
[]
[null,"Se altro, indicare qui","Se altro, indicare qui",null,"Se altro, indicare qui",null,null,null,null,null,null,"Se altro, indicare qui","Se altro, indicare qui",null,"Se altro, indicare qui"]
[]
[null,"Indicatore","(titolo)",null,null,null,null,null,null,null,null,"Indicatore","(titolo)"]
[null,"Cosa misura",null,null,null,null,null,null,null,null,null,"Cosa misura"]
[null,"Tipologia","Unità di misura","Algoritmo di calcolo","Fonte dei dati","Ultimo valore osservato","Risultato atteso anno n","Risultato atteso anno n+1","Risultato atteso anno n+2",null,null,"Tipologia","Unità di misura","Algoritmo di calcolo","Fonte dei dati","Ultimo valore osservato","Risultato atteso anno n","Risultato atteso anno n+1","Risultato atteso anno n+2"]
[]
[null,"Se altro, indicare qui","Se altro, indicare qui",null,"Se altro, indicare qui",null,null,null,null,null,null,"Se altro, indicare qui","Se altro, indicare qui",null,"Se altro, indicare qui"]
[]
[null,"Indicatore","(titolo)",null,null,null,null,null,null,null,null,"Indicatore","(titolo)"]
[null,"Cosa misura",null,null,null,null,null,null,null,null,null,"Cosa misura"]
[null,"Tipologia","Unità di misura","Algoritmo di calcolo","Fonte dei dati","Ultimo valore osservato","Risultato atteso anno n","Risultato atteso anno n+1","Risultato atteso anno n+2",null,null,"Tipologia","Unità di misura","Algoritmo di calcolo","Fonte dei dati","Ultimo valore osservato","Risultato atteso anno n","Risultato atteso anno n+1","Risultato atteso anno n+2"]
[]
[null,"Se altro, indicare qui","Se altro, indicare qui",null,"Se altro, indicare qui",null,null,null,null,null,null,"Se altro, indicare qui","Se altro, indicare qui",null,"Se altro, indicare qui"]
[]
[null,"Indicatore","(titolo)",null,null,null,null,null,null,null,null,"Indicatore","(titolo)"]
[null,"Cosa misura",null,null,null,null,null,null,null,null,null,"Cosa misura"]
[null,"Tipologia","Unità di misura","Algoritmo di calcolo","Fonte dei dati","Ultimo valore osservato","Risultato atteso anno n","Risultato atteso anno n+1","Risultato atteso anno n+2",null,null,"Tipologia","Unità di misura","Algoritmo di calcolo","Fonte dei dati","Ultimo valore osservato","Risultato atteso anno n","Risultato atteso anno n+1","Risultato atteso anno n+2"]
[]
[null,"Se altro, indicare qui","Se altro, indicare qui",null,"Se altro, indicare qui",null,null,null,null,null,null,"Se altro, indicare qui","Se altro, indicare qui",null,"Se altro, indicare qui"]